Transaction Date,Local Authority Department,BENEFICIARY,Purpose,Amount,Non Recoverable,Merchant Category
01-05-2023,Marketing,Personal Information - Redacted,Events,1250,0,COMMERCIAL SUPPLIER
01-05-2023,Marketing,Personal Information - Redacted,Events,1250,0,COMMERCIAL SUPPLIER
01-05-2023,Environment and Sustainable Transport,R.A.M Fleet Solutions Ltd,"Purchase - Equipment, Furniture And Materials",3760,0,COMMERCIAL SUPPLIER
01-05-2023,oneSource,Daisy Corporate Services Trading Ltd,Land Line Telephone Costs,4869.27,0,COMMERCIAL SUPPLIER
01-05-2023,oneSource,Daisy Corporate Services Trading Ltd,Land Line Telephone Costs,6061.76,0,COMMERCIAL SUPPLIER
01-05-2023,oneSource,Daisy Corporate Services Trading Ltd,Land Line Telephone Costs,12327.67,0,COMMERCIAL SUPPLIER
01-05-2023,Housing Revenue Account,Daisy Corporate Services Trading Ltd,Land Line Telephone Costs,3085.81,0,COMMERCIAL SUPPLIER
01-05-2023,Children and Young People,Prestige Linen Services Ltd,"Clothes, Uniform And Laundry",343.99,0,COMMERCIAL SUPPLIER
01-05-2023,Children and Young People,Chosen Care Group Ltd,Private Contractors Payment - Other,1437,0,VENDOR
01-05-2023,Inclusive Economy & Housing,Titan Containers A/S,Hire - Equipment Furniture And Materials,286.75,0,VENDOR
01-05-2023,RMS,Travis Perkins Trading Company Ltd,Building Alterations And Materials,613.32,0,COMMERCIAL SUPPLIER
01-05-2023,RMS,Travis Perkins Trading Company Ltd,Building Alterations And Materials,697.94,0,COMMERCIAL SUPPLIER
01-05-2023,RMS,Travis Perkins Trading Company Ltd,Building Alterations And Materials,697.94,0,COMMERCIAL SUPPLIER
01-05-2023,RMS,Travis Perkins Trading Company Ltd,Building Alterations And Materials,27812.28,0,COMMERCIAL SUPPLIER
01-05-2023,RMS,Travis Perkins Trading Company Ltd,Building Alterations And Materials,27812.28,0,COMMERCIAL SUPPLIER
01-05-2023,RMS,Travis Perkins Trading Company Ltd,Building Alterations And Materials,27812.28,0,COMMERCIAL SUPPLIER
01-05-2023,RMS,Travis Perkins Trading Company Ltd,Building Alterations And Materials,27812.28,0,COMMERCIAL SUPPLIER
01-05-2023,Environment and Sustainable Transport,Portakabin Ltd,Premises Hire - Facilities,2373.33,0,COMMERCIAL SUPPLIER
01-05-2023,oneSource,Royal Mail Group Plc,Postage And Courier Services,142.56,0,COMMERCIAL SUPPLIER
01-05-2023,oneSource,Royal Mail Group Plc,Postage And Courier Services,45287.85,0,COMMERCIAL SUPPLIER
01-05-2023,Children and Young People,Early Start Group Ltd,Private Contractors Payment - Other,66143,0,COMMERCIAL SUPPLIER
01-05-2023,Marketing,Personal Information - Redacted,Arts And Leisure Costs,173.07,0,Employee
01-05-2023,Marketing,Personal Information - Redacted,Arts And Leisure Costs,173.07,0,Employee
01-05-2023,Marketing,Personal Information - Redacted,Arts And Leisure Costs,173.07,0,Employee
01-05-2023,Marketing,Personal Information - Redacted,Arts And Leisure Costs,220.98,0,Employee
01-05-2023,Marketing,Personal Information - Redacted,Arts And Leisure Costs,21.88,0,Employee
01-05-2023,Marketing,Personal Information - Redacted,Arts And Leisure Costs,6.2,0,Employee
01-05-2023,Marketing,Personal Information - Redacted,Arts And Leisure Costs,209.95,0,Employee
01-05-2023,Marketing,Personal Information - Redacted,Professional Services - General,105,0,Employee
01-05-2023,Marketing,Personal Information - Redacted,Arts And Leisure Costs,121.55,0,Employee
01-05-2023,Marketing,Personal Information - Redacted,Arts And Leisure Costs,25.96,0,Employee
01-05-2023,Dedicated Schools Budget,Personal Information - Redacted,Professional Services - General,1197.08,0,COMMERCIAL SUPPLIER
01-05-2023,Marketing,Pan Vibration,Arts And Leisure Costs,585,0,VENDOR
01-05-2023,Environment and Sustainable Transport,Chipside Ltd,Private Contractors Payment - Other,660,0,COMMERCIAL SUPPLIER
02-05-2023,Dedicated Schools Budget,Personal Information - Redacted,Professional Services - General,15000,0,COMMERCIAL SUPPLIER
02-05-2023,Adults & Health,Uniting Friends,Daycare - Private Contractors Payment,360.25,0,VENDOR
02-05-2023,Adults & Health,Uniting Friends,Daycare - Private Contractors Payment,360.25,0,VENDOR
02-05-2023,Adults & Health,Uniting Friends,Daycare - Private Contractors Payment,360.25,0,VENDOR
02-05-2023,Adults & Health,Uniting Friends,Daycare - Private Contractors Payment,140,0,VENDOR
02-05-2023,Adults & Health,Uniting Friends,Daycare - Private Contractors Payment,140,0,VENDOR
02-05-2023,Inclusive Economy & Housing,Insurance Claims Accomodation Bureau Limited,Rents Payable,357.5,0,COMMERCIAL SUPPLIER
02-05-2023,Resources,BDO LLP,Professional Services - General,9450,0,
02-05-2023,Inclusive Economy & Housing,Insurance Claims Accomodation Bureau Limited,Rents Payable,385,0,COMMERCIAL SUPPLIER
02-05-2023,Inclusive Economy & Housing,Insurance Claims Accomodation Bureau Limited,Rents Payable,462,0,COMMERCIAL SUPPLIER
02-05-2023,Inclusive Economy & Housing,Insurance Claims Accomodation Bureau Limited,Rents Payable,308,0,COMMERCIAL SUPPLIER
02-05-2023,Inclusive Economy & Housing,Insurance Claims Accomodation Bureau Limited,Rents Payable,693,0,COMMERCIAL SUPPLIER
02-05-2023,Inclusive Economy & Housing,Insurance Claims Accomodation Bureau Limited,Rents Payable,693,0,COMMERCIAL SUPPLIER
02-05-2023,Inclusive Economy & Housing,Insurance Claims Accomodation Bureau Limited,Rents Payable,308,0,COMMERCIAL SUPPLIER
02-05-2023,Inclusive Economy & Housing,Insurance Claims Accomodation Bureau Limited,Rents Payable,273,0,COMMERCIAL SUPPLIER
02-05-2023,Inclusive Economy & Housing,Insurance Claims Accomodation Bureau Limited,Rents Payable,693,0,COMMERCIAL SUPPLIER
02-05-2023,Inclusive Economy & Housing,Insurance Claims Accomodation Bureau Limited,Rents Payable,462,0,COMMERCIAL SUPPLIER
02-05-2023,Inclusive Economy & Housing,Insurance Claims Accomodation Bureau Limited,Rents Payable,819,0,COMMERCIAL SUPPLIER
02-05-2023,Inclusive Economy & Housing,Insurance Claims Accomodation Bureau Limited,Rents Payable,924,0,COMMERCIAL SUPPLIER
02-05-2023,Inclusive Economy & Housing,Insurance Claims Accomodation Bureau Limited,Rents Payable,308,0,COMMERCIAL SUPPLIER
02-05-2023,Inclusive Economy & Housing,Insurance Claims Accomodation Bureau Limited,Rents Payable,462,0,COMMERCIAL SUPPLIER
02-05-2023,Inclusive Economy & Housing,Insurance Claims Accomodation Bureau Limited,Rents Payable,308,0,COMMERCIAL SUPPLIER
02-05-2023,Inclusive Economy & Housing,Insurance Claims Accomodation Bureau Limited,Rents Payable,935,0,COMMERCIAL SUPPLIER
02-05-2023,Inclusive Economy & Housing,Insurance Claims Accomodation Bureau Limited,Rents Payable,308,0,COMMERCIAL SUPPLIER
02-05-2023,Inclusive Economy & Housing,Insurance Claims Accomodation Bureau Limited,Rents Payable,462,0,COMMERCIAL SUPPLIER
02-05-2023,Inclusive Economy & Housing,Insurance Claims Accomodation Bureau Limited,Rents Payable,1232,0,COMMERCIAL SUPPLIER
02-05-2023,Inclusive Economy & Housing,Insurance Claims Accomodation Bureau Limited,Rents Payable,462,0,COMMERCIAL SUPPLIER
02-05-2023,Inclusive Economy & Housing,Insurance Claims Accomodation Bureau Limited,Rents Payable,616,0,COMMERCIAL SUPPLIER
02-05-2023,Inclusive Economy & Housing,Insurance Claims Accomodation Bureau Limited,Rents Payable,462,0,COMMERCIAL SUPPLIER
02-05-2023,Inclusive Economy & Housing,Insurance Claims Accomodation Bureau Limited,Rents Payable,462,0,COMMERCIAL SUPPLIER
02-05-2023,Inclusive Economy & Housing,Insurance Claims Accomodation Bureau Limited,Rents Payable,1935.43,0,COMMERCIAL SUPPLIER
02-05-2023,Inclusive Economy & Housing,Insurance Claims Accomodation Bureau Limited,Rents Payable,462,0,COMMERCIAL SUPPLIER
02-05-2023,Inclusive Economy & Housing,Insurance Claims Accomodation Bureau Limited,Rents Payable,830.5,0,COMMERCIAL SUPPLIER
02-05-2023,oneSource,Law Morgan Ltd,Agency Staff,3288.8,0,COMMERCIAL SUPPLIER
02-05-2023,Inclusive Economy & Housing,Insurance Claims Accomodation Bureau Limited,Rents Payable,2180.57,0,COMMERCIAL SUPPLIER
02-05-2023,Inclusive Economy & Housing,Insurance Claims Accomodation Bureau Limited,Rents Payable,4183.85,0,COMMERCIAL SUPPLIER
02-05-2023,Inclusive Economy & Housing,Insurance Claims Accomodation Bureau Limited,Rents Payable,1792.56,0,COMMERCIAL SUPPLIER
02-05-2023,Inclusive Economy & Housing,Insurance Claims Accomodation Bureau Limited,Rents Payable,1275.51,0,COMMERCIAL SUPPLIER
02-05-2023,Inclusive Economy & Housing,Insurance Claims Accomodation Bureau Limited,Rents Payable,1429.2,0,COMMERCIAL SUPPLIER
02-05-2023,Inclusive Economy & Housing,Insurance Claims Accomodation Bureau Limited,Rents Payable,4170.92,0,COMMERCIAL SUPPLIER
02-05-2023,Inclusive Economy & Housing,Insurance Claims Accomodation Bureau Limited,Rents Payable,4407.92,0,COMMERCIAL SUPPLIER
02-05-2023,Inclusive Economy & Housing,Insurance Claims Accomodation Bureau Limited,Rents Payable,3759.92,0,COMMERCIAL SUPPLIER
02-05-2023,Inclusive Economy & Housing,Insurance Claims Accomodation Bureau Limited,Rents Payable,433.15,0,COMMERCIAL SUPPLIER
02-05-2023,Inclusive Economy & Housing,Insurance Claims Accomodation Bureau Limited,Rents Payable,2997.42,0,COMMERCIAL SUPPLIER
02-05-2023,Inclusive Economy & Housing,Insurance Claims Accomodation Bureau Limited,Rents Payable,1332.72,0,COMMERCIAL SUPPLIER
02-05-2023,Inclusive Economy & Housing,Insurance Claims Accomodation Bureau Limited,Rents Payable,3129.41,0,COMMERCIAL SUPPLIER
02-05-2023,Inclusive Economy & Housing,Insurance Claims Accomodation Bureau Limited,Rents Payable,269.5,0,COMMERCIAL SUPPLIER
02-05-2023,Inclusive Economy & Housing,Insurance Claims Accomodation Bureau Limited,Rents Payable,1819,0,COMMERCIAL SUPPLIER
02-05-2023,Inclusive Economy & Housing,Insurance Claims Accomodation Bureau Limited,Rents Payable,2274.41,0,COMMERCIAL SUPPLIER
02-05-2023,Inclusive Economy & Housing,Insurance Claims Accomodation Bureau Limited,Rents Payable,4283.21,0,COMMERCIAL SUPPLIER
02-05-2023,Inclusive Economy & Housing,Insurance Claims Accomodation Bureau Limited,Rents Payable,1681.61,0,COMMERCIAL SUPPLIER
02-05-2023,Inclusive Economy & Housing,Insurance Claims Accomodation Bureau Limited,Rents Payable,2695,0,COMMERCIAL SUPPLIER
02-05-2023,Inclusive Economy & Housing,Insurance Claims Accomodation Bureau Limited,Rents Payable,3282.99,0,COMMERCIAL SUPPLIER
02-05-2023,Inclusive Economy & Housing,Insurance Claims Accomodation Bureau Limited,Rents Payable,5986.3,0,COMMERCIAL SUPPLIER
02-05-2023,Inclusive Economy & Housing,Insurance Claims Accomodation Bureau Limited,Rents Payable,719.2,0,COMMERCIAL SUPPLIER
02-05-2023,Inclusive Economy & Housing,Insurance Claims Accomodation Bureau Limited,Rents Payable,1798.71,0,COMMERCIAL SUPPLIER
02-05-2023,Inclusive Economy & Housing,Insurance Claims Accomodation Bureau Limited,Rents Payable,1798.71,0,COMMERCIAL SUPPLIER
02-05-2023,Inclusive Economy & Housing,Insurance Claims Accomodation Bureau Limited,Rents Payable,3483.41,0,COMMERCIAL SUPPLIER
02-05-2023,Inclusive Economy & Housing,Insurance Claims Accomodation Bureau Limited,Rents Payable,1749.41,0,COMMERCIAL SUPPLIER
02-05-2023,Inclusive Economy & Housing,Insurance Claims Accomodation Bureau Limited,Rents Payable,1307.31,0,COMMERCIAL SUPPLIER
02-05-2023,Inclusive Economy & Housing,Insurance Claims Accomodation Bureau Limited,Rents Payable,1307.31,0,COMMERCIAL SUPPLIER
02-05-2023,Inclusive Economy & Housing,Insurance Claims Accomodation Bureau Limited,Rents Payable,1099.58,0,COMMERCIAL SUPPLIER
02-05-2023,Inclusive Economy & Housing,Insurance Claims Accomodation Bureau Limited,Rents Payable,879.54,0,COMMERCIAL SUPPLIER
02-05-2023,Inclusive Economy & Housing,Insurance Claims Accomodation Bureau Limited,Rents Payable,1502.51,0,COMMERCIAL SUPPLIER
02-05-2023,Inclusive Economy & Housing,Insurance Claims Accomodation Bureau Limited,Rents Payable,1105.85,0,COMMERCIAL SUPPLIER
02-05-2023,Inclusive Economy & Housing,Insurance Claims Accomodation Bureau Limited,Rents Payable,2310.41,0,COMMERCIAL SUPPLIER
02-05-2023,Inclusive Economy & Housing,Insurance Claims Accomodation Bureau Limited,Rents Payable,5288.12,0,COMMERCIAL SUPPLIER
02-05-2023,Inclusive Economy & Housing,Insurance Claims Accomodation Bureau Limited,Rents Payable,5528,0,COMMERCIAL SUPPLIER
02-05-2023,Inclusive Economy & Housing,Insurance Claims Accomodation Bureau Limited,Rents Payable,2753.72,0,COMMERCIAL SUPPLIER
02-05-2023,Inclusive Economy & Housing,Insurance Claims Accomodation Bureau Limited,Rents Payable,2909.81,0,COMMERCIAL SUPPLIER
02-05-2023,Inclusive Economy & Housing,Insurance Claims Accomodation Bureau Limited,Rents Payable,613.75,0,COMMERCIAL SUPPLIER
02-05-2023,Inclusive Economy & Housing,Insurance Claims Accomodation Bureau Limited,Rents Payable,3809.11,0,COMMERCIAL SUPPLIER
02-05-2023,Inclusive Economy & Housing,Insurance Claims Accomodation Bureau Limited,Rents Payable,1734.51,0,COMMERCIAL SUPPLIER
02-05-2023,Inclusive Economy & Housing,Insurance Claims Accomodation Bureau Limited,Rents Payable,1659.41,0,COMMERCIAL SUPPLIER
02-05-2023,Inclusive Economy & Housing,Insurance Claims Accomodation Bureau Limited,Rents Payable,506,0,COMMERCIAL SUPPLIER
02-05-2023,Inclusive Economy & Housing,Insurance Claims Accomodation Bureau Limited,Rents Payable,327.58,0,COMMERCIAL SUPPLIER
02-05-2023,Inclusive Economy & Housing,Insurance Claims Accomodation Bureau Limited,Rents Payable,817.71,0,COMMERCIAL SUPPLIER
02-05-2023,Inclusive Economy & Housing,Insurance Claims Accomodation Bureau Limited,Rents Payable,4974.32,0,COMMERCIAL SUPPLIER
02-05-2023,Inclusive Economy & Housing,Insurance Claims Accomodation Bureau Limited,Rents Payable,1696.71,0,COMMERCIAL SUPPLIER
02-05-2023,Inclusive Economy & Housing,Insurance Claims Accomodation Bureau Limited,Rents Payable,3455.21,0,COMMERCIAL SUPPLIER
02-05-2023,Inclusive Economy & Housing,Insurance Claims Accomodation Bureau Limited,Rents Payable,3814.62,0,COMMERCIAL SUPPLIER
02-05-2023,Inclusive Economy & Housing,Insurance Claims Accomodation Bureau Limited,Rents Payable,5921.61,0,COMMERCIAL SUPPLIER
02-05-2023,Inclusive Economy & Housing,Insurance Claims Accomodation Bureau Limited,Rents Payable,725.78,0,COMMERCIAL SUPPLIER
02-05-2023,Inclusive Economy & Housing,Insurance Claims Accomodation Bureau Limited,Rents Payable,2759.7,0,COMMERCIAL SUPPLIER
02-05-2023,Inclusive Economy & Housing,Insurance Claims Accomodation Bureau Limited,Rents Payable,1846,0,COMMERCIAL SUPPLIER
02-05-2023,Inclusive Economy & Housing,Insurance Claims Accomodation Bureau Limited,Rents Payable,462,0,COMMERCIAL SUPPLIER
02-05-2023,Inclusive Economy & Housing,Insurance Claims Accomodation Bureau Limited,Rents Payable,2900.81,0,COMMERCIAL SUPPLIER
02-05-2023,Inclusive Economy & Housing,Insurance Claims Accomodation Bureau Limited,Rents Payable,1477.11,0,COMMERCIAL SUPPLIER
02-05-2023,Inclusive Economy & Housing,Insurance Claims Accomodation Bureau Limited,Rents Payable,308,0,COMMERCIAL SUPPLIER
02-05-2023,Inclusive Economy & Housing,Insurance Claims Accomodation Bureau Limited,Rents Payable,4400.72,0,COMMERCIAL SUPPLIER
02-05-2023,Inclusive Economy & Housing,Insurance Claims Accomodation Bureau Limited,Rents Payable,308,0,COMMERCIAL SUPPLIER
02-05-2023,Inclusive Economy & Housing,Insurance Claims Accomodation Bureau Limited,Rents Payable,3146.21,0,COMMERCIAL SUPPLIER
02-05-2023,Adults & Health,London Care Plc,Home Care - Private Contractors Payment,316.14,0,COMMERCIAL SUPPLIER
02-05-2023,Adults & Health,London Care Plc,Home Care - Private Contractors Payment,316.14,0,COMMERCIAL SUPPLIER
02-05-2023,Adults & Health,London Care Plc,Home Care - Private Contractors Payment,316.14,0,COMMERCIAL SUPPLIER
02-05-2023,Adults & Health,London Care Plc,Home Care - Private Contractors Payment,316.14,0,COMMERCIAL SUPPLIER
02-05-2023,Adults & Health,London Care Plc,Home Care - Private Contractors Payment,316.14,0,COMMERCIAL SUPPLIER
02-05-2023,Adults & Health,London Care Plc,Home Care - Private Contractors Payment,316.14,0,COMMERCIAL SUPPLIER
02-05-2023,Adults & Health,London Care Plc,Home Care - Private Contractors Payment,316.14,0,COMMERCIAL SUPPLIER
02-05-2023,Adults & Health,London Care Plc,Home Care - Private Contractors Payment,316.14,0,COMMERCIAL SUPPLIER
02-05-2023,Housing Revenue Account,Sharpe Pritchard LLP,Legal Fees,700,0,COMMERCIAL SUPPLIER
02-05-2023,Marketing,Askews and Holts Library Services Ltd,"Books, Publications And Resources",610.95,0,COMMERCIAL SUPPLIER
02-05-2023,Marketing,Askews and Holts Library Services Ltd,"Books, Publications And Resources",2798.16,0,COMMERCIAL SUPPLIER
02-05-2023,Marketing,Askews and Holts Library Services Ltd,"Books, Publications And Resources",1146.22,0,COMMERCIAL SUPPLIER
02-05-2023,Marketing,Askews and Holts Library Services Ltd,"Books, Publications And Resources",87.44,0,COMMERCIAL SUPPLIER
02-05-2023,Marketing,Askews and Holts Library Services Ltd,"Books, Publications And Resources",1117.71,0,COMMERCIAL SUPPLIER
02-05-2023,oneSource - Non Shared,Bellrock Property & Facilities Management Ltd,"Maintenance - Equipment, Furniture And Materials",20525.19,0,
02-05-2023,Environment and Sustainable Transport,Barking Panelcraft,"Purchase - Equipment, Furniture And Materials",5579.5,0,COMMERCIAL SUPPLIER
02-05-2023,oneSource - Non Shared,Class Affinity Projects Ltd,Land Line Telephone Costs,15627.23,0,COMMERCIAL SUPPLIER
02-05-2023,Dedicated Schools Budget,Personal Information - Redacted,Private Contractors Payment - Other,1016,0,COMMERCIAL SUPPLIER
02-05-2023,Dedicated Schools Budget,Personal Information - Redacted,Private Contractors Payment - Other,1016,0,COMMERCIAL SUPPLIER
02-05-2023,Environment and Sustainable Transport,Greener Solutions,Highway Services,17.5,0,VENDOR
02-05-2023,Environment and Sustainable Transport,Greener Solutions,Highway Services,127.5,0,VENDOR
02-05-2023,Environment and Sustainable Transport,Greener Solutions,Highway Services,137.2,0,VENDOR
02-05-2023,Environment and Sustainable Transport,Greener Solutions,Highway Services,45,0,VENDOR
02-05-2023,Children and Young People,Personal Information - Redacted,Legal Fees,8750,0,COMMERCIAL SUPPLIER
02-05-2023,RMS,A M Forktrucks Ltd,Purchase Of Vehicles Related Costs,810.33,0,COMMERCIAL SUPPLIER
02-05-2023,RMS,A M Forktrucks Ltd,Purchase Of Vehicles Related Costs,433.33,0,COMMERCIAL SUPPLIER
02-05-2023,Dedicated Schools Budget,Personal Information - Redacted,Ict Maintenance And Support,15577,0,COMMERCIAL SUPPLIER
02-05-2023,Children and Young People,UK Islamic Mission,Events,24811.84,0,NON COMMERCIAL SUPPLIER
02-05-2023,Housing Revenue Account,RGE Services Ltd,Cyclical/Planned Maintenance - Mechanical And Electrical,400,0,CIS
02-05-2023,Adults & Health,Rhythmic Care UK Ltd,Home Care - Private Contractors Payment,18.72,0,COMMERCIAL SUPPLIER
02-05-2023,Adults & Health,Rhythmic Care UK Ltd,Home Care - Private Contractors Payment,229.32,0,COMMERCIAL SUPPLIER
02-05-2023,Adults & Health,Rhythmic Care UK Ltd,Home Care - Private Contractors Payment,229.32,0,COMMERCIAL SUPPLIER
02-05-2023,Adults & Health,Rhythmic Care UK Ltd,Home Care - Private Contractors Payment,229.32,0,COMMERCIAL SUPPLIER
02-05-2023,Adults & Health,Rhythmic Care UK Ltd,Home Care - Private Contractors Payment,229.32,0,COMMERCIAL SUPPLIER
02-05-2023,Adults & Health,Rhythmic Care UK Ltd,Home Care - Private Contractors Payment,229.32,0,COMMERCIAL SUPPLIER
02-05-2023,Adults & Health,Rhythmic Care UK Ltd,Home Care - Private Contractors Payment,65.52,0,COMMERCIAL SUPPLIER
02-05-2023,Adults & Health,Rhythmic Care UK Ltd,Home Care - Private Contractors Payment,229.32,0,COMMERCIAL SUPPLIER
02-05-2023,Adults & Health,Rhythmic Care UK Ltd,Home Care - Private Contractors Payment,229.32,0,COMMERCIAL SUPPLIER
02-05-2023,Adults & Health,Rhythmic Care UK Ltd,Home Care - Private Contractors Payment,229.32,0,COMMERCIAL SUPPLIER
02-05-2023,Adults & Health,Rhythmic Care UK Ltd,Home Care - Private Contractors Payment,229.32,0,COMMERCIAL SUPPLIER
02-05-2023,Adults & Health,Rhythmic Care UK Ltd,Home Care - Private Contractors Payment,191.88,0,COMMERCIAL SUPPLIER
02-05-2023,Adults & Health,Rhythmic Care UK Ltd,Home Care - Private Contractors Payment,229.32,0,COMMERCIAL SUPPLIER
02-05-2023,Adults & Health,Rhythmic Care UK Ltd,Home Care - Private Contractors Payment,234,0,COMMERCIAL SUPPLIER
02-05-2023,Adults & Health,Rhythmic Care UK Ltd,Home Care - Private Contractors Payment,229.32,0,COMMERCIAL SUPPLIER
02-05-2023,oneSource - Non Shared,Centre Stage Engineering Ltd.,Cyclical/Planned Maintenance - Mechanical And Electrical,19627.2,0,COMMERCIAL SUPPLIER
02-05-2023,Housing Revenue Account,R. C. Cutting & Co. Limited,Responsive Repairs - Mechanical And Electrical,1925,0,COMMERCIAL SUPPLIER
02-05-2023,Housing Revenue Account,R. C. Cutting & Co. Limited,Responsive Repairs - Mechanical And Electrical,1820,0,COMMERCIAL SUPPLIER
02-05-2023,RMS,Travis Perkins Trading Company Ltd,Building Alterations And Materials,333.76,0,COMMERCIAL SUPPLIER
02-05-2023,oneSource - Non Shared,CCS Media Limited.,Ict Hardware,5625,0,COMMERCIAL SUPPLIER
02-05-2023,oneSource - Non Shared,CCS Media Limited.,Ict Hardware,5625,0,COMMERCIAL SUPPLIER
02-05-2023,oneSource,CCS Media Limited.,Ict Hardware,17.54,0,COMMERCIAL SUPPLIER
02-05-2023,oneSource,CCS Media Limited.,Ict Hardware,49.81,0,COMMERCIAL SUPPLIER
02-05-2023,oneSource,CCS Media Limited.,Ict Hardware,147,0,COMMERCIAL SUPPLIER
02-05-2023,oneSource,CCS Media Limited.,Ict Hardware,1032.6,0,COMMERCIAL SUPPLIER
02-05-2023,oneSource,CCS Media Limited.,Ict Hardware,379.5,0,COMMERCIAL SUPPLIER
02-05-2023,oneSource - Non Shared,Class Affinity Projects Ltd,Mobile Phone Costs,874.63,0,COMMERCIAL SUPPLIER
02-05-2023,Inclusive Economy & Housing,Insurance Claims Accomodation Bureau Limited,Rents Payable,1612.02,0,COMMERCIAL SUPPLIER
02-05-2023,Inclusive Economy & Housing,Insurance Claims Accomodation Bureau Limited,Rents Payable,717.22,0,COMMERCIAL SUPPLIER
02-05-2023,Inclusive Economy & Housing,Insurance Claims Accomodation Bureau Limited,Rents Payable,326.73,0,COMMERCIAL SUPPLIER
02-05-2023,Inclusive Economy & Housing,Insurance Claims Accomodation Bureau Limited,Rents Payable,750.81,0,COMMERCIAL SUPPLIER
02-05-2023,Inclusive Economy & Housing,Insurance Claims Accomodation Bureau Limited,Rents Payable,291.8,0,COMMERCIAL SUPPLIER
02-05-2023,Inclusive Economy & Housing,Insurance Claims Accomodation Bureau Limited,Rents Payable,617.2,0,COMMERCIAL SUPPLIER
02-05-2023,Inclusive Economy & Housing,Insurance Claims Accomodation Bureau Limited,Rents Payable,1654.09,0,COMMERCIAL SUPPLIER
02-05-2023,Inclusive Economy & Housing,Insurance Claims Accomodation Bureau Limited,Rents Payable,1697.96,0,COMMERCIAL SUPPLIER
02-05-2023,Inclusive Economy & Housing,Insurance Claims Accomodation Bureau Limited,Rents Payable,1796.21,0,COMMERCIAL SUPPLIER
02-05-2023,Inclusive Economy & Housing,Insurance Claims Accomodation Bureau Limited,Rents Payable,3363.07,0,COMMERCIAL SUPPLIER
02-05-2023,Inclusive Economy & Housing,Insurance Claims Accomodation Bureau Limited,Rents Payable,1388.41,0,COMMERCIAL SUPPLIER
02-05-2023,Inclusive Economy & Housing,Insurance Claims Accomodation Bureau Limited,Rents Payable,642.39,0,COMMERCIAL SUPPLIER
02-05-2023,Inclusive Economy & Housing,Insurance Claims Accomodation Bureau Limited,Rents Payable,1446.02,0,COMMERCIAL SUPPLIER
02-05-2023,Inclusive Economy & Housing,Insurance Claims Accomodation Bureau Limited,Rents Payable,2692.22,0,COMMERCIAL SUPPLIER
02-05-2023,Inclusive Economy & Housing,Insurance Claims Accomodation Bureau Limited,Rents Payable,727.13,0,COMMERCIAL SUPPLIER
02-05-2023,Inclusive Economy & Housing,Insurance Claims Accomodation Bureau Limited,Rents Payable,1125.4,0,COMMERCIAL SUPPLIER
02-05-2023,Inclusive Economy & Housing,Insurance Claims Accomodation Bureau Limited,Rents Payable,1651.2,0,COMMERCIAL SUPPLIER
02-05-2023,Inclusive Economy & Housing,Insurance Claims Accomodation Bureau Limited,Rents Payable,1304.9,0,COMMERCIAL SUPPLIER
02-05-2023,Inclusive Economy & Housing,Insurance Claims Accomodation Bureau Limited,Rents Payable,1510.63,0,COMMERCIAL SUPPLIER
02-05-2023,Inclusive Economy & Housing,Insurance Claims Accomodation Bureau Limited,Rents Payable,3145.45,0,COMMERCIAL SUPPLIER
02-05-2023,Inclusive Economy & Housing,Insurance Claims Accomodation Bureau Limited,Rents Payable,6633.26,0,COMMERCIAL SUPPLIER
02-05-2023,Inclusive Economy & Housing,Insurance Claims Accomodation Bureau Limited,Rents Payable,504.02,0,COMMERCIAL SUPPLIER
02-05-2023,Inclusive Economy & Housing,Insurance Claims Accomodation Bureau Limited,Rents Payable,7098.81,0,COMMERCIAL SUPPLIER
02-05-2023,Inclusive Economy & Housing,Insurance Claims Accomodation Bureau Limited,Rents Payable,4897.74,0,COMMERCIAL SUPPLIER
02-05-2023,Inclusive Economy & Housing,Insurance Claims Accomodation Bureau Limited,Rents Payable,1250.97,0,COMMERCIAL SUPPLIER
02-05-2023,Inclusive Economy & Housing,Insurance Claims Accomodation Bureau Limited,Rents Payable,4167.7,0,COMMERCIAL SUPPLIER
02-05-2023,Inclusive Economy & Housing,Insurance Claims Accomodation Bureau Limited,Rents Payable,4440.31,0,COMMERCIAL SUPPLIER
02-05-2023,Inclusive Economy & Housing,Insurance Claims Accomodation Bureau Limited,Rents Payable,6291.36,0,COMMERCIAL SUPPLIER
02-05-2023,Inclusive Economy & Housing,Insurance Claims Accomodation Bureau Limited,Rents Payable,6140.16,0,COMMERCIAL SUPPLIER
02-05-2023,Inclusive Economy & Housing,Insurance Claims Accomodation Bureau Limited,Rents Payable,5353.56,0,COMMERCIAL SUPPLIER
02-05-2023,Inclusive Economy & Housing,Insurance Claims Accomodation Bureau Limited,Rents Payable,12277.1,0,COMMERCIAL SUPPLIER
02-05-2023,Inclusive Economy & Housing,Insurance Claims Accomodation Bureau Limited,Rents Payable,1330.08,0,COMMERCIAL SUPPLIER
02-05-2023,Inclusive Economy & Housing,Insurance Claims Accomodation Bureau Limited,Rents Payable,5281.06,0,COMMERCIAL SUPPLIER
02-05-2023,Inclusive Economy & Housing,Insurance Claims Accomodation Bureau Limited,Rents Payable,3951.16,0,COMMERCIAL SUPPLIER
02-05-2023,Inclusive Economy & Housing,Insurance Claims Accomodation Bureau Limited,Rents Payable,8996.4,0,COMMERCIAL SUPPLIER
02-05-2023,Inclusive Economy & Housing,Insurance Claims Accomodation Bureau Limited,Rents Payable,5683.05,0,COMMERCIAL SUPPLIER
02-05-2023,Inclusive Economy & Housing,Insurance Claims Accomodation Bureau Limited,Rents Payable,3167.57,0,COMMERCIAL SUPPLIER
02-05-2023,Inclusive Economy & Housing,Insurance Claims Accomodation Bureau Limited,Rents Payable,3039.24,0,COMMERCIAL SUPPLIER
02-05-2023,Inclusive Economy & Housing,Insurance Claims Accomodation Bureau Limited,Rents Payable,8247.16,0,COMMERCIAL SUPPLIER
02-05-2023,Inclusive Economy & Housing,Insurance Claims Accomodation Bureau Limited,Rents Payable,4740.45,0,COMMERCIAL SUPPLIER
02-05-2023,Inclusive Economy & Housing,Insurance Claims Accomodation Bureau Limited,Rents Payable,4806.89,0,COMMERCIAL SUPPLIER
02-05-2023,Inclusive Economy & Housing,Insurance Claims Accomodation Bureau Limited,Rents Payable,7828.53,0,COMMERCIAL SUPPLIER
02-05-2023,Inclusive Economy & Housing,Insurance Claims Accomodation Bureau Limited,Rents Payable,911.4,0,COMMERCIAL SUPPLIER
02-05-2023,Inclusive Economy & Housing,Insurance Claims Accomodation Bureau Limited,Rents Payable,2028.04,0,COMMERCIAL SUPPLIER
02-05-2023,Inclusive Economy & Housing,Insurance Claims Accomodation Bureau Limited,Rents Payable,2118,0,COMMERCIAL SUPPLIER
02-05-2023,Inclusive Economy & Housing,Insurance Claims Accomodation Bureau Limited,Rents Payable,1418.89,0,COMMERCIAL SUPPLIER
02-05-2023,Inclusive Economy & Housing,Insurance Claims Accomodation Bureau Limited,Rents Payable,812.61,0,COMMERCIAL SUPPLIER
02-05-2023,Inclusive Economy & Housing,Insurance Claims Accomodation Bureau Limited,Rents Payable,1876.57,0,COMMERCIAL SUPPLIER
02-05-2023,Inclusive Economy & Housing,Insurance Claims Accomodation Bureau Limited,Rents Payable,5874.61,0,COMMERCIAL SUPPLIER
02-05-2023,Inclusive Economy & Housing,Insurance Claims Accomodation Bureau Limited,Rents Payable,3573.97,0,COMMERCIAL SUPPLIER
02-05-2023,Inclusive Economy & Housing,Insurance Claims Accomodation Bureau Limited,Rents Payable,3575.19,0,COMMERCIAL SUPPLIER
02-05-2023,Inclusive Economy & Housing,Insurance Claims Accomodation Bureau Limited,Rents Payable,2394.12,0,COMMERCIAL SUPPLIER
02-05-2023,Inclusive Economy & Housing,Insurance Claims Accomodation Bureau Limited,Rents Payable,4345.84,0,COMMERCIAL SUPPLIER
02-05-2023,Inclusive Economy & Housing,Insurance Claims Accomodation Bureau Limited,Rents Payable,1136.18,0,COMMERCIAL SUPPLIER
02-05-2023,Inclusive Economy & Housing,Insurance Claims Accomodation Bureau Limited,Rents Payable,5779.94,0,COMMERCIAL SUPPLIER
02-05-2023,Inclusive Economy & Housing,Insurance Claims Accomodation Bureau Limited,Rents Payable,3063.4,0,COMMERCIAL SUPPLIER
02-05-2023,Inclusive Economy & Housing,Insurance Claims Accomodation Bureau Limited,Rents Payable,2343.17,0,COMMERCIAL SUPPLIER
02-05-2023,Inclusive Economy & Housing,Insurance Claims Accomodation Bureau Limited,Rents Payable,1840.55,0,COMMERCIAL SUPPLIER
02-05-2023,Inclusive Economy & Housing,Insurance Claims Accomodation Bureau Limited,Rents Payable,5137.41,0,COMMERCIAL SUPPLIER
02-05-2023,Inclusive Economy & Housing,Insurance Claims Accomodation Bureau Limited,Rents Payable,12197.35,0,COMMERCIAL SUPPLIER
02-05-2023,Inclusive Economy & Housing,Insurance Claims Accomodation Bureau Limited,Rents Payable,667.27,0,COMMERCIAL SUPPLIER
02-05-2023,Inclusive Economy & Housing,Insurance Claims Accomodation Bureau Limited,Rents Payable,3414.09,0,COMMERCIAL SUPPLIER
02-05-2023,Inclusive Economy & Housing,Insurance Claims Accomodation Bureau Limited,Rents Payable,500.82,0,COMMERCIAL SUPPLIER
02-05-2023,Inclusive Economy & Housing,Insurance Claims Accomodation Bureau Limited,Rents Payable,351.59,0,COMMERCIAL SUPPLIER
02-05-2023,Inclusive Economy & Housing,Insurance Claims Accomodation Bureau Limited,Rents Payable,2251.61,0,COMMERCIAL SUPPLIER
02-05-2023,Inclusive Economy & Housing,Insurance Claims Accomodation Bureau Limited,Rents Payable,786.89,0,COMMERCIAL SUPPLIER
02-05-2023,Inclusive Economy & Housing,Insurance Claims Accomodation Bureau Limited,Rents Payable,1340.7,0,COMMERCIAL SUPPLIER
02-05-2023,Inclusive Economy & Housing,Insurance Claims Accomodation Bureau Limited,Rents Payable,2124.49,0,COMMERCIAL SUPPLIER
02-05-2023,Inclusive Economy & Housing,Insurance Claims Accomodation Bureau Limited,Rents Payable,1694.86,0,COMMERCIAL SUPPLIER
02-05-2023,Inclusive Economy & Housing,Insurance Claims Accomodation Bureau Limited,Rents Payable,2688.1,0,COMMERCIAL SUPPLIER
02-05-2023,Inclusive Economy & Housing,Insurance Claims Accomodation Bureau Limited,Rents Payable,1486.14,0,COMMERCIAL SUPPLIER
02-05-2023,Inclusive Economy & Housing,Insurance Claims Accomodation Bureau Limited,Rents Payable,1156.78,0,COMMERCIAL SUPPLIER
02-05-2023,Inclusive Economy & Housing,Insurance Claims Accomodation Bureau Limited,Rents Payable,416.66,0,COMMERCIAL SUPPLIER
02-05-2023,Inclusive Economy & Housing,Insurance Claims Accomodation Bureau Limited,Rents Payable,1999.55,0,COMMERCIAL SUPPLIER
02-05-2023,Inclusive Economy & Housing,Insurance Claims Accomodation Bureau Limited,Rents Payable,2802.48,0,COMMERCIAL SUPPLIER
02-05-2023,Inclusive Economy & Housing,Insurance Claims Accomodation Bureau Limited,Rents Payable,335.74,0,COMMERCIAL SUPPLIER
02-05-2023,Inclusive Economy & Housing,Insurance Claims Accomodation Bureau Limited,Rents Payable,4212.82,0,COMMERCIAL SUPPLIER
02-05-2023,Inclusive Economy & Housing,Insurance Claims Accomodation Bureau Limited,Rents Payable,2383.8,0,COMMERCIAL SUPPLIER
02-05-2023,Inclusive Economy & Housing,Insurance Claims Accomodation Bureau Limited,Rents Payable,3717.63,0,COMMERCIAL SUPPLIER
02-05-2023,Inclusive Economy & Housing,Insurance Claims Accomodation Bureau Limited,Rents Payable,3673.57,0,COMMERCIAL SUPPLIER
02-05-2023,Inclusive Economy & Housing,Insurance Claims Accomodation Bureau Limited,Rents Payable,1132.8,0,COMMERCIAL SUPPLIER
02-05-2023,Inclusive Economy & Housing,Insurance Claims Accomodation Bureau Limited,Rents Payable,10102.63,0,COMMERCIAL SUPPLIER
02-05-2023,Inclusive Economy & Housing,Insurance Claims Accomodation Bureau Limited,Rents Payable,4723.66,0,COMMERCIAL SUPPLIER
02-05-2023,Inclusive Economy & Housing,Insurance Claims Accomodation Bureau Limited,Rents Payable,4502.6,0,COMMERCIAL SUPPLIER
02-05-2023,Inclusive Economy & Housing,Insurance Claims Accomodation Bureau Limited,Rents Payable,4410.62,0,COMMERCIAL SUPPLIER
02-05-2023,Inclusive Economy & Housing,Insurance Claims Accomodation Bureau Limited,Rents Payable,2059.01,0,COMMERCIAL SUPPLIER
02-05-2023,Inclusive Economy & Housing,Insurance Claims Accomodation Bureau Limited,Rents Payable,2567.15,0,COMMERCIAL SUPPLIER
02-05-2023,Inclusive Economy & Housing,Insurance Claims Accomodation Bureau Limited,Rents Payable,10404.3,0,COMMERCIAL SUPPLIER
02-05-2023,RMS,Travis Perkins Trading Company Ltd,Building Alterations And Materials,113.4,0,COMMERCIAL SUPPLIER
02-05-2023,RMS,Travis Perkins Trading Company Ltd,Building Alterations And Materials,113.4,0,COMMERCIAL SUPPLIER
02-05-2023,RMS,Travis Perkins Trading Company Ltd,Building Alterations And Materials,453.33,0,COMMERCIAL SUPPLIER
02-05-2023,RMS,Travis Perkins Trading Company Ltd,Building Alterations And Materials,361,0,COMMERCIAL SUPPLIER
02-05-2023,RMS,Travis Perkins Trading Company Ltd,Building Alterations And Materials,298.8,0,COMMERCIAL SUPPLIER
02-05-2023,RMS,Travis Perkins Trading Company Ltd,Building Alterations And Materials,414,0,COMMERCIAL SUPPLIER
02-05-2023,RMS,Travis Perkins Trading Company Ltd,Building Alterations And Materials,1538.4,0,COMMERCIAL SUPPLIER
02-05-2023,RMS,Travis Perkins Trading Company Ltd,Building Alterations And Materials,92.16,0,COMMERCIAL SUPPLIER
02-05-2023,RMS,Travis Perkins Trading Company Ltd,Building Alterations And Materials,79.08,0,COMMERCIAL SUPPLIER
02-05-2023,RMS,Travis Perkins Trading Company Ltd,Building Alterations And Materials,72,0,COMMERCIAL SUPPLIER
02-05-2023,RMS,Travis Perkins Trading Company Ltd,Building Alterations And Materials,272.88,0,COMMERCIAL SUPPLIER
02-05-2023,RMS,Travis Perkins Trading Company Ltd,Building Alterations And Materials,360,0,COMMERCIAL SUPPLIER
02-05-2023,RMS,Travis Perkins Trading Company Ltd,Building Alterations And Materials,261,0,COMMERCIAL SUPPLIER
02-05-2023,RMS,Travis Perkins Trading Company Ltd,Building Alterations And Materials,171.36,0,COMMERCIAL SUPPLIER
02-05-2023,RMS,Travis Perkins Trading Company Ltd,Building Alterations And Materials,55.6,0,COMMERCIAL SUPPLIER
02-05-2023,RMS,Travis Perkins Trading Company Ltd,Building Alterations And Materials,37.8,0,COMMERCIAL SUPPLIER
02-05-2023,RMS,Travis Perkins Trading Company Ltd,Building Alterations And Materials,63.6,0,COMMERCIAL SUPPLIER
02-05-2023,RMS,Travis Perkins Trading Company Ltd,Building Alterations And Materials,132,0,COMMERCIAL SUPPLIER
02-05-2023,RMS,Travis Perkins Trading Company Ltd,Building Alterations And Materials,54.24,0,COMMERCIAL SUPPLIER
02-05-2023,RMS,Travis Perkins Trading Company Ltd,Building Alterations And Materials,43.4,0,COMMERCIAL SUPPLIER
02-05-2023,RMS,Travis Perkins Trading Company Ltd,Building Alterations And Materials,211.5,0,COMMERCIAL SUPPLIER
02-05-2023,RMS,Travis Perkins Trading Company Ltd,Building Alterations And Materials,482.1,0,COMMERCIAL SUPPLIER
02-05-2023,RMS,Travis Perkins Trading Company Ltd,Building Alterations And Materials,247.2,0,COMMERCIAL SUPPLIER
02-05-2023,RMS,Travis Perkins Trading Company Ltd,Building Alterations And Materials,262.7,0,COMMERCIAL SUPPLIER
02-05-2023,RMS,Travis Perkins Trading Company Ltd,Building Alterations And Materials,697.94,0,COMMERCIAL SUPPLIER
02-05-2023,RMS,Travis Perkins Trading Company Ltd,Building Alterations And Materials,600.9,0,COMMERCIAL SUPPLIER
02-05-2023,RMS,Travis Perkins Trading Company Ltd,Building Alterations And Materials,1395.88,0,COMMERCIAL SUPPLIER
02-05-2023,RMS,Travis Perkins Trading Company Ltd,Building Alterations And Materials,344.8,0,COMMERCIAL SUPPLIER
02-05-2023,RMS,Travis Perkins Trading Company Ltd,Building Alterations And Materials,1359.2,0,COMMERCIAL SUPPLIER
02-05-2023,RMS,Travis Perkins Trading Company Ltd,Building Alterations And Materials,1047.6,0,COMMERCIAL SUPPLIER
02-05-2023,RMS,Glass System Ltd,Building Alterations And Materials,568.58,0,COMMERCIAL SUPPLIER
02-05-2023,RMS,Glass System Ltd,Building Alterations And Materials,340.12,0,COMMERCIAL SUPPLIER
02-05-2023,RMS,Glass System Ltd,Building Alterations And Materials,562.38,0,COMMERCIAL SUPPLIER
02-05-2023,RMS,Glass System Ltd,Building Alterations And Materials,576.09,0,COMMERCIAL SUPPLIER
02-05-2023,RMS,Glass System Ltd,Building Alterations And Materials,579.01,0,COMMERCIAL SUPPLIER
02-05-2023,RMS,Glass System Ltd,Building Alterations And Materials,615.72,0,COMMERCIAL SUPPLIER
02-05-2023,RMS,Glass System Ltd,Building Alterations And Materials,475.1,0,COMMERCIAL SUPPLIER
02-05-2023,RMS,Glass System Ltd,Building Alterations And Materials,341.84,0,COMMERCIAL SUPPLIER
02-05-2023,Housing Revenue Account,Antony Hodari Solicitors,Legal Fees,3980,0,LEGAL SERVICES
02-05-2023,RMS,Commercial Drainage Services (Essex) Ltd,Private Contractors Payment - Other,676.5,0,COMMERCIAL SUPPLIER
02-05-2023,Adults & Health,Pulse Healthcare Ltd,Professional Services - General,72250,0,COMMERCIAL SUPPLIER
02-05-2023,Adults & Health,Pulse Healthcare Ltd,Professional Services - General,72250,0,COMMERCIAL SUPPLIER
02-05-2023,oneSource - Non Shared,Willow Pumps Limited,Waste Disposal Costs,360,0,COMMERCIAL SUPPLIER
02-05-2023,oneSource - Non Shared,Willow Pumps Limited,Waste Disposal Costs,890,0,COMMERCIAL SUPPLIER
02-05-2023,oneSource - Non Shared,Willow Pumps Limited,Waste Disposal Costs,590,0,COMMERCIAL SUPPLIER
02-05-2023,Housing Revenue Account,J.A. Steel & Son Ltd,Private Contractors Payment - Other,1673.5,0,COMMERCIAL SUPPLIER
02-05-2023,Housing Revenue Account,J.A. Steel & Son Ltd,Private Contractors Payment - Other,450,0,COMMERCIAL SUPPLIER
02-05-2023,Housing Revenue Account,J.A. Steel & Son Ltd,Private Contractors Payment - Other,511,0,COMMERCIAL SUPPLIER
02-05-2023,Environment and Sustainable Transport,Certas Energy uk ltd,Transport Fuel,39582.74,0,
02-05-2023,Environment and Sustainable Transport,Worldline IT Services UK Ltd Re Fuel Genie,Transport Fuel,1141.87,0,COMMERCIAL SUPPLIER
02-05-2023,oneSource - Non Shared,Newham Learning Partnership (Project Co) Limited,"Maintenance - Equipment, Furniture And Materials",335970.71,0,VENDOR
02-05-2023,oneSource - Non Shared,Newham Learning Partnership (Project Co) Limited,"Maintenance - Equipment, Furniture And Materials",414979.31,0,VENDOR
02-05-2023,oneSource - Non Shared,Building A Future (Newham Schools) Limited,"Maintenance - Equipment, Furniture And Materials",292527.89,0,VENDOR
02-05-2023,oneSource - Non Shared,Building A Future (Newham Schools) Limited,"Maintenance - Equipment, Furniture And Materials",77505.14,0,VENDOR
02-05-2023,oneSource - Non Shared,Building A Future (Newham Schools) Limited,"Maintenance - Equipment, Furniture And Materials",77432.53,0,VENDOR
02-05-2023,RMS,AMA Security Ltd,Private Contractors Payment - Other,1192.3,0,COMMERCIAL SUPPLIER
02-05-2023,RMS,AMA Security Ltd,Private Contractors Payment - Other,213.46,0,COMMERCIAL SUPPLIER
02-05-2023,RMS,AMA Security Ltd,Private Contractors Payment - Other,285,0,COMMERCIAL SUPPLIER
02-05-2023,oneSource - Non Shared,Royal Mail Group Plc,Postage And Courier Services,129.22,0,COMMERCIAL SUPPLIER
02-05-2023,oneSource - Non Shared,Royal Mail Group Plc,Postage And Courier Services,206.54,0,COMMERCIAL SUPPLIER
02-05-2023,Digital,NEC Software Solutions UK Ltd,Ict Software,20998.5,0,COMMERCIAL SUPPLIER
02-05-2023,RMS,Benchmarx Kitchens and Joinery,Building Alterations And Materials,1061.39,0,COMMERCIAL SUPPLIER
02-05-2023,RMS,Benchmarx Kitchens and Joinery,Building Alterations And Materials,587.51,0,COMMERCIAL SUPPLIER
02-05-2023,Children and Young People,Applecart Arts,Arts And Leisure Costs,1662,0,NON COMMERCIAL SUPPLIER
02-05-2023,Environment and Sustainable Transport,Digitec Security Ltd,Security Services (Excluding Premises),467,0,COMMERCIAL SUPPLIER
02-05-2023,RMS,Personal Information - Redacted,Compensation,1200,0,INDIVIDUALS
02-05-2023,Environment and Sustainable Transport,Alliance Automotive UK CV Ltd t/a C V Components,Highway Services,2809.17,0,COMMERCIAL SUPPLIER
02-05-2023,oneSource,Stripe OLT,Ict Maintenance And Support,14595,0,VENDOR
02-05-2023,Inclusive Economy & Housing,London Network for Pest Solutions Ltd,Private Contractors Payment - Other,225,0,COMMERCIAL SUPPLIER
02-05-2023,RMS,London Network for Pest Solutions Ltd,Private Contractors Payment - Other,600,0,COMMERCIAL SUPPLIER
02-05-2023,RMS,London Network for Pest Solutions Ltd,Private Contractors Payment - Other,575,0,COMMERCIAL SUPPLIER
02-05-2023,RMS,London Network for Pest Solutions Ltd,Private Contractors Payment - Other,495,0,COMMERCIAL SUPPLIER
02-05-2023,RMS,London Network for Pest Solutions Ltd,Private Contractors Payment - Other,425,0,COMMERCIAL SUPPLIER
02-05-2023,RMS,London Network for Pest Solutions Ltd,Private Contractors Payment - Other,525,0,COMMERCIAL SUPPLIER
02-05-2023,RMS,London Network for Pest Solutions Ltd,Private Contractors Payment - Other,245,0,COMMERCIAL SUPPLIER
02-05-2023,oneSource - Non Shared,London Network for Pest Solutions Ltd,Salaries,390,0,COMMERCIAL SUPPLIER
02-05-2023,Inclusive Economy & Housing,Ronin Ltd,Staff Recruitment Costs,2587.5,0,COMMERCIAL SUPPLIER
02-05-2023,Children and Young People,Personal Information - Redacted,Legal Fees,950,0,LEGAL SERVICES
02-05-2023,Children and Young People,Personal Information - Redacted,Legal Fees,800,0,INDIVIDUALS
02-05-2023,Children and Young People,Personal Information - Redacted,Legal Fees,800,0,LEGAL SERVICES
02-05-2023,Children and Young People,Personal Information - Redacted,Legal Fees,510,0,LEGAL SERVICES
02-05-2023,Inclusive Economy & Housing,Public Practice,Professional Services - General,6000,0,COMMERCIAL SUPPLIER
02-05-2023,Environment and Sustainable Transport,Riverside Truck Rental Ltd,Vehicle Hire,3980,0,COMMERCIAL SUPPLIER
02-05-2023,Environment and Sustainable Transport,Riverside Truck Rental Ltd,Vehicle Hire,3980,0,COMMERCIAL SUPPLIER
02-05-2023,Environment and Sustainable Transport,Riverside Truck Rental Ltd,Vehicle Hire,3980,0,COMMERCIAL SUPPLIER
02-05-2023,Environment and Sustainable Transport,Riverside Truck Rental Ltd,Vehicle Hire,3980,0,COMMERCIAL SUPPLIER
02-05-2023,Environment and Sustainable Transport,Riverside Truck Rental Ltd,Vehicle Hire,4500,0,COMMERCIAL SUPPLIER
02-05-2023,Environment and Sustainable Transport,Riverside Truck Rental Ltd,Vehicle Hire,4500,0,COMMERCIAL SUPPLIER
02-05-2023,Environment and Sustainable Transport,Andrew Pritchard Ltd,Consultancy Fees,4800,0,INDIVIDUALS
02-05-2023,Children and Young People,Personal Information - Redacted,Ict Software,7.99,0,Employee
02-05-2023,Children and Young People,Personal Information - Redacted,Printing,24.25,0,Employee
02-05-2023,Children and Young People,Personal Information - Redacted,Ict Software,76.67,0,Employee
02-05-2023,Housing Revenue Account,Civica UK Ltd,Ict Licences,13564.83,0,COMMERCIAL SUPPLIER
02-05-2023,Housing Revenue Account,Matthews & Co,Private Contractors Payment - Other,4000,0,COMMERCIAL SUPPLIER
02-05-2023,Housing Revenue Account,Matthews & Co,Private Contractors Payment - Other,275,0,COMMERCIAL SUPPLIER
02-05-2023,Adults & Health,Rosy Care Limited,Payments To Voluntary Sector,80,0,NON COMMERCIAL SUPPLIER
02-05-2023,Adults & Health,Rosy Care Limited,Daycare - Private Contractors Payment,440,0,NON COMMERCIAL SUPPLIER
02-05-2023,Adults & Health,Rosy Care Limited,Payments To Voluntary Sector,80,0,NON COMMERCIAL SUPPLIER
02-05-2023,Adults & Health,Rosy Care Limited,Daycare - Private Contractors Payment,220,0,NON COMMERCIAL SUPPLIER
02-05-2023,Adults & Health,Rosy Care Limited,Daycare - Private Contractors Payment,440,0,NON COMMERCIAL SUPPLIER
02-05-2023,Adults & Health,Rosy Care Limited,Payments To Voluntary Sector,80,0,NON COMMERCIAL SUPPLIER
02-05-2023,Adults & Health,Rosy Care Limited,Daycare - Private Contractors Payment,440,0,NON COMMERCIAL SUPPLIER
02-05-2023,Adults & Health,Rosy Care Limited,Daycare - Private Contractors Payment,220,0,NON COMMERCIAL SUPPLIER
02-05-2023,Adults & Health,Rosy Care Limited,Payments To Voluntary Sector,40,0,NON COMMERCIAL SUPPLIER
02-05-2023,Adults & Health,Rosy Care Limited,Payments To Voluntary Sector,40,0,NON COMMERCIAL SUPPLIER
02-05-2023,Dedicated Schools Budget,Personal Information - Redacted,Schools - Transfer Payment,12506.67,0,NON COMMERCIAL SUPPLIER
02-05-2023,Dedicated Schools Budget,Personal Information - Redacted,Schools - Transfer Payment,31740,0,NON COMMERCIAL SUPPLIER
02-05-2023,Dedicated Schools Budget,Personal Information - Redacted,Schools - Transfer Payment,5325,0,VENDOR
02-05-2023,Dedicated Schools Budget,Personal Information - Redacted,Schools - Transfer Payment,35920,0,COMMERCIAL SUPPLIER
02-05-2023,Dedicated Schools Budget,Personal Information - Redacted,Schools - Transfer Payment,49277.86,0,VENDOR
02-05-2023,Dedicated Schools Budget,Personal Information - Redacted,Schools - Transfer Payment,28935,0,VENDOR
02-05-2023,Dedicated Schools Budget,Personal Information - Redacted,Schools - Transfer Payment,19714.78,0,COMMERCIAL SUPPLIER
02-05-2023,Dedicated Schools Budget,Personal Information - Redacted,Schools - Transfer Payment,9710.58,0,COMMERCIAL SUPPLIER
02-05-2023,Dedicated Schools Budget,Personal Information - Redacted,Schools - Transfer Payment,16174.58,0,COMMERCIAL SUPPLIER
02-05-2023,Dedicated Schools Budget,Personal Information - Redacted,Schools - Transfer Payment,15121.83,0,VENDOR
02-05-2023,Dedicated Schools Budget,Personal Information - Redacted,Schools - Transfer Payment,15761.58,0,COMMERCIAL SUPPLIER
02-05-2023,Dedicated Schools Budget,Personal Information - Redacted,Schools - Transfer Payment,17702.33,0,COMMERCIAL SUPPLIER
02-05-2023,Dedicated Schools Budget,Personal Information - Redacted,Schools - Transfer Payment,24700,0,INDIVIDUALS
02-05-2023,Dedicated Schools Budget,Personal Information - Redacted,Schools - Transfer Payment,2530,0,COMMERCIAL SUPPLIER
02-05-2023,Dedicated Schools Budget,Personal Information - Redacted,Schools - Transfer Payment,10530,0,COMMERCIAL SUPPLIER
02-05-2023,Dedicated Schools Budget,Personal Information - Redacted,Schools - Transfer Payment,15127.33,0,NON COMMERCIAL SUPPLIER
02-05-2023,Dedicated Schools Budget,Personal Information - Redacted,Schools - Transfer Payment,65666.88,0,VENDOR
02-05-2023,Dedicated Schools Budget,Personal Information - Redacted,Schools - Transfer Payment,64468,0,COMMERCIAL SUPPLIER
02-05-2023,Dedicated Schools Budget,Personal Information - Redacted,Schools - Transfer Payment,49668.5,0,COMMERCIAL SUPPLIER
02-05-2023,Dedicated Schools Budget,Personal Information - Redacted,Schools - Transfer Payment,19710,0,COMMERCIAL SUPPLIER
02-05-2023,Dedicated Schools Budget,Personal Information - Redacted,Schools - Transfer Payment,14915,0,COMMERCIAL SUPPLIER
02-05-2023,Dedicated Schools Budget,Personal Information - Redacted,Schools - Transfer Payment,38875.94,0,NON COMMERCIAL SUPPLIER
02-05-2023,Dedicated Schools Budget,Personal Information - Redacted,Schools - Transfer Payment,52727.17,0,COMMERCIAL SUPPLIER
02-05-2023,Dedicated Schools Budget,Personal Information - Redacted,Schools - Transfer Payment,16554.33,0,NON COMMERCIAL SUPPLIER
02-05-2023,Dedicated Schools Budget,Personal Information - Redacted,Schools - Transfer Payment,61261.83,0,COMMERCIAL SUPPLIER
02-05-2023,Dedicated Schools Budget,Personal Information - Redacted,Schools - Transfer Payment,10536.67,0,COMMERCIAL SUPPLIER
02-05-2023,Dedicated Schools Budget,Personal Information - Redacted,Schools - Transfer Payment,23145.25,0,NON COMMERCIAL SUPPLIER
02-05-2023,Dedicated Schools Budget,Personal Information - Redacted,Schools - Transfer Payment,54725,0,VENDOR
02-05-2023,Dedicated Schools Budget,Personal Information - Redacted,Schools - Transfer Payment,18932.78,0,COMMERCIAL SUPPLIER
02-05-2023,Dedicated Schools Budget,Personal Information - Redacted,Schools - Transfer Payment,366888,0,NON COMMERCIAL SUPPLIER
02-05-2023,Dedicated Schools Budget,Personal Information - Redacted,Schools - Transfer Payment,17200,0,COMMERCIAL SUPPLIER
02-05-2023,Dedicated Schools Budget,Personal Information - Redacted,Schools - Transfer Payment,14635,0,VENDOR
02-05-2023,Dedicated Schools Budget,Personal Information - Redacted,Schools - Transfer Payment,29059.5,0,COMMERCIAL SUPPLIER
02-05-2023,Dedicated Schools Budget,Personal Information - Redacted,Schools - Transfer Payment,38043,0,VENDOR
02-05-2023,Dedicated Schools Budget,Personal Information - Redacted,Schools - Transfer Payment,22403.5,0,COMMERCIAL SUPPLIER
02-05-2023,Dedicated Schools Budget,Personal Information - Redacted,Schools - Transfer Payment,18195,0,COMMERCIAL SUPPLIER
02-05-2023,Dedicated Schools Budget,Personal Information - Redacted,Schools - Transfer Payment,9242.83,0,COMMERCIAL SUPPLIER
02-05-2023,Dedicated Schools Budget,Personal Information - Redacted,Schools - Transfer Payment,25035,0,NON COMMERCIAL SUPPLIER
02-05-2023,Dedicated Schools Budget,Personal Information - Redacted,Schools - Transfer Payment,51751.04,0,NON COMMERCIAL SUPPLIER
02-05-2023,Dedicated Schools Budget,Personal Information - Redacted,Schools - Transfer Payment,41664.92,0,LOCAL AUTHORITY SERVICES
02-05-2023,Dedicated Schools Budget,Personal Information - Redacted,Schools - Transfer Payment,26138,0,COMMERCIAL SUPPLIER
02-05-2023,Dedicated Schools Budget,Personal Information - Redacted,Schools - Transfer Payment,22890.03,0,COMMERCIAL SUPPLIER
02-05-2023,Dedicated Schools Budget,Personal Information - Redacted,Schools - Transfer Payment,31180,0,COMMERCIAL SUPPLIER
02-05-2023,Dedicated Schools Budget,Personal Information - Redacted,Schools - Transfer Payment,17035,0,COMMERCIAL SUPPLIER
02-05-2023,Dedicated Schools Budget,Personal Information - Redacted,Schools - Transfer Payment,24219.75,0,COMMERCIAL SUPPLIER
02-05-2023,Dedicated Schools Budget,Personal Information - Redacted,Schools - Transfer Payment,22804.75,0,COMMERCIAL SUPPLIER
02-05-2023,Dedicated Schools Budget,Personal Information - Redacted,Schools - Transfer Payment,28861.67,0,NON COMMERCIAL SUPPLIER
02-05-2023,Dedicated Schools Budget,Personal Information - Redacted,Schools - Transfer Payment,7495,0,VENDOR
02-05-2023,Dedicated Schools Budget,Personal Information - Redacted,Schools - Transfer Payment,10050,0,INDIVIDUALS
02-05-2023,Dedicated Schools Budget,Personal Information - Redacted,Schools - Transfer Payment,128023,0,COMMERCIAL SUPPLIER
02-05-2023,Dedicated Schools Budget,Personal Information - Redacted,Schools - Transfer Payment,3621,0,NON COMMERCIAL SUPPLIER
02-05-2023,Dedicated Schools Budget,Personal Information - Redacted,Schools - Transfer Payment,51892.5,0,COMMERCIAL SUPPLIER
02-05-2023,Dedicated Schools Budget,Personal Information - Redacted,Schools - Transfer Payment,25610.9,0,LOCAL AUTHORITY SERVICES
02-05-2023,Dedicated Schools Budget,Personal Information - Redacted,Schools - Transfer Payment,20442.5,0,COMMERCIAL SUPPLIER
02-05-2023,Dedicated Schools Budget,Personal Information - Redacted,Schools - Transfer Payment,14152.5,0,COMMERCIAL SUPPLIER
02-05-2023,Dedicated Schools Budget,Personal Information - Redacted,Schools - Transfer Payment,28305,0,COMMERCIAL SUPPLIER
02-05-2023,Dedicated Schools Budget,Personal Information - Redacted,Schools - Transfer Payment,22015,0,COMMERCIAL SUPPLIER
02-05-2023,Dedicated Schools Budget,Personal Information - Redacted,Schools - Transfer Payment,16932,0,VENDOR
02-05-2023,Dedicated Schools Budget,Personal Information - Redacted,Schools - Transfer Payment,20442.5,0,COMMERCIAL SUPPLIER
02-05-2023,Dedicated Schools Budget,Personal Information - Redacted,Schools - Transfer Payment,22015,0,COMMERCIAL SUPPLIER
02-05-2023,Dedicated Schools Budget,Personal Information - Redacted,Schools - Transfer Payment,18870,0,COMMERCIAL SUPPLIER
02-05-2023,Dedicated Schools Budget,Personal Information - Redacted,Schools - Transfer Payment,24531,0,COMMERCIAL SUPPLIER
02-05-2023,Dedicated Schools Budget,Personal Information - Redacted,Schools - Transfer Payment,18870,0,NON COMMERCIAL SUPPLIER
02-05-2023,Dedicated Schools Budget,Personal Information - Redacted,Schools - Transfer Payment,53465,0,NON COMMERCIAL SUPPLIER
02-05-2023,Dedicated Schools Budget,Personal Information - Redacted,Schools - Transfer Payment,28908.5,0,COMMERCIAL SUPPLIER
02-05-2023,Children and Young People,Little Ilford School,Internal Recharges,2767,0,VENDOR
02-05-2023,Children and Young People,Keir Hardie Primary School,Internal Recharges,1333,0,VENDOR
02-05-2023,Children and Young People,Personal Information - Redacted,Schools - Transfer Payment,1567,0,COMMERCIAL SUPPLIER
02-05-2023,Children and Young People,Personal Information - Redacted,Schools - Transfer Payment,2000,0,NON COMMERCIAL SUPPLIER
02-05-2023,Children and Young People,Rebecca Cheetham Nursery & Children's Centre,Internal Recharges,933,0,VENDOR
02-05-2023,Children and Young People,Oliver Thomas Nursery School,Internal Recharges,933,0,VENDOR
02-05-2023,Dedicated Schools Budget,Personal Information - Redacted,Private Contractors Payment - Other,8473,0,NON COMMERCIAL SUPPLIER
02-05-2023,Dedicated Schools Budget,Personal Information - Redacted,Private Contractors Payment - Other,15992,0,NON COMMERCIAL SUPPLIER
02-05-2023,Children and Young People,A DAKRI AND CO LTD T/A GREENLEAF HOTEL,Section 17 - Private Contractors Payment,490,0,CARERS
02-05-2023,Marketing,Caitlin Chescoe Photography,Arts And Leisure Costs,500,0,COMMERCIAL SUPPLIER
02-05-2023,oneSource - Non Shared,Specialist Computer Centres Plc,Ict Licences,5885.5,0,COMMERCIAL SUPPLIER
02-05-2023,Children and Young People,Personal Information - Redacted,Kinship Placement - Private Contractors Payment,255,0,INDIVIDUALS
02-05-2023,Children and Young People,Personal Information - Redacted,Kinship Placement - Private Contractors Payment,255,0,INDIVIDUALS
02-05-2023,Children and Young People,Personal Information - Redacted,Kinship Placement - Private Contractors Payment,256.68,0,VENDOR
02-05-2023,Children and Young People,Personal Information - Redacted,Kinship Placement - Private Contractors Payment,256.68,0,INDIVIDUALS
02-05-2023,Children and Young People,PFS Prepaid Financial Services,Section 17 - Private Contractors Payment,294,0,INDIVIDUALS
02-05-2023,Children and Young People,PFS Prepaid Financial Services,Weekly Allowances - Private Contractors Payment,252,0,INDIVIDUALS
02-05-2023,Children and Young People,Personal Information - Redacted,Client Expenses - Third Party,1248,0,INDIVIDUALS
02-05-2023,Children and Young People,Personal Information - Redacted,Membership And Subscriptions,1027.06,0,INDIVIDUALS
02-05-2023,Children and Young People,PFS Prepaid Financial Services,Equipment & Adaptation - Private Contractors Payment,600,0,INDIVIDUALS
02-05-2023,Children and Young People,PFS Prepaid Financial Services,Weekly Allowances - Private Contractors Payment,490.2,0,INDIVIDUALS
02-05-2023,Housing Revenue Account,MJV Solicitors,Legal Fees,8000,0,NON COMMERCIAL SUPPLIER
02-05-2023,Marketing,Aspire Support Learn,Premises Hire - Facilities,5000,0,COMMERCIAL SUPPLIER
02-05-2023,Inclusive Economy & Housing,Castle Water Ltd,Water And Sewerage,159.08,0,COMMERCIAL SUPPLIER
02-05-2023,Inclusive Economy & Housing,Castle Water Ltd,Water And Sewerage,138.73,0,COMMERCIAL SUPPLIER
02-05-2023,RMS,Travis Perkins Trading Company Ltd,"Purchase - Equipment, Furniture And Materials",277.65,0,COMMERCIAL SUPPLIER
02-05-2023,RMS,Travis Perkins Trading Company Ltd,"Purchase - Equipment, Furniture And Materials",14540.55,0,COMMERCIAL SUPPLIER
02-05-2023,RMS,Travis Perkins Trading Company Ltd,"Purchase - Equipment, Furniture And Materials",170.56,0,COMMERCIAL SUPPLIER
02-05-2023,RMS,Travis Perkins Trading Company Ltd,"Purchase - Equipment, Furniture And Materials",356.25,0,COMMERCIAL SUPPLIER
02-05-2023,RMS,Travis Perkins Trading Company Ltd,"Purchase - Equipment, Furniture And Materials",62934.57,0,COMMERCIAL SUPPLIER
02-05-2023,RMS,Travis Perkins Trading Company Ltd,"Purchase - Equipment, Furniture And Materials",1716.45,0,COMMERCIAL SUPPLIER
02-05-2023,RMS,Travis Perkins Trading Company Ltd,"Purchase - Equipment, Furniture And Materials",1276.17,0,COMMERCIAL SUPPLIER
02-05-2023,RMS,Travis Perkins Trading Company Ltd,"Purchase - Equipment, Furniture And Materials",3275.78,0,COMMERCIAL SUPPLIER
02-05-2023,RMS,Travis Perkins Trading Company Ltd,"Purchase - Equipment, Furniture And Materials",6560.8,0,COMMERCIAL SUPPLIER
02-05-2023,Housing Revenue Account,Swan Housing Group,Professional Services - General,889368.59,0,VENDOR
02-05-2023,Adults & Health,Sahara Homes Ltd,Residential Placements - Private Contractors Payment,28680.59,0,COMMERCIAL SUPPLIER
02-05-2023,Marketing,Newham community recycling,Events,3075,0,COMMERCIAL SUPPLIER
03-05-2023,Inclusive Economy & Housing,Insurance Claims Accomodation Bureau Limited,Rents Payable,862.73,0,COMMERCIAL SUPPLIER
03-05-2023,Marketing,Newham community recycling,Events,3075,0,COMMERCIAL SUPPLIER
03-05-2023,Inclusive Economy & Housing,Insurance Claims Accomodation Bureau Limited,Rents Payable,1155,0,COMMERCIAL SUPPLIER
03-05-2023,Inclusive Economy & Housing,Insurance Claims Accomodation Bureau Limited,Rents Payable,693,0,COMMERCIAL SUPPLIER
03-05-2023,Transformation,Sully Form Ltd,"Maintenance - Equipment, Furniture And Materials",380,0,VENDOR
03-05-2023,Inclusive Economy & Housing,Insurance Claims Accomodation Bureau Limited,Rents Payable,5175.32,0,COMMERCIAL SUPPLIER
03-05-2023,Inclusive Economy & Housing,Insurance Claims Accomodation Bureau Limited,Rents Payable,1699.01,0,COMMERCIAL SUPPLIER
03-05-2023,Inclusive Economy & Housing,Insurance Claims Accomodation Bureau Limited,Rents Payable,5594,0,COMMERCIAL SUPPLIER
03-05-2023,Inclusive Economy & Housing,Insurance Claims Accomodation Bureau Limited,Rents Payable,3804.92,0,COMMERCIAL SUPPLIER
03-05-2023,Inclusive Economy & Housing,Insurance Claims Accomodation Bureau Limited,Rents Payable,616,0,COMMERCIAL SUPPLIER
03-05-2023,Inclusive Economy & Housing,Insurance Claims Accomodation Bureau Limited,Rents Payable,308,0,COMMERCIAL SUPPLIER
03-05-2023,Inclusive Economy & Housing,Insurance Claims Accomodation Bureau Limited,Rents Payable,462,0,COMMERCIAL SUPPLIER
03-05-2023,Adults & Health,London Care Plc,Home Care - Private Contractors Payment,435.89,0,COMMERCIAL SUPPLIER
03-05-2023,Adults & Health,London Care Plc,Home Care - Private Contractors Payment,435.89,0,COMMERCIAL SUPPLIER
03-05-2023,Adults & Health,London Care Plc,Home Care - Private Contractors Payment,919.68,0,COMMERCIAL SUPPLIER
03-05-2023,Inclusive Economy & Housing,Hays Specialist Recruitment Ltd,Staff Recruitment Costs,3315.75,0,VENDOR
03-05-2023,Inclusive Economy & Housing,Hays Specialist Recruitment Ltd,Staff Recruitment Costs,2171.55,0,VENDOR
03-05-2023,Inclusive Economy & Housing,Hays Specialist Recruitment Ltd,Staff Recruitment Costs,2586.2,0,VENDOR
03-05-2023,Environment and Sustainable Transport,Mjm Supplies Ltd,Highway Services,280.5,0,VENDOR
03-05-2023,Environment and Sustainable Transport,Exit Foundation,Private Contractors Payment - Other,5000,0,NON COMMERCIAL SUPPLIER
03-05-2023,Children and Young People,Goldline Cars Ltd,Client Transport,5320,0,COMMERCIAL SUPPLIER
03-05-2023,Children and Young People,Goldline Cars Ltd,Client Transport,630,0,COMMERCIAL SUPPLIER
03-05-2023,Children and Young People,Goldline Cars Ltd,Client Transport,330,0,COMMERCIAL SUPPLIER
03-05-2023,Children and Young People,Goldline Cars Ltd,Client Transport,690,0,COMMERCIAL SUPPLIER
03-05-2023,Children and Young People,Goldline Cars Ltd,Client Transport,810,0,COMMERCIAL SUPPLIER
03-05-2023,Children and Young People,Goldline Cars Ltd,Client Transport,410,0,COMMERCIAL SUPPLIER
03-05-2023,Environment and Sustainable Transport,Greener Solutions,Highway Services,187.5,0,VENDOR
03-05-2023,Environment and Sustainable Transport,Greener Solutions,Highway Services,165,0,VENDOR
03-05-2023,Environment and Sustainable Transport,Greener Solutions,Highway Services,29.5,0,VENDOR
03-05-2023,Marketing,GB Macks Skips,Refuse Collection,530,0,COMMERCIAL SUPPLIER
03-05-2023,Housing Revenue Account,Reliable Fire Protection Services Ltd,Health And Safety Works,544,0,COMMERCIAL SUPPLIER
03-05-2023,Dedicated Schools Budget,Personal Information - Redacted,Professional Services - General,2730,0,COMMERCIAL SUPPLIER
03-05-2023,Dedicated Schools Budget,Personal Information - Redacted,Professional Services - General,2260,0,COMMERCIAL SUPPLIER
03-05-2023,Dedicated Schools Budget,Personal Information - Redacted,Professional Services - General,480,0,COMMERCIAL SUPPLIER
03-05-2023,Dedicated Schools Budget,Personal Information - Redacted,Professional Services - General,2988,0,COMMERCIAL SUPPLIER
03-05-2023,Dedicated Schools Budget,Personal Information - Redacted,Professional Services - General,1230,0,COMMERCIAL SUPPLIER
03-05-2023,Dedicated Schools Budget,Personal Information - Redacted,Professional Services - General,2848,0,COMMERCIAL SUPPLIER
03-05-2023,Housing Revenue Account,Gas Contract Services LTD,Cyclical/Planned Maintenance - Mechanical And Electrical,1867.5,0,LOCAL AUTHORITY SERVICES
03-05-2023,Dedicated Schools Budget,Personal Information - Redacted,Professional Services - General,1958,0,COMMERCIAL SUPPLIER
03-05-2023,Dedicated Schools Budget,Personal Information - Redacted,Professional Services - General,1602,0,COMMERCIAL SUPPLIER
03-05-2023,Dedicated Schools Budget,Personal Information - Redacted,Professional Services - General,1068,0,COMMERCIAL SUPPLIER
03-05-2023,Inclusive Economy & Housing,Wates Property Services Ltd,Facilities Management,9367.65,0,CIS
03-05-2023,Dedicated Schools Budget,Personal Information - Redacted,Professional Services - General,2670,0,COMMERCIAL SUPPLIER
03-05-2023,Children and Young People,Bridging Gaps Fostering Agency,Residential Placements - Private Contractors Payment,364.29,0,COMMERCIAL SUPPLIER
03-05-2023,Children and Young People,Bridging Gaps Fostering Agency,Residential Placements - Private Contractors Payment,850,0,COMMERCIAL SUPPLIER
03-05-2023,Children and Young People,Bridging Gaps Fostering Agency,Residential Placements - Private Contractors Payment,850,0,COMMERCIAL SUPPLIER
03-05-2023,Children and Young People,Bridging Gaps Fostering Agency,Residential Placements - Private Contractors Payment,850,0,COMMERCIAL SUPPLIER
03-05-2023,Children and Young People,Bridging Gaps Fostering Agency,Residential Placements - Private Contractors Payment,850,0,COMMERCIAL SUPPLIER
03-05-2023,Adults & Health,Rhythmic Care UK Ltd,Home Care - Private Contractors Payment,201.18,0,COMMERCIAL SUPPLIER
03-05-2023,Adults & Health,Rhythmic Care UK Ltd,Home Care - Private Contractors Payment,201.18,0,COMMERCIAL SUPPLIER
03-05-2023,Adults & Health,Rhythmic Care UK Ltd,Home Care - Private Contractors Payment,165.84,0,COMMERCIAL SUPPLIER
03-05-2023,Adults & Health,Rhythmic Care UK Ltd,Home Care - Private Contractors Payment,201.18,0,COMMERCIAL SUPPLIER
03-05-2023,Adults & Health,Rhythmic Care UK Ltd,Home Care - Private Contractors Payment,172.44,0,COMMERCIAL SUPPLIER
03-05-2023,Adults & Health,Rhythmic Care UK Ltd,Home Care - Private Contractors Payment,201.18,0,COMMERCIAL SUPPLIER
03-05-2023,Adults & Health,Rhythmic Care UK Ltd,Home Care - Private Contractors Payment,201.18,0,COMMERCIAL SUPPLIER
03-05-2023,Adults & Health,Rhythmic Care UK Ltd,Home Care - Private Contractors Payment,201.18,0,COMMERCIAL SUPPLIER
03-05-2023,Adults & Health,Rhythmic Care UK Ltd,Home Care - Private Contractors Payment,201.18,0,COMMERCIAL SUPPLIER
03-05-2023,Adults & Health,Rhythmic Care UK Ltd,Home Care - Private Contractors Payment,201.18,0,COMMERCIAL SUPPLIER
03-05-2023,Adults & Health,Rhythmic Care UK Ltd,Home Care - Private Contractors Payment,201.18,0,COMMERCIAL SUPPLIER
03-05-2023,Adults & Health,Rhythmic Care UK Ltd,Home Care - Private Contractors Payment,201.18,0,COMMERCIAL SUPPLIER
03-05-2023,Adults & Health,Rhythmic Care UK Ltd,Home Care - Private Contractors Payment,201.18,0,COMMERCIAL SUPPLIER
03-05-2023,Adults & Health,Rhythmic Care UK Ltd,Home Care - Private Contractors Payment,201.18,0,COMMERCIAL SUPPLIER
03-05-2023,Adults & Health,Rhythmic Care UK Ltd,Home Care - Private Contractors Payment,201.18,0,COMMERCIAL SUPPLIER
03-05-2023,Adults & Health,Rhythmic Care UK Ltd,Home Care - Private Contractors Payment,57.48,0,COMMERCIAL SUPPLIER
03-05-2023,Adults & Health,Rhythmic Care UK Ltd,Home Care - Private Contractors Payment,57.48,0,COMMERCIAL SUPPLIER
03-05-2023,Adults & Health,Rhythmic Care UK Ltd,Home Care - Private Contractors Payment,86.22,0,COMMERCIAL SUPPLIER
03-05-2023,Environment and Sustainable Transport,Ford Motor Company Ltd t/a PartsPlus,Highway Services,0.02,0,COMMERCIAL SUPPLIER
03-05-2023,Environment and Sustainable Transport,Ford Motor Company Ltd t/a PartsPlus,Highway Services,45.02,0,COMMERCIAL SUPPLIER
03-05-2023,Environment and Sustainable Transport,Ford Motor Company Ltd t/a PartsPlus,Highway Services,23.99,0,COMMERCIAL SUPPLIER
03-05-2023,Environment and Sustainable Transport,Ford Motor Company Ltd t/a PartsPlus,Highway Services,71.97,0,COMMERCIAL SUPPLIER
03-05-2023,Environment and Sustainable Transport,Ford Motor Company Ltd t/a PartsPlus,Highway Services,9.8,0,COMMERCIAL SUPPLIER
03-05-2023,Environment and Sustainable Transport,Ford Motor Company Ltd t/a PartsPlus,Highway Services,67.5,0,COMMERCIAL SUPPLIER
03-05-2023,Environment and Sustainable Transport,Ford Motor Company Ltd t/a PartsPlus,Highway Services,6.99,0,COMMERCIAL SUPPLIER
03-05-2023,Environment and Sustainable Transport,Ford Motor Company Ltd t/a PartsPlus,Highway Services,22.78,0,COMMERCIAL SUPPLIER
03-05-2023,Environment and Sustainable Transport,Ford Motor Company Ltd t/a PartsPlus,Highway Services,9.8,0,COMMERCIAL SUPPLIER
03-05-2023,Environment and Sustainable Transport,Ford Motor Company Ltd t/a PartsPlus,Highway Services,6.99,0,COMMERCIAL SUPPLIER
03-05-2023,Environment and Sustainable Transport,Ford Motor Company Ltd t/a PartsPlus,Highway Services,22.78,0,COMMERCIAL SUPPLIER
03-05-2023,oneSource,Hound Envelopes Ltd,Printing,313,0,COMMERCIAL SUPPLIER
03-05-2023,oneSource,Hound Envelopes Ltd,Printing,1513.5,0,COMMERCIAL SUPPLIER
03-05-2023,oneSource,Hound Envelopes Ltd,Printing,6842.5,0,COMMERCIAL SUPPLIER
03-05-2023,oneSource,Hound Envelopes Ltd,Printing,344,0,COMMERCIAL SUPPLIER
03-05-2023,RMS,Blackburn & CO. Ltd,Building Alterations And Materials,325,0,CIS
03-05-2023,RMS,Blackburn & CO. Ltd,Building Alterations And Materials,325,0,CIS
03-05-2023,RMS,Blackburn & CO. Ltd,Security Services (Excluding Premises),3025,0,CIS
03-05-2023,Children and Young People,Three Strings Limited,Legal Fees,5375.56,0,NON COMMERCIAL SUPPLIER
03-05-2023,Housing Revenue Account,Sayers (Car Hire),Client Transport,2138,0,VENDOR
03-05-2023,Housing Revenue Account,Sayers (Car Hire),Client Transport,2822,0,VENDOR
03-05-2023,Housing Revenue Account,Sayers (Car Hire),Client Transport,302,0,VENDOR
03-05-2023,Housing Revenue Account,Sayers (Car Hire),Client Transport,1823.5,0,VENDOR
03-05-2023,Housing Revenue Account,John Rowan & Partners,Facilities Management,2500,0,NON COMMERCIAL SUPPLIER
03-05-2023,Environment and Sustainable Transport,London Councils,Payment To Other Local Authorities,1500,0,CENTRAL/GOVERNMENT DEPARTMENTS
03-05-2023,Marketing,Reflex International,Printing,912.5,0,NON COMMERCIAL SUPPLIER
03-05-2023,Inclusive Economy & Housing,Insurance Claims Accomodation Bureau Limited,Rents Payable,2326.99,0,COMMERCIAL SUPPLIER
03-05-2023,Inclusive Economy & Housing,Insurance Claims Accomodation Bureau Limited,Rents Payable,5768.55,0,COMMERCIAL SUPPLIER
03-05-2023,Inclusive Economy & Housing,Insurance Claims Accomodation Bureau Limited,Rents Payable,2562.28,0,COMMERCIAL SUPPLIER
03-05-2023,Inclusive Economy & Housing,Insurance Claims Accomodation Bureau Limited,Rents Payable,1516.84,0,COMMERCIAL SUPPLIER
03-05-2023,Inclusive Economy & Housing,Insurance Claims Accomodation Bureau Limited,Rents Payable,3237.87,0,COMMERCIAL SUPPLIER
03-05-2023,Inclusive Economy & Housing,Insurance Claims Accomodation Bureau Limited,Rents Payable,5225.92,0,COMMERCIAL SUPPLIER
03-05-2023,Inclusive Economy & Housing,Insurance Claims Accomodation Bureau Limited,Rents Payable,4758.52,0,COMMERCIAL SUPPLIER
03-05-2023,Inclusive Economy & Housing,Insurance Claims Accomodation Bureau Limited,Rents Payable,217.56,0,COMMERCIAL SUPPLIER
03-05-2023,Inclusive Economy & Housing,Insurance Claims Accomodation Bureau Limited,Rents Payable,2476.4,0,COMMERCIAL SUPPLIER
03-05-2023,Inclusive Economy & Housing,Insurance Claims Accomodation Bureau Limited,Rents Payable,2220.86,0,COMMERCIAL SUPPLIER
03-05-2023,Inclusive Economy & Housing,Insurance Claims Accomodation Bureau Limited,Rents Payable,2122.7,0,COMMERCIAL SUPPLIER
03-05-2023,Inclusive Economy & Housing,Insurance Claims Accomodation Bureau Limited,Rents Payable,4033.17,0,COMMERCIAL SUPPLIER
03-05-2023,Inclusive Economy & Housing,Insurance Claims Accomodation Bureau Limited,Rents Payable,2224.96,0,COMMERCIAL SUPPLIER
03-05-2023,Environment and Sustainable Transport,Sparshatt Truck & Van Ltd,Highway Services,300.47,0,COMMERCIAL SUPPLIER
03-05-2023,Environment and Sustainable Transport,Sparshatt Truck & Van Ltd,Highway Services,51.5,0,COMMERCIAL SUPPLIER
03-05-2023,Environment and Sustainable Transport,Sparshatt Truck & Van Ltd,Highway Services,248.97,0,COMMERCIAL SUPPLIER
03-05-2023,Digital,eBECS Ltd,Ict Maintenance And Support,4050,0,COMMERCIAL SUPPLIER
03-05-2023,Digital,eBECS Ltd,Ict Maintenance And Support,12080,0,COMMERCIAL SUPPLIER
03-05-2023,Digital,eBECS Ltd,Ict Maintenance And Support,3520,0,COMMERCIAL SUPPLIER
03-05-2023,RMS,Travis Perkins Trading Company Ltd,Building Alterations And Materials,728,0,COMMERCIAL SUPPLIER
03-05-2023,RMS,Travis Perkins Trading Company Ltd,Building Alterations And Materials,370,0,COMMERCIAL SUPPLIER
03-05-2023,RMS,Travis Perkins Trading Company Ltd,Building Alterations And Materials,4273.5,0,COMMERCIAL SUPPLIER
03-05-2023,RMS,Travis Perkins Trading Company Ltd,Building Alterations And Materials,551.28,0,COMMERCIAL SUPPLIER
03-05-2023,RMS,Travis Perkins Trading Company Ltd,Building Alterations And Materials,518,0,COMMERCIAL SUPPLIER
03-05-2023,RMS,Travis Perkins Trading Company Ltd,Building Alterations And Materials,1027.2,0,COMMERCIAL SUPPLIER
03-05-2023,RMS,Travis Perkins Trading Company Ltd,Building Alterations And Materials,346,0,COMMERCIAL SUPPLIER
03-05-2023,RMS,Travis Perkins Trading Company Ltd,Building Alterations And Materials,571.95,0,COMMERCIAL SUPPLIER
03-05-2023,RMS,Travis Perkins Trading Company Ltd,Building Alterations And Materials,1004.04,0,COMMERCIAL SUPPLIER
03-05-2023,RMS,Travis Perkins Trading Company Ltd,Building Alterations And Materials,5827.95,0,COMMERCIAL SUPPLIER
03-05-2023,RMS,Travis Perkins Trading Company Ltd,Building Alterations And Materials,1029.6,0,COMMERCIAL SUPPLIER
03-05-2023,RMS,Travis Perkins Trading Company Ltd,Building Alterations And Materials,1177.2,0,COMMERCIAL SUPPLIER
03-05-2023,RMS,Travis Perkins Trading Company Ltd,Building Alterations And Materials,336.6,0,COMMERCIAL SUPPLIER
03-05-2023,RMS,Travis Perkins Trading Company Ltd,Building Alterations And Materials,678.24,0,COMMERCIAL SUPPLIER
03-05-2023,RMS,Travis Perkins Trading Company Ltd,Building Alterations And Materials,153.15,0,COMMERCIAL SUPPLIER
03-05-2023,RMS,Travis Perkins Trading Company Ltd,Building Alterations And Materials,208.8,0,COMMERCIAL SUPPLIER
03-05-2023,RMS,Travis Perkins Trading Company Ltd,Building Alterations And Materials,139.2,0,COMMERCIAL SUPPLIER
03-05-2023,RMS,Travis Perkins Trading Company Ltd,Building Alterations And Materials,229.41,0,COMMERCIAL SUPPLIER
03-05-2023,RMS,Travis Perkins Trading Company Ltd,Building Alterations And Materials,439.8,0,COMMERCIAL SUPPLIER
03-05-2023,RMS,Travis Perkins Trading Company Ltd,Building Alterations And Materials,794,0,COMMERCIAL SUPPLIER
03-05-2023,RMS,Travis Perkins Trading Company Ltd,Building Alterations And Materials,25.5,0,COMMERCIAL SUPPLIER
03-05-2023,RMS,Travis Perkins Trading Company Ltd,Building Alterations And Materials,75.2,0,COMMERCIAL SUPPLIER
03-05-2023,RMS,Travis Perkins Trading Company Ltd,Building Alterations And Materials,101.2,0,COMMERCIAL SUPPLIER
03-05-2023,RMS,Travis Perkins Trading Company Ltd,Building Alterations And Materials,31.8,0,COMMERCIAL SUPPLIER
03-05-2023,RMS,Travis Perkins Trading Company Ltd,Building Alterations And Materials,31.8,0,COMMERCIAL SUPPLIER
03-05-2023,RMS,Travis Perkins Trading Company Ltd,Building Alterations And Materials,72.5,0,COMMERCIAL SUPPLIER
03-05-2023,RMS,Travis Perkins Trading Company Ltd,Building Alterations And Materials,122,0,COMMERCIAL SUPPLIER
03-05-2023,RMS,Travis Perkins Trading Company Ltd,Building Alterations And Materials,428,0,COMMERCIAL SUPPLIER
03-05-2023,RMS,Travis Perkins Trading Company Ltd,Building Alterations And Materials,942.38,0,COMMERCIAL SUPPLIER
03-05-2023,RMS,Travis Perkins Trading Company Ltd,Building Alterations And Materials,1884.76,0,COMMERCIAL SUPPLIER
03-05-2023,RMS,Travis Perkins Trading Company Ltd,Building Alterations And Materials,159.8,0,COMMERCIAL SUPPLIER
03-05-2023,RMS,Travis Perkins Trading Company Ltd,Building Alterations And Materials,312.8,0,COMMERCIAL SUPPLIER
03-05-2023,RMS,Travis Perkins Trading Company Ltd,Building Alterations And Materials,889.77,0,COMMERCIAL SUPPLIER
03-05-2023,RMS,Travis Perkins Trading Company Ltd,Building Alterations And Materials,1108.31,0,COMMERCIAL SUPPLIER
03-05-2023,RMS,Travis Perkins Trading Company Ltd,Building Alterations And Materials,328.85,0,COMMERCIAL SUPPLIER
03-05-2023,Housing Revenue Account,Sayers (Car Hire),Client Transport,290,0,VENDOR
03-05-2023,Housing Revenue Account,Sayers (Car Hire),Client Transport,262,0,VENDOR
03-05-2023,oneSource - Non Shared,Claremore Mechanical Services Limited,Building Alterations And Materials,336,0,CIS
03-05-2023,Environment and Sustainable Transport,Storm Environmental Limited,Highway Services,1517.75,0,VENDOR
03-05-2023,Adults & Health,Blossom House Specialized Care & Support Services Ltd,Daycare - Private Contractors Payment,289.8,0,VENDOR
03-05-2023,Adults & Health,Blossom House Specialized Care & Support Services Ltd,Daycare - Private Contractors Payment,289.8,0,VENDOR
03-05-2023,Adults & Health,Blossom House Specialized Care & Support Services Ltd,Daycare - Private Contractors Payment,294.6,0,VENDOR
03-05-2023,Adults & Health,Blossom House Specialized Care & Support Services Ltd,Daycare - Private Contractors Payment,289.8,0,VENDOR
03-05-2023,Marketing,Active Newham,Events,325,0,VENDOR
03-05-2023,Adults & Health,Active Newham,Events,7980.3,0,VENDOR
03-05-2023,oneSource - Non Shared,Willow Pumps Limited,Waste Disposal Costs,855,0,COMMERCIAL SUPPLIER
03-05-2023,Housing Revenue Account,J.A. Steel & Son Ltd,Private Contractors Payment - Other,1520,0,COMMERCIAL SUPPLIER
03-05-2023,Inclusive Economy & Housing,British Gas Business,Electricity,7426.81,0,COMMERCIAL SUPPLIER
03-05-2023,Housing Revenue Account,Ask Legal Solicitors,Legal Fees,7000,0,COMMERCIAL SUPPLIER
03-05-2023,RMS,Benchmarx Kitchens and Joinery,Building Alterations And Materials,233.84,0,COMMERCIAL SUPPLIER
03-05-2023,RMS,Benchmarx Kitchens and Joinery,Building Alterations And Materials,1342.15,0,COMMERCIAL SUPPLIER
03-05-2023,RMS,Benchmarx Kitchens and Joinery,Building Alterations And Materials,1077.69,0,COMMERCIAL SUPPLIER
03-05-2023,Adults & Health,Helping Hands Home Care,Home Care - Private Contractors Payment,1195,0,NON COMMERCIAL SUPPLIER
03-05-2023,Adults & Health,Helping Hands Home Care,Home Care - Private Contractors Payment,1195,0,NON COMMERCIAL SUPPLIER
03-05-2023,Adults & Health,Helping Hands Home Care,Home Care - Private Contractors Payment,1195,0,NON COMMERCIAL SUPPLIER
03-05-2023,Adults & Health,Helping Hands Home Care,Home Care - Private Contractors Payment,1195,0,NON COMMERCIAL SUPPLIER
03-05-2023,Children and Young People,Personal Information - Redacted,Legal Fees,710.4,0,NHS BODIES
03-05-2023,Adults & Health,Subco Trust,Payments To Voluntary Sector,15,0,VENDOR
03-05-2023,Adults & Health,Subco Trust,Daycare - Private Contractors Payment,150,0,VENDOR
03-05-2023,Adults & Health,Subco Trust,Payments To Voluntary Sector,15,0,VENDOR
03-05-2023,Adults & Health,Subco Trust,Daycare - Private Contractors Payment,150,0,VENDOR
03-05-2023,Adults & Health,Subco Trust,Payments To Voluntary Sector,15,0,VENDOR
03-05-2023,Adults & Health,Subco Trust,Daycare - Private Contractors Payment,150,0,VENDOR
03-05-2023,Adults & Health,Subco Trust,Payments To Voluntary Sector,15,0,VENDOR
03-05-2023,Adults & Health,Subco Trust,Daycare - Private Contractors Payment,150,0,VENDOR
03-05-2023,Inclusive Economy & Housing,Wates Property Services Ltd,Facilities Management,10097.82,0,CIS
03-05-2023,Inclusive Economy & Housing,Wates Property Services Ltd,Facilities Management,2215.9,0,CIS
03-05-2023,Inclusive Economy & Housing,Wates Property Services Ltd,Facilities Management,2305.82,0,CIS
03-05-2023,Housing Revenue Account,Bond Turner,Legal Fees,1336.47,0,INDIVIDUALS
03-05-2023,Adults & Health,Subco Trust,Payments To Voluntary Sector,10,0,VENDOR
03-05-2023,Adults & Health,Subco Trust,Daycare - Private Contractors Payment,120,0,VENDOR
03-05-2023,Adults & Health,Subco Trust,Daycare - Private Contractors Payment,120,0,VENDOR
03-05-2023,Adults & Health,Subco Trust,Daycare - Private Contractors Payment,120,0,VENDOR
03-05-2023,Adults & Health,Subco Trust,Payments To Voluntary Sector,10,0,VENDOR
03-05-2023,Adults & Health,Subco Trust,Payments To Voluntary Sector,10,0,VENDOR
03-05-2023,Adults & Health,Subco Trust,Daycare - Private Contractors Payment,120,0,VENDOR
03-05-2023,Adults & Health,Subco Trust,Payments To Voluntary Sector,10,0,VENDOR
03-05-2023,Adults & Health,Subco Trust,Payments To Voluntary Sector,10,0,VENDOR
03-05-2023,Adults & Health,Subco Trust,Daycare - Private Contractors Payment,120,0,VENDOR
03-05-2023,Adults & Health,Subco Trust,Payments To Voluntary Sector,10,0,VENDOR
03-05-2023,Adults & Health,Subco Trust,Daycare - Private Contractors Payment,120,0,VENDOR
03-05-2023,Adults & Health,Subco Trust,Payments To Voluntary Sector,10,0,VENDOR
03-05-2023,Adults & Health,Subco Trust,Daycare - Private Contractors Payment,120,0,VENDOR
03-05-2023,Adults & Health,Subco Trust,Payments To Voluntary Sector,10,0,VENDOR
03-05-2023,Adults & Health,Subco Trust,Daycare - Private Contractors Payment,120,0,VENDOR
03-05-2023,Adults & Health,Subco Trust,Daycare - Private Contractors Payment,100,0,VENDOR
03-05-2023,Adults & Health,Subco Trust,Daycare - Private Contractors Payment,100,0,VENDOR
03-05-2023,Adults & Health,Subco Trust,Daycare - Private Contractors Payment,100,0,VENDOR
03-05-2023,Adults & Health,Subco Trust,Daycare - Private Contractors Payment,100,0,VENDOR
03-05-2023,Inclusive Economy & Housing,Home From Home Housing Assoc,Private Contractors Payment - Other,4000,0,VENDOR
03-05-2023,Inclusive Economy & Housing,Home From Home Housing Assoc,Private Contractors Payment - Other,500,0,VENDOR
03-05-2023,Adults & Health,Subco Trust,Payments To Voluntary Sector,10,0,VENDOR
03-05-2023,Adults & Health,Subco Trust,Daycare - Private Contractors Payment,80,0,VENDOR
03-05-2023,Adults & Health,Subco Trust,Payments To Voluntary Sector,10,0,VENDOR
03-05-2023,Adults & Health,Subco Trust,Daycare - Private Contractors Payment,80,0,VENDOR
03-05-2023,Adults & Health,Subco Trust,Daycare - Private Contractors Payment,80,0,VENDOR
03-05-2023,Adults & Health,Subco Trust,Payments To Voluntary Sector,10,0,VENDOR
03-05-2023,Adults & Health,Subco Trust,Daycare - Private Contractors Payment,80,0,VENDOR
03-05-2023,Adults & Health,Subco Trust,Payments To Voluntary Sector,10,0,VENDOR
03-05-2023,Adults & Health,Advance Housing & Support Ltd,Daycare - Private Contractors Payment,479,0,VENDOR
03-05-2023,Adults & Health,Advance Housing & Support Ltd,Daycare - Private Contractors Payment,435,0,VENDOR
03-05-2023,Adults & Health,Advance Housing & Support Ltd,Daycare - Private Contractors Payment,479,0,VENDOR
03-05-2023,Adults & Health,Advance Housing & Support Ltd,Daycare - Private Contractors Payment,479,0,VENDOR
03-05-2023,Adults & Health,Advance Housing & Support Ltd,Daycare - Private Contractors Payment,261,0,VENDOR
03-05-2023,Adults & Health,Advance Housing & Support Ltd,Daycare - Private Contractors Payment,287.4,0,VENDOR
03-05-2023,Adults & Health,Advance Housing & Support Ltd,Daycare - Private Contractors Payment,287.4,0,VENDOR
03-05-2023,Adults & Health,Advance Housing & Support Ltd,Daycare - Private Contractors Payment,287.4,0,VENDOR
03-05-2023,Adults & Health,Advance Housing & Support Ltd,Daycare - Private Contractors Payment,325.72,0,VENDOR
03-05-2023,Adults & Health,Advance Housing & Support Ltd,Daycare - Private Contractors Payment,325.72,0,VENDOR
03-05-2023,Adults & Health,Advance Housing & Support Ltd,Daycare - Private Contractors Payment,295.8,0,VENDOR
03-05-2023,Adults & Health,Advance Housing & Support Ltd,Daycare - Private Contractors Payment,325.72,0,VENDOR
03-05-2023,Adults & Health,Advance Housing & Support Ltd,Daycare - Private Contractors Payment,313.2,0,VENDOR
03-05-2023,Adults & Health,Advance Housing & Support Ltd,Daycare - Private Contractors Payment,344.88,0,VENDOR
03-05-2023,Adults & Health,Advance Housing & Support Ltd,Daycare - Private Contractors Payment,344.88,0,VENDOR
03-05-2023,Adults & Health,Advance Housing & Support Ltd,Daycare - Private Contractors Payment,344.88,0,VENDOR
03-05-2023,Adults & Health,Advance Housing & Support Ltd,Daycare - Private Contractors Payment,435,0,VENDOR
03-05-2023,Adults & Health,Advance Housing & Support Ltd,Daycare - Private Contractors Payment,479,0,VENDOR
03-05-2023,Adults & Health,Advance Housing & Support Ltd,Daycare - Private Contractors Payment,479,0,VENDOR
03-05-2023,Adults & Health,Advance Housing & Support Ltd,Daycare - Private Contractors Payment,479,0,VENDOR
03-05-2023,Adults & Health,Advance Housing & Support Ltd,Daycare - Private Contractors Payment,261,0,VENDOR
03-05-2023,Adults & Health,Advance Housing & Support Ltd,Daycare - Private Contractors Payment,287.4,0,VENDOR
03-05-2023,Adults & Health,Advance Housing & Support Ltd,Daycare - Private Contractors Payment,287.4,0,VENDOR
03-05-2023,Adults & Health,Advance Housing & Support Ltd,Daycare - Private Contractors Payment,287.4,0,VENDOR
03-05-2023,Adults & Health,Advance Housing & Support Ltd,Daycare - Private Contractors Payment,325.72,0,VENDOR
03-05-2023,Adults & Health,Advance Housing & Support Ltd,Daycare - Private Contractors Payment,295.8,0,VENDOR
03-05-2023,Adults & Health,Advance Housing & Support Ltd,Daycare - Private Contractors Payment,325.72,0,VENDOR
03-05-2023,Adults & Health,Advance Housing & Support Ltd,Daycare - Private Contractors Payment,325.72,0,VENDOR
03-05-2023,Adults & Health,Advance Housing & Support Ltd,Daycare - Private Contractors Payment,313.2,0,VENDOR
03-05-2023,Adults & Health,Advance Housing & Support Ltd,Daycare - Private Contractors Payment,344.88,0,VENDOR
03-05-2023,Adults & Health,Advance Housing & Support Ltd,Daycare - Private Contractors Payment,344.88,0,VENDOR
03-05-2023,Adults & Health,Advance Housing & Support Ltd,Daycare - Private Contractors Payment,344.88,0,VENDOR
03-05-2023,Adults & Health,Advance Housing & Support Ltd,Daycare - Private Contractors Payment,435,0,VENDOR
03-05-2023,Adults & Health,Advance Housing & Support Ltd,Daycare - Private Contractors Payment,479,0,VENDOR
03-05-2023,Adults & Health,Advance Housing & Support Ltd,Daycare - Private Contractors Payment,479,0,VENDOR
03-05-2023,Adults & Health,Advance Housing & Support Ltd,Daycare - Private Contractors Payment,479,0,VENDOR
03-05-2023,Adults & Health,Advance Housing & Support Ltd,Daycare - Private Contractors Payment,261,0,VENDOR
03-05-2023,Adults & Health,Advance Housing & Support Ltd,Daycare - Private Contractors Payment,287.4,0,VENDOR
03-05-2023,Adults & Health,Advance Housing & Support Ltd,Daycare - Private Contractors Payment,287.4,0,VENDOR
03-05-2023,Adults & Health,Advance Housing & Support Ltd,Daycare - Private Contractors Payment,287.4,0,VENDOR
03-05-2023,Adults & Health,Advance Housing & Support Ltd,Daycare - Private Contractors Payment,295.8,0,VENDOR
03-05-2023,Adults & Health,Advance Housing & Support Ltd,Daycare - Private Contractors Payment,325.72,0,VENDOR
03-05-2023,Adults & Health,Advance Housing & Support Ltd,Daycare - Private Contractors Payment,325.72,0,VENDOR
03-05-2023,Adults & Health,Advance Housing & Support Ltd,Daycare - Private Contractors Payment,325.72,0,VENDOR
03-05-2023,Adults & Health,Advance Housing & Support Ltd,Daycare - Private Contractors Payment,313.2,0,VENDOR
03-05-2023,Adults & Health,Advance Housing & Support Ltd,Daycare - Private Contractors Payment,344.88,0,VENDOR
03-05-2023,Adults & Health,Advance Housing & Support Ltd,Daycare - Private Contractors Payment,344.88,0,VENDOR
03-05-2023,Adults & Health,Advance Housing & Support Ltd,Daycare - Private Contractors Payment,344.88,0,VENDOR
03-05-2023,Adults & Health,Advance Housing & Support Ltd,Home Care - Private Contractors Payment,229.92,0,VENDOR
03-05-2023,Adults & Health,Advance Housing & Support Ltd,Home Care - Private Contractors Payment,219.36,0,VENDOR
03-05-2023,Adults & Health,Advance Housing & Support Ltd,Daycare - Private Contractors Payment,809.51,0,VENDOR
03-05-2023,Adults & Health,Advance Housing & Support Ltd,Daycare - Private Contractors Payment,809.51,0,VENDOR
03-05-2023,Adults & Health,Advance Housing & Support Ltd,Daycare - Private Contractors Payment,809.51,0,VENDOR
03-05-2023,Adults & Health,Advance Housing & Support Ltd,Daycare - Private Contractors Payment,342.03,0,VENDOR
03-05-2023,Adults & Health,Advance Housing & Support Ltd,Home Care - Private Contractors Payment,167.65,0,VENDOR
03-05-2023,Adults & Health,Advance Housing & Support Ltd,Daycare - Private Contractors Payment,340.28,0,VENDOR
03-05-2023,Adults & Health,Advance Housing & Support Ltd,Home Care - Private Contractors Payment,167.65,0,VENDOR
03-05-2023,Adults & Health,Advance Housing & Support Ltd,Home Care - Private Contractors Payment,167.65,0,VENDOR
03-05-2023,Adults & Health,Advance Housing & Support Ltd,Home Care - Private Contractors Payment,167.65,0,VENDOR
03-05-2023,Adults & Health,Advance Housing & Support Ltd,Home Care - Private Contractors Payment,689.76,0,VENDOR
03-05-2023,Adults & Health,Advance Housing & Support Ltd,Home Care - Private Contractors Payment,208.8,0,VENDOR
03-05-2023,Adults & Health,Advance Housing & Support Ltd,Home Care - Private Contractors Payment,57.48,0,VENDOR
03-05-2023,Adults & Health,Advance Housing & Support Ltd,Home Care - Private Contractors Payment,57.48,0,VENDOR
03-05-2023,Adults & Health,Advance Housing & Support Ltd,Daycare - Private Contractors Payment,57.48,0,VENDOR
03-05-2023,Adults & Health,Advance Housing & Support Ltd,Home Care - Private Contractors Payment,57.48,0,VENDOR
03-05-2023,Adults & Health,Advance Housing & Support Ltd,Daycare - Private Contractors Payment,57.48,0,VENDOR
03-05-2023,Adults & Health,Advance Housing & Support Ltd,Home Care - Private Contractors Payment,57.48,0,VENDOR
03-05-2023,Adults & Health,Advance Housing & Support Ltd,Daycare - Private Contractors Payment,46.92,0,VENDOR
03-05-2023,Adults & Health,Advance Housing & Support Ltd,Daycare - Private Contractors Payment,57.48,0,VENDOR
03-05-2023,Adults & Health,Advance Housing & Support Ltd,Daycare - Private Contractors Payment,435,0,VENDOR
03-05-2023,Adults & Health,Advance Housing & Support Ltd,Daycare - Private Contractors Payment,479,0,VENDOR
03-05-2023,Adults & Health,Advance Housing & Support Ltd,Daycare - Private Contractors Payment,479,0,VENDOR
03-05-2023,Adults & Health,Advance Housing & Support Ltd,Daycare - Private Contractors Payment,479,0,VENDOR
03-05-2023,Adults & Health,Advance Housing & Support Ltd,Daycare - Private Contractors Payment,287.4,0,VENDOR
03-05-2023,Adults & Health,Advance Housing & Support Ltd,Daycare - Private Contractors Payment,261,0,VENDOR
03-05-2023,Adults & Health,Advance Housing & Support Ltd,Daycare - Private Contractors Payment,287.4,0,VENDOR
03-05-2023,Adults & Health,Advance Housing & Support Ltd,Daycare - Private Contractors Payment,287.4,0,VENDOR
03-05-2023,Adults & Health,Advance Housing & Support Ltd,Daycare - Private Contractors Payment,295.8,0,VENDOR
03-05-2023,Adults & Health,Advance Housing & Support Ltd,Daycare - Private Contractors Payment,325.72,0,VENDOR
03-05-2023,Adults & Health,Advance Housing & Support Ltd,Daycare - Private Contractors Payment,325.72,0,VENDOR
03-05-2023,Adults & Health,Advance Housing & Support Ltd,Daycare - Private Contractors Payment,325.72,0,VENDOR
03-05-2023,Adults & Health,Advance Housing & Support Ltd,Daycare - Private Contractors Payment,344.88,0,VENDOR
03-05-2023,Adults & Health,Advance Housing & Support Ltd,Daycare - Private Contractors Payment,344.88,0,VENDOR
03-05-2023,Adults & Health,Advance Housing & Support Ltd,Daycare - Private Contractors Payment,313.2,0,VENDOR
03-05-2023,Adults & Health,Advance Housing & Support Ltd,Daycare - Private Contractors Payment,344.88,0,VENDOR
03-05-2023,Adults & Health,Advance Housing & Support Ltd,Daycare - Private Contractors Payment,479,0,VENDOR
03-05-2023,Adults & Health,Advance Housing & Support Ltd,Daycare - Private Contractors Payment,479,0,VENDOR
03-05-2023,Adults & Health,Advance Housing & Support Ltd,Daycare - Private Contractors Payment,479,0,VENDOR
03-05-2023,Adults & Health,Advance Housing & Support Ltd,Daycare - Private Contractors Payment,435,0,VENDOR
03-05-2023,Adults & Health,Advance Housing & Support Ltd,Daycare - Private Contractors Payment,261,0,VENDOR
03-05-2023,Adults & Health,Advance Housing & Support Ltd,Daycare - Private Contractors Payment,287.4,0,VENDOR
03-05-2023,Adults & Health,Advance Housing & Support Ltd,Daycare - Private Contractors Payment,287.4,0,VENDOR
03-05-2023,Adults & Health,Advance Housing & Support Ltd,Daycare - Private Contractors Payment,287.4,0,VENDOR
03-05-2023,Adults & Health,Advance Housing & Support Ltd,Daycare - Private Contractors Payment,325.72,0,VENDOR
03-05-2023,Adults & Health,Advance Housing & Support Ltd,Daycare - Private Contractors Payment,325.72,0,VENDOR
03-05-2023,Adults & Health,Advance Housing & Support Ltd,Daycare - Private Contractors Payment,325.72,0,VENDOR
03-05-2023,Adults & Health,Advance Housing & Support Ltd,Daycare - Private Contractors Payment,295.8,0,VENDOR
03-05-2023,Adults & Health,Advance Housing & Support Ltd,Daycare - Private Contractors Payment,344.88,0,VENDOR
03-05-2023,Adults & Health,Advance Housing & Support Ltd,Daycare - Private Contractors Payment,344.88,0,VENDOR
03-05-2023,Adults & Health,Advance Housing & Support Ltd,Daycare - Private Contractors Payment,313.2,0,VENDOR
03-05-2023,Adults & Health,Advance Housing & Support Ltd,Daycare - Private Contractors Payment,344.88,0,VENDOR
03-05-2023,Children and Young People,Matrix Scm,Agency Staff,1895.4,0,
03-05-2023,Children and Young People,Matrix Scm,Agency Staff,1821.85,0,
03-05-2023,Children and Young People,Matrix Scm,Agency Staff,1077.47,0,
03-05-2023,Children and Young People,Matrix Scm,Agency Staff,1858.75,0,
03-05-2023,Children and Young People,Matrix Scm,Agency Staff,1093.11,0,
03-05-2023,Children and Young People,Matrix Scm,Agency Staff,1093.11,0,
03-05-2023,Children and Young People,Matrix Scm,Agency Staff,1613.15,0,
03-05-2023,Children and Young People,Matrix Scm,Agency Staff,1467.71,0,
03-05-2023,Children and Young People,Matrix Scm,Agency Staff,1467.72,0,
03-05-2023,Children and Young People,Matrix Scm,Agency Staff,1475.28,0,
03-05-2023,Children and Young People,Matrix Scm,Agency Staff,1468.08,0,
03-05-2023,Children and Young People,Matrix Scm,Agency Staff,1501.2,0,
03-05-2023,Children and Young People,Matrix Scm,Agency Staff,1467.71,0,
03-05-2023,Children and Young People,Matrix Scm,Agency Staff,1455.14,0,
03-05-2023,Children and Young People,Matrix Scm,Agency Staff,450.78,0,
03-05-2023,Children and Young People,Matrix Scm,Agency Staff,1435.68,0,
03-05-2023,Children and Young People,Matrix Scm,Agency Staff,1490.4,0,
03-05-2023,Children and Young People,Matrix Scm,Agency Staff,1524.26,0,
03-05-2023,Children and Young People,Matrix Scm,Agency Staff,1421.28,0,
03-05-2023,Children and Young People,Matrix Scm,Agency Staff,1594.82,0,
03-05-2023,Children and Young People,Matrix Scm,Agency Staff,741.25,0,
03-05-2023,Children and Young People,Matrix Scm,Agency Staff,976.32,0,
03-05-2023,Children and Young People,Matrix Scm,Agency Staff,717.84,0,
03-05-2023,Children and Young People,Matrix Scm,Agency Staff,1477.79,0,
03-05-2023,Children and Young People,Matrix Scm,Agency Staff,1441.44,0,
03-05-2023,Children and Young People,Matrix Scm,Agency Staff,1506.24,0,
03-05-2023,Children and Young People,Matrix Scm,Agency Staff,1484.29,0,
03-05-2023,Children and Young People,Matrix Scm,Agency Staff,1903.3,0,
03-05-2023,Children and Young People,Matrix Scm,Agency Staff,1475.3,0,
03-05-2023,Children and Young People,Matrix Scm,Agency Staff,1421.28,0,
03-05-2023,Children and Young People,Matrix Scm,Agency Staff,1484.99,0,
03-05-2023,Children and Young People,Matrix Scm,Agency Staff,1394.66,0,
03-05-2023,Children and Young People,Matrix Scm,Agency Staff,1394.66,0,
03-05-2023,Children and Young People,Matrix Scm,Agency Staff,1374.5,0,
03-05-2023,Children and Young People,Matrix Scm,Agency Staff,1374.48,0,
03-05-2023,Children and Young People,Matrix Scm,Agency Staff,1457.28,0,
03-05-2023,Children and Young People,Matrix Scm,Agency Staff,1394.66,0,
03-05-2023,Children and Young People,Matrix Scm,Agency Staff,1394.66,0,
03-05-2023,Children and Young People,Matrix Scm,Agency Staff,1484.29,0,
03-05-2023,Children and Young People,Matrix Scm,Agency Staff,1747.81,0,
03-05-2023,Adults & Health,Matrix Scm,Agency Staff,903.56,0,
03-05-2023,Children and Young People,Matrix Scm,Agency Staff,690.2,0,
03-05-2023,Children and Young People,Matrix Scm,Agency Staff,2608.75,0,
03-05-2023,Children and Young People,Matrix Scm,Agency Staff,3668.4,0,
03-05-2023,Children and Young People,Matrix Scm,Agency Staff,976.07,0,
03-05-2023,Children and Young People,Matrix Scm,Agency Staff,1874.25,0,
03-05-2023,Children and Young People,Matrix Scm,Agency Staff,1832.95,0,
03-05-2023,Children and Young People,Matrix Scm,Agency Staff,1832.95,0,
03-05-2023,Children and Young People,Matrix Scm,Agency Staff,1002.05,0,
03-05-2023,Children and Young People,Matrix Scm,Agency Staff,3197.2,0,
03-05-2023,Children and Young People,Matrix Scm,Agency Staff,1113.12,0,
03-05-2023,Children and Young People,Matrix Scm,Agency Staff,728.74,0,
03-05-2023,Children and Young People,Matrix Scm,Agency Staff,2176.35,0,
03-05-2023,Children and Young People,Matrix Scm,Agency Staff,3027.05,0,
03-05-2023,Children and Young People,Matrix Scm,Agency Staff,1721.35,0,
03-05-2023,Children and Young People,Matrix Scm,Agency Staff,1083.97,0,
03-05-2023,Children and Young People,Matrix Scm,Agency Staff,1347.64,0,
03-05-2023,Children and Young People,Matrix Scm,Agency Staff,2057.45,0,
03-05-2023,Children and Young People,Matrix Scm,Agency Staff,898.62,0,
03-05-2023,Children and Young People,Matrix Scm,Agency Staff,1613.52,0,
03-05-2023,Children and Young People,Matrix Scm,Agency Staff,904.95,0,
03-05-2023,Children and Young People,Matrix Scm,Agency Staff,900.35,0,
03-05-2023,Children and Young People,Matrix Scm,Agency Staff,1914,0,
03-05-2023,Children and Young People,Matrix Scm,Agency Staff,1914,0,
03-05-2023,Children and Young People,Matrix Scm,Agency Staff,1468.45,0,
03-05-2023,Children and Young People,Matrix Scm,Agency Staff,1468.45,0,
03-05-2023,Children and Young People,Matrix Scm,Agency Staff,1447.92,0,
03-05-2023,Children and Young People,Matrix Scm,Agency Staff,1722.6,0,
03-05-2023,Children and Young People,Matrix Scm,Agency Staff,1453.33,0,
03-05-2023,Children and Young People,Matrix Scm,Agency Staff,1613.15,0,
03-05-2023,Children and Young People,Matrix Scm,Agency Staff,1660.67,0,
03-05-2023,Children and Young People,Matrix Scm,Agency Staff,1364.03,0,
03-05-2023,Children and Young People,Matrix Scm,Agency Staff,1416.26,0,
03-05-2023,Children and Young People,Matrix Scm,Agency Staff,2818.7,0,
03-05-2023,Children and Young People,Matrix Scm,Agency Staff,2483.5,0,
03-05-2023,Children and Young People,Matrix Scm,Agency Staff,1173.4,0,
03-05-2023,Adults & Health,Matrix Scm,Agency Staff,644.35,0,
03-05-2023,Adults & Health,Matrix Scm,Agency Staff,1299.23,0,
03-05-2023,Adults & Health,Matrix Scm,Agency Staff,442.44,0,
03-05-2023,Adults & Health,Matrix Scm,Agency Staff,737.4,0,
03-05-2023,Adults & Health,Matrix Scm,Agency Staff,550.8,0,
03-05-2023,Adults & Health,Matrix Scm,Agency Staff,802.2,0,
03-05-2023,Adults & Health,Matrix Scm,Agency Staff,687.6,0,
03-05-2023,Adults & Health,Matrix Scm,Agency Staff,603.18,0,
03-05-2023,Adults & Health,Matrix Scm,Agency Staff,268.08,0,
03-05-2023,Adults & Health,Matrix Scm,Agency Staff,670.2,0,
03-05-2023,Adults & Health,Matrix Scm,Agency Staff,268.08,0,
03-05-2023,Children and Young People,Matrix Scm,Agency Staff,1421.28,0,
03-05-2023,Children and Young People,Matrix Scm,Agency Staff,1457.28,0,
03-05-2023,Children and Young People,Matrix Scm,Agency Staff,1441.44,0,
03-05-2023,Children and Young People,Matrix Scm,Agency Staff,306.98,0,
03-05-2023,Children and Young People,Matrix Scm,Agency Staff,1484.99,0,
03-05-2023,Children and Young People,Matrix Scm,Agency Staff,1196.24,0,
03-05-2023,Children and Young People,Matrix Scm,Agency Staff,1558.08,0,
03-05-2023,Children and Young People,Matrix Scm,Agency Staff,1457.28,0,
03-05-2023,Children and Young People,Matrix Scm,Agency Staff,1385.28,0,
03-05-2023,Children and Young People,Matrix Scm,Agency Staff,1761.12,0,
03-05-2023,Children and Young People,Matrix Scm,Agency Staff,1184.4,0,
03-05-2023,Children and Young People,Matrix Scm,Agency Staff,1475.3,0,
03-05-2023,Children and Young People,Matrix Scm,Agency Staff,1411.55,0,
03-05-2023,Children and Young People,Matrix Scm,Agency Staff,1637.28,0,
03-05-2023,Children and Young People,Matrix Scm,Agency Staff,1484.28,0,
03-05-2023,Children and Young People,Matrix Scm,Agency Staff,1485.01,0,
03-05-2023,Children and Young People,Matrix Scm,Agency Staff,1721.89,0,
03-05-2023,Children and Young People,Matrix Scm,Agency Staff,1457.28,0,
03-05-2023,Children and Young People,Matrix Scm,Agency Staff,1368.35,0,
03-05-2023,Children and Young People,Matrix Scm,Agency Staff,1484.99,0,
03-05-2023,Children and Young People,Matrix Scm,Agency Staff,1394.66,0,
03-05-2023,Children and Young People,Matrix Scm,Agency Staff,1461.25,0,
03-05-2023,Children and Young People,Matrix Scm,Agency Staff,1453.33,0,
03-05-2023,Children and Young People,Matrix Scm,Agency Staff,1501.22,0,
03-05-2023,Adults & Health,Matrix Scm,Agency Staff,603.18,0,
03-05-2023,Adults & Health,Matrix Scm,Agency Staff,1103.4,0,
03-05-2023,Adults & Health,Matrix Scm,Agency Staff,375,0,
03-05-2023,Adults & Health,Matrix Scm,Agency Staff,1447.92,0,
03-05-2023,Adults & Health,Matrix Scm,Agency Staff,667.46,0,
03-05-2023,Adults & Health,Matrix Scm,Agency Staff,1265.41,0,
03-05-2023,Adults & Health,Matrix Scm,Agency Staff,608.44,0,
03-05-2023,Adults & Health,Matrix Scm,Agency Staff,146.93,0,
03-05-2023,Adults & Health,Matrix Scm,Agency Staff,503.17,0,
03-05-2023,Adults & Health,Matrix Scm,Agency Staff,270.04,0,
03-05-2023,Adults & Health,Matrix Scm,Agency Staff,790.91,0,
03-05-2023,Adults & Health,Matrix Scm,Agency Staff,733.7,0,
03-05-2023,Adults & Health,Matrix Scm,Agency Staff,729.6,0,
03-05-2023,Adults & Health,Matrix Scm,Agency Staff,1350.36,0,
03-05-2023,Adults & Health,Matrix Scm,Agency Staff,2.25,0,
03-05-2023,Adults & Health,Matrix Scm,Agency Staff,998.46,0,
03-05-2023,Adults & Health,Matrix Scm,Agency Staff,1365.7,0,
03-05-2023,Adults & Health,Matrix Scm,Agency Staff,937.72,0,
03-05-2023,Adults & Health,Matrix Scm,Agency Staff,1609.92,0,
03-05-2023,Adults & Health,Matrix Scm,Agency Staff,1371.23,0,
03-05-2023,Adults & Health,Matrix Scm,Agency Staff,1427.78,0,
03-05-2023,Adults & Health,Matrix Scm,Agency Staff,1389.6,0,
03-05-2023,Adults & Health,Matrix Scm,Agency Staff,1441.44,0,
03-05-2023,Adults & Health,Matrix Scm,Agency Staff,1080.8,0,
03-05-2023,Adults & Health,Matrix Scm,Agency Staff,117,0,
03-05-2023,Adults & Health,Matrix Scm,Agency Staff,1620.85,0,
03-05-2023,Adults & Health,Matrix Scm,Agency Staff,1389.6,0,
03-05-2023,Adults & Health,Matrix Scm,Agency Staff,1198.08,0,
03-05-2023,Adults & Health,Matrix Scm,Agency Staff,1374.5,0,
03-05-2023,Adults & Health,Matrix Scm,Agency Staff,1277.28,0,
03-05-2023,Adults & Health,Matrix Scm,Agency Staff,995.62,0,
03-05-2023,Adults & Health,Matrix Scm,Agency Staff,1313.28,0,
03-05-2023,Adults & Health,Matrix Scm,Agency Staff,1280.51,0,
03-05-2023,Adults & Health,Matrix Scm,Agency Staff,18,0,
03-05-2023,Adults & Health,Matrix Scm,Agency Staff,1393.22,0,
03-05-2023,Adults & Health,Matrix Scm,Agency Staff,1262.53,0,
03-05-2023,Children and Young People,Matrix Scm,Agency Staff,1524.26,0,
03-05-2023,Children and Young People,Matrix Scm,Agency Staff,149.85,0,
03-05-2023,Children and Young People,Matrix Scm,Agency Staff,1445.04,0,
03-05-2023,Children and Young People,Matrix Scm,Agency Staff,1475.28,0,
03-05-2023,Children and Young People,Matrix Scm,Agency Staff,1760.42,0,
03-05-2023,Children and Young People,Matrix Scm,Agency Staff,1467.71,0,
03-05-2023,Children and Young People,Matrix Scm,Agency Staff,17.1,0,
03-05-2023,Children and Young People,Matrix Scm,Agency Staff,1501.2,0,
03-05-2023,Children and Young People,Matrix Scm,Agency Staff,1036.8,0,
03-05-2023,Children and Young People,Matrix Scm,Agency Staff,1558.43,0,
03-05-2023,Children and Young People,Matrix Scm,Agency Staff,1475.28,0,
03-05-2023,Children and Young People,Matrix Scm,Agency Staff,1523.87,0,
03-05-2023,Children and Young People,Matrix Scm,Agency Staff,1477.79,0,
03-05-2023,Children and Young People,Matrix Scm,Agency Staff,1441.09,0,
03-05-2023,Children and Young People,Matrix Scm,Agency Staff,1467.71,0,
03-05-2023,Children and Young People,Matrix Scm,Agency Staff,40.5,0,
03-05-2023,Children and Young People,Matrix Scm,Agency Staff,1421.28,0,
03-05-2023,Children and Young People,Matrix Scm,Agency Staff,56.66,0,
03-05-2023,Children and Young People,Matrix Scm,Agency Staff,58.5,0,
03-05-2023,Children and Young People,Matrix Scm,Agency Staff,1364.03,0,
03-05-2023,Children and Young People,Matrix Scm,Agency Staff,1394.66,0,
03-05-2023,Children and Young People,Matrix Scm,Agency Staff,1501.22,0,
03-05-2023,Children and Young People,Matrix Scm,Agency Staff,1155.08,0,
03-05-2023,Children and Young People,Matrix Scm,Agency Staff,966.6,0,
03-05-2023,Children and Young People,Matrix Scm,Agency Staff,1364.42,0,
03-05-2023,Children and Young People,Matrix Scm,Agency Staff,784.16,0,
03-05-2023,Children and Young People,Matrix Scm,Agency Staff,1394.66,0,
03-05-2023,Children and Young People,Matrix Scm,Agency Staff,1368.35,0,
03-05-2023,Adults & Health,Matrix Scm,Agency Staff,670.2,0,
03-05-2023,Environment and Sustainable Transport,Matrix Scm,Agency Staff,0,0,
03-05-2023,Environment and Sustainable Transport,Matrix Scm,Agency Staff,32.4,0,
03-05-2023,Environment and Sustainable Transport,Matrix Scm,Agency Staff,0,0,
03-05-2023,Adults & Health,Matrix Scm,Agency Staff,1079.12,0,
03-05-2023,Adults & Health,Matrix Scm,Agency Staff,1064.28,0,
03-05-2023,Adults & Health,Matrix Scm,Agency Staff,1133.44,0,
03-05-2023,Adults & Health,Matrix Scm,Agency Staff,1447.94,0,
03-05-2023,Adults & Health,Matrix Scm,Agency Staff,1336.3,0,
03-05-2023,Adults & Health,Matrix Scm,Agency Staff,1221.6,0,
03-05-2023,Adults & Health,Matrix Scm,Agency Staff,483.84,0,
03-05-2023,Adults & Health,Matrix Scm,Agency Staff,854,0,
03-05-2023,Environment and Sustainable Transport,Matrix Scm,Agency Staff,2245.8,0,
03-05-2023,Environment and Sustainable Transport,Matrix Scm,Agency Staff,2031.12,0,
03-05-2023,Environment and Sustainable Transport,Matrix Scm,Agency Staff,1354.08,0,
03-05-2023,Environment and Sustainable Transport,Matrix Scm,Agency Staff,2200.38,0,
03-05-2023,Environment and Sustainable Transport,Matrix Scm,Agency Staff,2022.13,0,
03-05-2023,Environment and Sustainable Transport,Matrix Scm,Agency Staff,2363.2,0,
03-05-2023,Environment and Sustainable Transport,Matrix Scm,Agency Staff,1101.57,0,
03-05-2023,Environment and Sustainable Transport,Matrix Scm,Agency Staff,938.35,0,
03-05-2023,Environment and Sustainable Transport,Matrix Scm,Agency Staff,837.02,0,
03-05-2023,Environment and Sustainable Transport,Matrix Scm,Agency Staff,1515.2,0,
03-05-2023,Environment and Sustainable Transport,Matrix Scm,Agency Staff,1727.16,0,
03-05-2023,Environment and Sustainable Transport,Matrix Scm,Agency Staff,622.26,0,
03-05-2023,Digital,Matrix Scm,Agency Staff,853.2,0,
03-05-2023,Digital,Matrix Scm,Agency Staff,994.25,0,
03-05-2023,Digital,Matrix Scm,Agency Staff,873.74,0,
03-05-2023,Digital,Matrix Scm,Agency Staff,910.44,0,
03-05-2023,Digital,Matrix Scm,Agency Staff,381.94,0,
03-05-2023,Digital,Matrix Scm,Agency Staff,691.14,0,
03-05-2023,Digital,Matrix Scm,Agency Staff,994.26,0,
03-05-2023,Digital,Matrix Scm,Agency Staff,910.44,0,
03-05-2023,Digital,Matrix Scm,Agency Staff,538.2,0,
03-05-2023,Digital,Matrix Scm,Agency Staff,853.21,0,
03-05-2023,Digital,Matrix Scm,Agency Staff,597.98,0,
03-05-2023,Digital,Matrix Scm,Agency Staff,872.64,0,
03-05-2023,oneSource,Matrix Scm,Agency Staff,2483,0,
03-05-2023,oneSource,Matrix Scm,Agency Staff,1122.04,0,
03-05-2023,oneSource,Matrix Scm,Agency Staff,2272.44,0,
03-05-2023,Digital,Matrix Scm,Agency Staff,1354.5,0,
03-05-2023,Digital,Matrix Scm,Agency Staff,975.1,0,
03-05-2023,Digital,Matrix Scm,Agency Staff,771.05,0,
03-05-2023,Digital,Matrix Scm,Agency Staff,704.55,0,
03-05-2023,Digital,Matrix Scm,Agency Staff,793.09,0,
03-05-2023,Digital,Matrix Scm,Agency Staff,782.07,0,
03-05-2023,Digital,Matrix Scm,Agency Staff,787.58,0,
03-05-2023,Digital,Matrix Scm,Agency Staff,836.29,0,
03-05-2023,Digital,Matrix Scm,Agency Staff,435.75,0,
03-05-2023,oneSource,Matrix Scm,Agency Staff,3661.75,0,
03-05-2023,oneSource,Matrix Scm,Agency Staff,704.88,0,
03-05-2023,Children and Young People,Matrix Scm,Agency Staff,2206.8,0,
03-05-2023,Children and Young People,Matrix Scm,Agency Staff,2206.8,0,
03-05-2023,Children and Young People,Matrix Scm,Agency Staff,1655.1,0,
03-05-2023,Environment and Sustainable Transport,Matrix Scm,Agency Staff,804.12,0,
03-05-2023,Environment and Sustainable Transport,Matrix Scm,Agency Staff,598.66,0,
03-05-2023,Environment and Sustainable Transport,Matrix Scm,Agency Staff,723.97,0,
03-05-2023,Environment and Sustainable Transport,Matrix Scm,Agency Staff,646.21,0,
03-05-2023,Environment and Sustainable Transport,Matrix Scm,Agency Staff,128.28,0,
03-05-2023,Environment and Sustainable Transport,Matrix Scm,Agency Staff,454.25,0,
03-05-2023,Environment and Sustainable Transport,Matrix Scm,Agency Staff,599.22,0,
03-05-2023,Environment and Sustainable Transport,Matrix Scm,Agency Staff,150.36,0,
03-05-2023,Environment and Sustainable Transport,Matrix Scm,Agency Staff,199.92,0,
03-05-2023,Environment and Sustainable Transport,Matrix Scm,Agency Staff,567.01,0,
03-05-2023,Environment and Sustainable Transport,Matrix Scm,Agency Staff,646.21,0,
03-05-2023,Environment and Sustainable Transport,Matrix Scm,Agency Staff,312.06,0,
03-05-2023,Environment and Sustainable Transport,Matrix Scm,Agency Staff,520.56,0,
03-05-2023,Environment and Sustainable Transport,Matrix Scm,Agency Staff,568.8,0,
03-05-2023,Environment and Sustainable Transport,Matrix Scm,Agency Staff,114.99,0,
03-05-2023,Environment and Sustainable Transport,Matrix Scm,Agency Staff,241.65,0,
03-05-2023,Environment and Sustainable Transport,Matrix Scm,Agency Staff,456.76,0,
03-05-2023,Environment and Sustainable Transport,Matrix Scm,Agency Staff,149.66,0,
03-05-2023,Environment and Sustainable Transport,Matrix Scm,Agency Staff,225.15,0,
03-05-2023,Environment and Sustainable Transport,Matrix Scm,Agency Staff,668.9,0,
03-05-2023,Environment and Sustainable Transport,Matrix Scm,Agency Staff,97.56,0,
03-05-2023,Environment and Sustainable Transport,Matrix Scm,Agency Staff,259.2,0,
03-05-2023,Environment and Sustainable Transport,Matrix Scm,Agency Staff,539.68,0,
03-05-2023,Environment and Sustainable Transport,Matrix Scm,Agency Staff,97.56,0,
03-05-2023,Environment and Sustainable Transport,Matrix Scm,Agency Staff,243,0,
03-05-2023,Environment and Sustainable Transport,Matrix Scm,Agency Staff,117.1,0,
03-05-2023,Environment and Sustainable Transport,Matrix Scm,Agency Staff,160.44,0,
03-05-2023,Environment and Sustainable Transport,Matrix Scm,Agency Staff,568.8,0,
03-05-2023,Environment and Sustainable Transport,Matrix Scm,Agency Staff,568.8,0,
03-05-2023,Environment and Sustainable Transport,Matrix Scm,Agency Staff,669.95,0,
03-05-2023,oneSource,Matrix Scm,Agency Staff,2153.36,0,
03-05-2023,Housing Revenue Account,Matrix Scm,Agency Staff,2837.6,0,
03-05-2023,Housing Revenue Account,Matrix Scm,Agency Staff,2208.45,0,
03-05-2023,Housing Revenue Account,Matrix Scm,Agency Staff,2557.3,0,
03-05-2023,Housing Revenue Account,Matrix Scm,Agency Staff,1990.9,0,
03-05-2023,Housing Revenue Account,Matrix Scm,Agency Staff,1080,0,
03-05-2023,Housing Revenue Account,Matrix Scm,Agency Staff,1215.9,0,
03-05-2023,Housing Revenue Account,Matrix Scm,Agency Staff,156.06,0,
03-05-2023,Housing Revenue Account,Matrix Scm,Agency Staff,1844.2,0,
03-05-2023,Housing Revenue Account,Matrix Scm,Agency Staff,2047.35,0,
03-05-2023,Housing Revenue Account,Matrix Scm,Agency Staff,1990.9,0,
03-05-2023,Housing Revenue Account,Matrix Scm,Agency Staff,1990.9,0,
03-05-2023,Resources,Matrix Scm,Agency Staff,2773.92,0,
03-05-2023,Resources,Matrix Scm,Agency Staff,3467.4,0,
03-05-2023,Resources,Matrix Scm,Agency Staff,1576.29,0,
03-05-2023,oneSource,Matrix Scm,Agency Staff,2483.5,0,
03-05-2023,oneSource,Matrix Scm,Agency Staff,3084.8,0,
03-05-2023,oneSource,Matrix Scm,Agency Staff,2082.12,0,
03-05-2023,oneSource,Matrix Scm,Agency Staff,754.35,0,
03-05-2023,oneSource,Matrix Scm,Agency Staff,933,0,
03-05-2023,oneSource,Matrix Scm,Agency Staff,691.25,0,
03-05-2023,oneSource,Matrix Scm,Agency Staff,778.69,0,
03-05-2023,oneSource,Matrix Scm,Agency Staff,700.58,0,
03-05-2023,oneSource,Matrix Scm,Agency Staff,479.16,0,
03-05-2023,oneSource,Matrix Scm,Agency Staff,1474.8,0,
03-05-2023,oneSource,Matrix Scm,Agency Staff,1098.72,0,
03-05-2023,oneSource,Matrix Scm,Agency Staff,1065.97,0,
03-05-2023,oneSource,Matrix Scm,Agency Staff,1065.97,0,
03-05-2023,oneSource,Matrix Scm,Agency Staff,1105.81,0,
03-05-2023,oneSource,Matrix Scm,Agency Staff,1049.8,0,
03-05-2023,Environment and Sustainable Transport,Matrix Scm,Agency Staff,771.05,0,
03-05-2023,Environment and Sustainable Transport,Matrix Scm,Agency Staff,632.9,0,
03-05-2023,Environment and Sustainable Transport,Matrix Scm,Agency Staff,762.58,0,
03-05-2023,Environment and Sustainable Transport,Matrix Scm,Agency Staff,765.72,0,
03-05-2023,Environment and Sustainable Transport,Matrix Scm,Agency Staff,135.8,0,
03-05-2023,Environment and Sustainable Transport,Matrix Scm,Agency Staff,797.65,0,
03-05-2023,Environment and Sustainable Transport,Matrix Scm,Agency Staff,632.88,0,
03-05-2023,Environment and Sustainable Transport,Matrix Scm,Agency Staff,321.3,0,
03-05-2023,Environment and Sustainable Transport,Matrix Scm,Agency Staff,611.24,0,
03-05-2023,Environment and Sustainable Transport,Matrix Scm,Agency Staff,691.28,0,
03-05-2023,Environment and Sustainable Transport,Matrix Scm,Agency Staff,741.6,0,
03-05-2023,Environment and Sustainable Transport,Matrix Scm,Agency Staff,765.72,0,
03-05-2023,Environment and Sustainable Transport,Matrix Scm,Agency Staff,606.7,0,
03-05-2023,Environment and Sustainable Transport,Matrix Scm,Agency Staff,632.88,0,
03-05-2023,Environment and Sustainable Transport,Matrix Scm,Agency Staff,186.62,0,
03-05-2023,Environment and Sustainable Transport,Matrix Scm,Agency Staff,747.72,0,
03-05-2023,Environment and Sustainable Transport,Matrix Scm,Agency Staff,109.6,0,
03-05-2023,Environment and Sustainable Transport,Matrix Scm,Agency Staff,0,0,
03-05-2023,Environment and Sustainable Transport,Matrix Scm,Agency Staff,509.82,0,
03-05-2023,Environment and Sustainable Transport,Matrix Scm,Agency Staff,462.82,0,
03-05-2023,Environment and Sustainable Transport,Matrix Scm,Agency Staff,317.25,0,
03-05-2023,Environment and Sustainable Transport,Matrix Scm,Agency Staff,746.75,0,
03-05-2023,Environment and Sustainable Transport,Matrix Scm,Agency Staff,415.95,0,
03-05-2023,Environment and Sustainable Transport,Matrix Scm,Agency Staff,364.8,0,
03-05-2023,Environment and Sustainable Transport,Matrix Scm,Agency Staff,771.05,0,
03-05-2023,Environment and Sustainable Transport,Matrix Scm,Agency Staff,461.72,0,
03-05-2023,Environment and Sustainable Transport,Matrix Scm,Agency Staff,321.3,0,
03-05-2023,Environment and Sustainable Transport,Matrix Scm,Agency Staff,765.72,0,
03-05-2023,Environment and Sustainable Transport,Matrix Scm,Agency Staff,461.72,0,
03-05-2023,Environment and Sustainable Transport,Matrix Scm,Agency Staff,321.3,0,
03-05-2023,Environment and Sustainable Transport,Matrix Scm,Agency Staff,765.72,0,
03-05-2023,Housing Revenue Account,Matrix Scm,Agency Staff,646.66,0,
03-05-2023,Housing Revenue Account,Matrix Scm,Agency Staff,743.75,0,
03-05-2023,Housing Revenue Account,Matrix Scm,Agency Staff,425,0,
03-05-2023,Housing Revenue Account,Matrix Scm,Agency Staff,771.05,0,
03-05-2023,Housing Revenue Account,Matrix Scm,Agency Staff,800.1,0,
03-05-2023,Housing Revenue Account,Matrix Scm,Agency Staff,704.96,0,
03-05-2023,Housing Revenue Account,Matrix Scm,Agency Staff,769.65,0,
03-05-2023,Housing Revenue Account,Matrix Scm,Agency Staff,704.96,0,
03-05-2023,Housing Revenue Account,Matrix Scm,Agency Staff,1564.92,0,
03-05-2023,Housing Revenue Account,Matrix Scm,Agency Staff,670.68,0,
03-05-2023,Housing Revenue Account,Matrix Scm,Agency Staff,670.68,0,
03-05-2023,Housing Revenue Account,Matrix Scm,Agency Staff,670.68,0,
03-05-2023,Housing Revenue Account,Matrix Scm,Agency Staff,875.61,0,
03-05-2023,Housing Revenue Account,Matrix Scm,Agency Staff,2524.64,0,
03-05-2023,Housing Revenue Account,Matrix Scm,Agency Staff,2296.8,0,
03-05-2023,Housing Revenue Account,Matrix Scm,Agency Staff,689.31,0,
03-05-2023,Housing Revenue Account,Matrix Scm,Agency Staff,3774.65,0,
03-05-2023,Housing Revenue Account,Matrix Scm,Agency Staff,670.68,0,
03-05-2023,Housing Revenue Account,Matrix Scm,Agency Staff,894.24,0,
03-05-2023,Housing Revenue Account,Matrix Scm,Agency Staff,744,0,
03-05-2023,Housing Revenue Account,Matrix Scm,Agency Staff,-372.6,0,
03-05-2023,Housing Revenue Account,Matrix Scm,Agency Staff,446.4,0,
03-05-2023,Housing Revenue Account,Matrix Scm,Agency Staff,447.12,0,
03-05-2023,Housing Revenue Account,Matrix Scm,Agency Staff,1583.55,0,
03-05-2023,Housing Revenue Account,Matrix Scm,Agency Staff,1341.36,0,
03-05-2023,Housing Revenue Account,Matrix Scm,Agency Staff,2245.8,0,
03-05-2023,Housing Revenue Account,Matrix Scm,Agency Staff,2065.2,0,
03-05-2023,Housing Revenue Account,Matrix Scm,Agency Staff,1990.9,0,
03-05-2023,Housing Revenue Account,Matrix Scm,Agency Staff,1341.36,0,
03-05-2023,Housing Revenue Account,Matrix Scm,Agency Staff,670.68,0,
03-05-2023,oneSource,Matrix Scm,Agency Staff,853.2,0,
03-05-2023,oneSource,Matrix Scm,Agency Staff,811.6,0,
03-05-2023,oneSource,Matrix Scm,Agency Staff,832.4,0,
03-05-2023,oneSource,Matrix Scm,Agency Staff,740.48,0,
03-05-2023,oneSource,Matrix Scm,Agency Staff,1971.68,0,
03-05-2023,oneSource,Matrix Scm,Agency Staff,2033.25,0,
03-05-2023,oneSource,Matrix Scm,Agency Staff,3854.3,0,
03-05-2023,Environment and Sustainable Transport,Matrix Scm,Agency Staff,876.6,0,
03-05-2023,Housing Revenue Account,Matrix Scm,Agency Staff,910.43,0,
03-05-2023,Housing Revenue Account,Matrix Scm,Agency Staff,3099.7,0,
03-05-2023,Housing Revenue Account,Matrix Scm,Agency Staff,942.13,0,
03-05-2023,Housing Revenue Account,Matrix Scm,Agency Staff,897.75,0,
03-05-2023,Housing Revenue Account,Matrix Scm,Agency Staff,429.6,0,
03-05-2023,Housing Revenue Account,Matrix Scm,Agency Staff,801.4,0,
03-05-2023,Housing Revenue Account,Matrix Scm,Agency Staff,727.01,0,
03-05-2023,Housing Revenue Account,Matrix Scm,Agency Staff,411.36,0,
03-05-2023,Housing Revenue Account,Matrix Scm,Agency Staff,596.25,0,
03-05-2023,Housing Revenue Account,Matrix Scm,Agency Staff,132.18,0,
03-05-2023,Housing Revenue Account,Matrix Scm,Agency Staff,85.48,0,
03-05-2023,Housing Revenue Account,Matrix Scm,Agency Staff,940.75,0,
03-05-2023,Housing Revenue Account,Matrix Scm,Agency Staff,198.27,0,
03-05-2023,oneSource,Matrix Scm,Agency Staff,1693.2,0,
03-05-2023,oneSource,Matrix Scm,Agency Staff,679.35,0,
03-05-2023,Children and Young People,Matrix Scm,Agency Staff,1374.9,0,
03-05-2023,Transformation,Matrix Scm,Agency Staff,412.73,0,
03-05-2023,Transformation,Matrix Scm,Agency Staff,2449.2,0,
03-05-2023,Resources,Matrix Scm,Agency Staff,2840.55,0,
03-05-2023,Resources,Matrix Scm,Agency Staff,959.04,0,
03-05-2023,Resources,Matrix Scm,Agency Staff,989.28,0,
03-05-2023,oneSource,Matrix Scm,Agency Staff,1190.16,0,
03-05-2023,oneSource,Matrix Scm,Agency Staff,755.3,0,
03-05-2023,oneSource,Matrix Scm,Agency Staff,1862.21,0,
03-05-2023,oneSource,Matrix Scm,Agency Staff,1118.05,0,
03-05-2023,oneSource,Matrix Scm,Agency Staff,919.44,0,
03-05-2023,oneSource,Matrix Scm,Agency Staff,1043.28,0,
03-05-2023,oneSource,Matrix Scm,Agency Staff,7492.2,0,
03-05-2023,Housing Revenue Account,Matrix Scm,Agency Staff,2557.3,0,
03-05-2023,Housing Revenue Account,Matrix Scm,Agency Staff,2818.7,0,
03-05-2023,Housing Revenue Account,Matrix Scm,Agency Staff,454.86,0,
03-05-2023,Housing Revenue Account,Matrix Scm,Agency Staff,568.8,0,
03-05-2023,Housing Revenue Account,Matrix Scm,Agency Staff,454.25,0,
03-05-2023,Housing Revenue Account,Matrix Scm,Agency Staff,572.77,0,
03-05-2023,Housing Revenue Account,Matrix Scm,Agency Staff,646.21,0,
03-05-2023,Housing Revenue Account,Matrix Scm,Agency Staff,568.8,0,
03-05-2023,Housing Revenue Account,Matrix Scm,Agency Staff,118.5,0,
03-05-2023,Housing Revenue Account,Matrix Scm,Agency Staff,568.8,0,
03-05-2023,Housing Revenue Account,Matrix Scm,Agency Staff,568.8,0,
03-05-2023,Housing Revenue Account,Matrix Scm,Agency Staff,568.8,0,
03-05-2023,Housing Revenue Account,Matrix Scm,Agency Staff,215.3,0,
03-05-2023,Housing Revenue Account,Matrix Scm,Agency Staff,568.8,0,
03-05-2023,Housing Revenue Account,Matrix Scm,Agency Staff,399.16,0,
03-05-2023,Housing Revenue Account,Matrix Scm,Agency Staff,646.21,0,
03-05-2023,Housing Revenue Account,Matrix Scm,Agency Staff,646.21,0,
03-05-2023,Housing Revenue Account,Matrix Scm,Agency Staff,646.21,0,
03-05-2023,Housing Revenue Account,Matrix Scm,Agency Staff,115.42,0,
03-05-2023,Housing Revenue Account,Matrix Scm,Agency Staff,568.8,0,
03-05-2023,Housing Revenue Account,Matrix Scm,Agency Staff,572.77,0,
03-05-2023,Transformation,Matrix Scm,Agency Staff,3099.75,0,
03-05-2023,Transformation,Matrix Scm,Agency Staff,3408.4,0,
03-05-2023,Transformation,Matrix Scm,Agency Staff,2840.55,0,
03-05-2023,Marketing,Matrix Scm,Agency Staff,780.4,0,
03-05-2023,Children and Young People,Matrix Scm,Agency Staff,841.92,0,
03-05-2023,Children and Young People,Matrix Scm,Agency Staff,949.68,0,
03-05-2023,Children and Young People,Matrix Scm,Agency Staff,1415.17,0,
03-05-2023,Children and Young People,Matrix Scm,Agency Staff,270.93,0,
03-05-2023,Housing Revenue Account,Matrix Scm,Agency Staff,2081.15,0,
03-05-2023,Housing Revenue Account,Matrix Scm,Agency Staff,2296.65,0,
03-05-2023,Housing Revenue Account,Matrix Scm,Agency Staff,2557.3,0,
03-05-2023,Housing Revenue Account,Matrix Scm,Agency Staff,3286.7,0,
03-05-2023,Housing Revenue Account,Matrix Scm,Agency Staff,2471.55,0,
03-05-2023,Housing Revenue Account,Matrix Scm,Agency Staff,2525.45,0,
03-05-2023,Housing Revenue Account,Matrix Scm,Agency Staff,769.65,0,
03-05-2023,Housing Revenue Account,Matrix Scm,Agency Staff,616.84,0,
03-05-2023,Housing Revenue Account,Matrix Scm,Agency Staff,644.21,0,
03-05-2023,Housing Revenue Account,Matrix Scm,Agency Staff,813.05,0,
03-05-2023,Housing Revenue Account,Matrix Scm,Agency Staff,666.41,0,
03-05-2023,Housing Revenue Account,Matrix Scm,Agency Staff,584.08,0,
03-05-2023,Housing Revenue Account,Matrix Scm,Agency Staff,146.02,0,
03-05-2023,Housing Revenue Account,Matrix Scm,Agency Staff,438.06,0,
03-05-2023,Housing Revenue Account,Matrix Scm,Agency Staff,403.83,0,
03-05-2023,Housing Revenue Account,Matrix Scm,Agency Staff,743.75,0,
03-05-2023,Housing Revenue Account,Matrix Scm,Agency Staff,771.05,0,
03-05-2023,Housing Revenue Account,Matrix Scm,Agency Staff,146.02,0,
03-05-2023,RMS,Matrix Scm,Agency Staff,948,0,
03-05-2023,RMS,Matrix Scm,Agency Staff,948,0,
03-05-2023,RMS,Matrix Scm,Agency Staff,948,0,
03-05-2023,RMS,Matrix Scm,Agency Staff,948,0,
03-05-2023,RMS,Matrix Scm,Agency Staff,1167.36,0,
03-05-2023,RMS,Matrix Scm,Agency Staff,1167.36,0,
03-05-2023,RMS,Matrix Scm,Agency Staff,972.8,0,
03-05-2023,RMS,Matrix Scm,Agency Staff,1089.62,0,
03-05-2023,RMS,Matrix Scm,Agency Staff,1212.6,0,
03-05-2023,RMS,Matrix Scm,Agency Staff,1043.05,0,
03-05-2023,RMS,Matrix Scm,Agency Staff,-53,0,
03-05-2023,RMS,Matrix Scm,Agency Staff,-65,0,
03-05-2023,RMS,Matrix Scm,Agency Staff,1043.05,0,
03-05-2023,RMS,Matrix Scm,Agency Staff,1189.2,0,
03-05-2023,RMS,Matrix Scm,Agency Staff,1152,0,
03-05-2023,RMS,Matrix Scm,Agency Staff,1212.6,0,
03-05-2023,RMS,Matrix Scm,Agency Staff,1212.6,0,
03-05-2023,RMS,Matrix Scm,Agency Staff,-53,0,
03-05-2023,RMS,Matrix Scm,Agency Staff,1189.2,0,
03-05-2023,RMS,Matrix Scm,Agency Staff,1189.2,0,
03-05-2023,RMS,Matrix Scm,Agency Staff,1189.2,0,
03-05-2023,RMS,Matrix Scm,Agency Staff,950.4,0,
03-05-2023,Transformation,Matrix Scm,Agency Staff,1224.6,0,
03-05-2023,Dedicated Schools Budget,Matrix Scm,Agency Staff,1767.6,0,
03-05-2023,Children and Young People,Matrix Scm,Agency Staff,1415.17,0,
03-05-2023,Children and Young People,Matrix Scm,Agency Staff,1090.78,0,
03-05-2023,Children and Young People,Matrix Scm,Agency Staff,1345.31,0,
03-05-2023,Children and Young People,Matrix Scm,Agency Staff,1375.85,0,
03-05-2023,Children and Young People,Matrix Scm,Agency Staff,1345.31,0,
03-05-2023,Children and Young People,Matrix Scm,Agency Staff,1182.04,0,
03-05-2023,Children and Young People,Matrix Scm,Agency Staff,1365.84,0,
03-05-2023,Children and Young People,Matrix Scm,Agency Staff,1415.17,0,
03-05-2023,Children and Young People,Matrix Scm,Agency Staff,541.86,0,
03-05-2023,Children and Young People,Matrix Scm,Agency Staff,1364.05,0,
03-05-2023,Children and Young People,Matrix Scm,Agency Staff,1447.94,0,
03-05-2023,Children and Young People,Matrix Scm,Agency Staff,1385.28,0,
03-05-2023,Children and Young People,Matrix Scm,Agency Staff,1612.45,0,
03-05-2023,Children and Young People,Matrix Scm,Agency Staff,1394.66,0,
03-05-2023,Children and Young People,Matrix Scm,Agency Staff,1649.54,0,
03-05-2023,Children and Young People,Matrix Scm,Agency Staff,40.5,0,
03-05-2023,Children and Young People,Matrix Scm,Agency Staff,1441.09,0,
03-05-2023,Children and Young People,Matrix Scm,Agency Staff,1383.49,0,
03-05-2023,Children and Young People,Matrix Scm,Agency Staff,1400.76,0,
03-05-2023,Children and Young People,Matrix Scm,Agency Staff,846.93,0,
03-05-2023,Children and Young People,Matrix Scm,Agency Staff,606.24,0,
03-05-2023,Children and Young People,Matrix Scm,Agency Staff,1446.85,0,
03-05-2023,Children and Young People,Matrix Scm,Agency Staff,1467.36,0,
03-05-2023,RMS,Matrix Scm,Agency Staff,777.39,0,
03-05-2023,RMS,Matrix Scm,Agency Staff,1058.65,0,
03-05-2023,RMS,Matrix Scm,Agency Staff,667.15,0,
03-05-2023,Inclusive Economy & Housing,Matrix Scm,Agency Staff,1473.6,0,
03-05-2023,Inclusive Economy & Housing,Matrix Scm,Agency Staff,3970.14,0,
03-05-2023,Environment and Sustainable Transport,Matrix Scm,Agency Staff,215.3,0,
03-05-2023,Environment and Sustainable Transport,Matrix Scm,Agency Staff,572.75,0,
03-05-2023,Environment and Sustainable Transport,Matrix Scm,Agency Staff,572.77,0,
03-05-2023,Environment and Sustainable Transport,Matrix Scm,Agency Staff,568.8,0,
03-05-2023,Environment and Sustainable Transport,Matrix Scm,Agency Staff,572.77,0,
03-05-2023,Environment and Sustainable Transport,Matrix Scm,Agency Staff,572.77,0,
03-05-2023,Environment and Sustainable Transport,Matrix Scm,Agency Staff,115.35,0,
03-05-2023,Environment and Sustainable Transport,Matrix Scm,Agency Staff,225.15,0,
03-05-2023,Environment and Sustainable Transport,Matrix Scm,Agency Staff,646.21,0,
03-05-2023,Environment and Sustainable Transport,Matrix Scm,Agency Staff,140.77,0,
03-05-2023,Environment and Sustainable Transport,Matrix Scm,Agency Staff,646.21,0,
03-05-2023,Environment and Sustainable Transport,Matrix Scm,Agency Staff,646.21,0,
03-05-2023,Environment and Sustainable Transport,Matrix Scm,Agency Staff,234.2,0,
03-05-2023,Environment and Sustainable Transport,Matrix Scm,Agency Staff,646.21,0,
03-05-2023,Environment and Sustainable Transport,Matrix Scm,Agency Staff,234.2,0,
03-05-2023,Environment and Sustainable Transport,Matrix Scm,Agency Staff,646.21,0,
03-05-2023,Environment and Sustainable Transport,Matrix Scm,Agency Staff,222,0,
03-05-2023,Environment and Sustainable Transport,Matrix Scm,Agency Staff,624.96,0,
03-05-2023,Environment and Sustainable Transport,Matrix Scm,Agency Staff,646.21,0,
03-05-2023,Environment and Sustainable Transport,Matrix Scm,Agency Staff,254.21,0,
03-05-2023,Environment and Sustainable Transport,Matrix Scm,Agency Staff,799.2,0,
03-05-2023,Environment and Sustainable Transport,Matrix Scm,Agency Staff,572.77,0,
03-05-2023,Environment and Sustainable Transport,Matrix Scm,Agency Staff,769.31,0,
03-05-2023,Environment and Sustainable Transport,Matrix Scm,Agency Staff,723.97,0,
03-05-2023,Environment and Sustainable Transport,Matrix Scm,Agency Staff,454.25,0,
03-05-2023,Environment and Sustainable Transport,Matrix Scm,Agency Staff,312.8,0,
03-05-2023,Environment and Sustainable Transport,Matrix Scm,Agency Staff,644.42,0,
03-05-2023,Environment and Sustainable Transport,Matrix Scm,Agency Staff,163.94,0,
03-05-2023,RMS,Matrix Scm,Agency Staff,860.4,0,
03-05-2023,RMS,Matrix Scm,Agency Staff,944.28,0,
03-05-2023,RMS,Matrix Scm,Agency Staff,2954.4,0,
03-05-2023,RMS,Matrix Scm,Agency Staff,931.14,0,
03-05-2023,RMS,Matrix Scm,Agency Staff,1007.6,0,
03-05-2023,RMS,Matrix Scm,Agency Staff,815.76,0,
03-05-2023,RMS,Matrix Scm,Agency Staff,465.92,0,
03-05-2023,Inclusive Economy & Housing,Matrix Scm,Agency Staff,1580.52,0,
03-05-2023,Inclusive Economy & Housing,Matrix Scm,Agency Staff,982.08,0,
03-05-2023,RMS,Matrix Scm,Agency Staff,1007.6,0,
03-05-2023,RMS,Matrix Scm,Agency Staff,1164.8,0,
03-05-2023,RMS,Matrix Scm,Agency Staff,1198.15,0,
03-05-2023,RMS,Matrix Scm,Agency Staff,570.72,0,
03-05-2023,RMS,Matrix Scm,Agency Staff,1018.04,0,
03-05-2023,RMS,Matrix Scm,Agency Staff,841.5,0,
03-05-2023,RMS,Matrix Scm,Agency Staff,1327.6,0,
03-05-2023,Dedicated Schools Budget,Personal Information - Redacted,Agency Staff,1739.25,0,
03-05-2023,Transformation,Matrix Scm,Agency Staff,3308.5,0,
03-05-2023,Transformation,Matrix Scm,Agency Staff,251.44,0,
03-05-2023,Transformation,Matrix Scm,Agency Staff,2254.96,0,
03-05-2023,Transformation,Matrix Scm,Agency Staff,3308.5,0,
03-05-2023,Inclusive Economy & Housing,Matrix Scm,Agency Staff,1763.25,0,
03-05-2023,Inclusive Economy & Housing,Matrix Scm,Agency Staff,968.42,0,
03-05-2023,Inclusive Economy & Housing,Matrix Scm,Agency Staff,891.73,0,
03-05-2023,Inclusive Economy & Housing,Matrix Scm,Agency Staff,992.88,0,
03-05-2023,Inclusive Economy & Housing,Matrix Scm,Agency Staff,891.71,0,
03-05-2023,Inclusive Economy & Housing,Matrix Scm,Agency Staff,885.15,0,
03-05-2023,Inclusive Economy & Housing,Matrix Scm,Agency Staff,1186.94,0,
03-05-2023,Inclusive Economy & Housing,Matrix Scm,Agency Staff,944.29,0,
03-05-2023,Inclusive Economy & Housing,Matrix Scm,Agency Staff,943.92,0,
03-05-2023,Environment and Sustainable Transport,Matrix Scm,Agency Staff,646.21,0,
03-05-2023,Environment and Sustainable Transport,Matrix Scm,Agency Staff,219.31,0,
03-05-2023,Environment and Sustainable Transport,Matrix Scm,Agency Staff,646.21,0,
03-05-2023,Environment and Sustainable Transport,Matrix Scm,Agency Staff,299.25,0,
03-05-2023,Environment and Sustainable Transport,Matrix Scm,Agency Staff,339.7,0,
03-05-2023,Environment and Sustainable Transport,Matrix Scm,Agency Staff,646.21,0,
03-05-2023,Environment and Sustainable Transport,Matrix Scm,Agency Staff,186.55,0,
03-05-2023,Environment and Sustainable Transport,Matrix Scm,Agency Staff,578.17,0,
03-05-2023,Environment and Sustainable Transport,Matrix Scm,Agency Staff,723.97,0,
03-05-2023,Environment and Sustainable Transport,Matrix Scm,Agency Staff,114.55,0,
03-05-2023,Environment and Sustainable Transport,Matrix Scm,Agency Staff,164.36,0,
03-05-2023,Environment and Sustainable Transport,Matrix Scm,Agency Staff,646.21,0,
03-05-2023,Environment and Sustainable Transport,Matrix Scm,Agency Staff,339.7,0,
03-05-2023,Environment and Sustainable Transport,Matrix Scm,Agency Staff,516.07,0,
03-05-2023,Environment and Sustainable Transport,Matrix Scm,Agency Staff,572.77,0,
03-05-2023,Environment and Sustainable Transport,Matrix Scm,Agency Staff,514.64,0,
03-05-2023,Environment and Sustainable Transport,Matrix Scm,Agency Staff,568.8,0,
03-05-2023,Environment and Sustainable Transport,Matrix Scm,Agency Staff,646.21,0,
03-05-2023,Environment and Sustainable Transport,Matrix Scm,Agency Staff,140.88,0,
03-05-2023,Environment and Sustainable Transport,Matrix Scm,Agency Staff,186.2,0,
03-05-2023,Environment and Sustainable Transport,Matrix Scm,Agency Staff,723.97,0,
03-05-2023,Environment and Sustainable Transport,Matrix Scm,Agency Staff,801.5,0,
03-05-2023,Environment and Sustainable Transport,Matrix Scm,Agency Staff,822.85,0,
03-05-2023,RMS,Matrix Scm,Agency Staff,1006.4,0,
03-05-2023,RMS,Matrix Scm,Agency Staff,942.14,0,
03-05-2023,RMS,Matrix Scm,Agency Staff,748.84,0,
03-05-2023,RMS,Matrix Scm,Agency Staff,1006.4,0,
03-05-2023,RMS,Matrix Scm,Agency Staff,-83.33,0,
03-05-2023,RMS,Matrix Scm,Agency Staff,652.54,0,
03-05-2023,RMS,Matrix Scm,Agency Staff,1231.2,0,
03-05-2023,RMS,Matrix Scm,Agency Staff,1074.8,0,
03-05-2023,RMS,Matrix Scm,Agency Staff,1006.4,0,
03-05-2023,RMS,Matrix Scm,Agency Staff,583.68,0,
03-05-2023,RMS,Matrix Scm,Agency Staff,796.9,0,
03-05-2023,RMS,Matrix Scm,Agency Staff,850,0,
03-05-2023,RMS,Matrix Scm,Agency Staff,1029.4,0,
03-05-2023,RMS,Matrix Scm,Agency Staff,379.52,0,
03-05-2023,RMS,Matrix Scm,Agency Staff,1006.8,0,
03-05-2023,RMS,Matrix Scm,Agency Staff,944.8,0,
03-05-2023,RMS,Matrix Scm,Agency Staff,850.32,0,
03-05-2023,RMS,Matrix Scm,Agency Staff,1247.2,0,
03-05-2023,RMS,Matrix Scm,Agency Staff,526.56,0,
03-05-2023,RMS,Matrix Scm,Agency Staff,1182,0,
03-05-2023,RMS,Matrix Scm,Agency Staff,951.2,0,
03-05-2023,RMS,Matrix Scm,Agency Staff,440.16,0,
03-05-2023,RMS,Matrix Scm,Agency Staff,1294.4,0,
03-05-2023,RMS,Matrix Scm,Agency Staff,1327.6,0,
03-05-2023,RMS,Matrix Scm,Agency Staff,956.46,0,
03-05-2023,RMS,Matrix Scm,Agency Staff,1327.6,0,
03-05-2023,RMS,Matrix Scm,Agency Staff,652.9,0,
03-05-2023,Environment and Sustainable Transport,Matrix Scm,Agency Staff,568.8,0,
03-05-2023,Environment and Sustainable Transport,Matrix Scm,Agency Staff,568.8,0,
03-05-2023,Environment and Sustainable Transport,Matrix Scm,Agency Staff,169.8,0,
03-05-2023,Environment and Sustainable Transport,Matrix Scm,Agency Staff,646.21,0,
03-05-2023,Environment and Sustainable Transport,Matrix Scm,Agency Staff,706.69,0,
03-05-2023,Environment and Sustainable Transport,Matrix Scm,Agency Staff,706.69,0,
03-05-2023,Environment and Sustainable Transport,Matrix Scm,Agency Staff,458.2,0,
03-05-2023,Environment and Sustainable Transport,Matrix Scm,Agency Staff,708.13,0,
03-05-2023,Environment and Sustainable Transport,Matrix Scm,Agency Staff,797.76,0,
03-05-2023,Environment and Sustainable Transport,Matrix Scm,Agency Staff,797.76,0,
03-05-2023,Environment and Sustainable Transport,Matrix Scm,Agency Staff,225.15,0,
03-05-2023,Environment and Sustainable Transport,Matrix Scm,Agency Staff,645.86,0,
03-05-2023,Environment and Sustainable Transport,Matrix Scm,Agency Staff,624.96,0,
03-05-2023,Environment and Sustainable Transport,Matrix Scm,Agency Staff,133.42,0,
03-05-2023,Environment and Sustainable Transport,Matrix Scm,Agency Staff,686.18,0,
03-05-2023,Environment and Sustainable Transport,Matrix Scm,Agency Staff,706.69,0,
03-05-2023,Environment and Sustainable Transport,Matrix Scm,Agency Staff,229.1,0,
03-05-2023,Environment and Sustainable Transport,Matrix Scm,Agency Staff,458.2,0,
03-05-2023,Environment and Sustainable Transport,Matrix Scm,Agency Staff,377.58,0,
03-05-2023,Environment and Sustainable Transport,Matrix Scm,Agency Staff,799.2,0,
03-05-2023,Environment and Sustainable Transport,Matrix Scm,Agency Staff,646.21,0,
03-05-2023,Environment and Sustainable Transport,Matrix Scm,Agency Staff,114.55,0,
03-05-2023,Environment and Sustainable Transport,Matrix Scm,Agency Staff,646.21,0,
03-05-2023,Environment and Sustainable Transport,Matrix Scm,Agency Staff,568.8,0,
03-05-2023,Environment and Sustainable Transport,Matrix Scm,Agency Staff,568.8,0,
03-05-2023,Environment and Sustainable Transport,Matrix Scm,Agency Staff,568.8,0,
03-05-2023,Environment and Sustainable Transport,Matrix Scm,Agency Staff,568.8,0,
03-05-2023,Environment and Sustainable Transport,Matrix Scm,Agency Staff,568.8,0,
03-05-2023,Environment and Sustainable Transport,Matrix Scm,Agency Staff,572.77,0,
03-05-2023,Inclusive Economy & Housing,Matrix Scm,Agency Staff,646.21,0,
03-05-2023,Inclusive Economy & Housing,Matrix Scm,Agency Staff,183.24,0,
03-05-2023,Inclusive Economy & Housing,Matrix Scm,Agency Staff,627.48,0,
03-05-2023,Environment and Sustainable Transport,Matrix Scm,Agency Staff,700.58,0,
03-05-2023,Inclusive Economy & Housing,Matrix Scm,Agency Staff,972,0,
03-05-2023,Inclusive Economy & Housing,Matrix Scm,Agency Staff,910.44,0,
03-05-2023,Marketing,Matrix Scm,Agency Staff,2274.15,0,
03-05-2023,Inclusive Economy & Housing,Matrix Scm,Agency Staff,692.16,0,
03-05-2023,Inclusive Economy & Housing,Matrix Scm,Agency Staff,173.04,0,
03-05-2023,Inclusive Economy & Housing,Matrix Scm,Agency Staff,943.92,0,
03-05-2023,Inclusive Economy & Housing,Matrix Scm,Agency Staff,2139.4,0,
03-05-2023,Adults & Health,Matrix Scm,Agency Staff,733.92,0,
03-05-2023,Adults & Health,Matrix Scm,Agency Staff,13.05,0,
03-05-2023,Adults & Health,Matrix Scm,Agency Staff,755.71,0,
03-05-2023,Adults & Health,Matrix Scm,Agency Staff,927.11,0,
03-05-2023,Adults & Health,Matrix Scm,Agency Staff,505.96,0,
03-05-2023,Adults & Health,Matrix Scm,Agency Staff,336.54,0,
03-05-2023,Adults & Health,Matrix Scm,Agency Staff,830.15,0,
03-05-2023,Adults & Health,Matrix Scm,Agency Staff,926.86,0,
03-05-2023,Adults & Health,Matrix Scm,Agency Staff,1349.28,0,
03-05-2023,Adults & Health,Matrix Scm,Agency Staff,1349.28,0,
03-05-2023,Adults & Health,Matrix Scm,Agency Staff,1447.94,0,
03-05-2023,Adults & Health,Matrix Scm,Agency Staff,1200.32,0,
03-05-2023,Environment and Sustainable Transport,Matrix Scm,Agency Staff,2189.56,0,
03-05-2023,Resources,Matrix Scm,Agency Staff,1766.8,0,
03-05-2023,Adults & Health,Matrix Scm,Agency Staff,1621.09,0,
03-05-2023,Adults & Health,Matrix Scm,Agency Staff,2371.44,0,
03-05-2023,Adults & Health,Matrix Scm,Agency Staff,378.8,0,
03-05-2023,Adults & Health,Matrix Scm,Agency Staff,940.67,0,
03-05-2023,Adults & Health,Matrix Scm,Agency Staff,896.94,0,
03-05-2023,Adults & Health,Matrix Scm,Agency Staff,1411.08,0,
03-05-2023,Adults & Health,Matrix Scm,Agency Staff,1687.9,0,
03-05-2023,Adults & Health,Matrix Scm,Agency Staff,2326.2,0,
03-05-2023,Children and Young People,Matrix Scm,Agency Staff,565.44,0,
03-05-2023,Children and Young People,Matrix Scm,Agency Staff,502.61,0,
03-05-2023,Children and Young People,Matrix Scm,Agency Staff,326,0,
03-05-2023,Children and Young People,Matrix Scm,Agency Staff,516.6,0,
03-05-2023,Children and Young People,Matrix Scm,Agency Staff,571.34,0,
03-05-2023,Children and Young People,Matrix Scm,Agency Staff,350.4,0,
03-05-2023,Children and Young People,Matrix Scm,Agency Staff,350.4,0,
03-05-2023,Children and Young People,Matrix Scm,Agency Staff,370.6,0,
03-05-2023,Children and Young People,Matrix Scm,Agency Staff,833.85,0,
03-05-2023,Children and Young People,Matrix Scm,Agency Staff,613.13,0,
03-05-2023,Children and Young People,Matrix Scm,Agency Staff,391.2,0,
03-05-2023,Children and Young People,Matrix Scm,Agency Staff,408.76,0,
03-05-2023,Children and Young People,Matrix Scm,Agency Staff,461,0,
03-05-2023,Children and Young People,Matrix Scm,Agency Staff,416.25,0,
03-05-2023,Children and Young People,Matrix Scm,Agency Staff,708.84,0,
03-05-2023,Children and Young People,Matrix Scm,Agency Staff,453.99,0,
03-05-2023,Children and Young People,Matrix Scm,Agency Staff,378.84,0,
03-05-2023,Children and Young People,Matrix Scm,Agency Staff,350.4,0,
03-05-2023,Inclusive Economy & Housing,Matrix Scm,Agency Staff,414.96,0,
03-05-2023,Inclusive Economy & Housing,Matrix Scm,Agency Staff,956.88,0,
03-05-2023,Inclusive Economy & Housing,Matrix Scm,Agency Staff,978.84,0,
03-05-2023,Inclusive Economy & Housing,Matrix Scm,Agency Staff,645.77,0,
03-05-2023,Environment and Sustainable Transport,Matrix Scm,Agency Staff,646.21,0,
03-05-2023,Adults & Health,Matrix Scm,Agency Staff,1265.41,0,
03-05-2023,Adults & Health,Matrix Scm,Agency Staff,1241.28,0,
03-05-2023,Adults & Health,Matrix Scm,Agency Staff,1195.08,0,
03-05-2023,Adults & Health,Matrix Scm,Agency Staff,1313.28,0,
03-05-2023,Adults & Health,Matrix Scm,Agency Staff,1286.15,0,
03-05-2023,Adults & Health,Matrix Scm,Agency Staff,1277.28,0,
03-05-2023,Adults & Health,Matrix Scm,Agency Staff,1043.44,0,
03-05-2023,Children and Young People,Matrix Scm,Agency Staff,1675.45,0,
03-05-2023,Children and Young People,Matrix Scm,Agency Staff,2883.5,0,
03-05-2023,Marketing,Matrix Scm,Agency Staff,203.9,0,
03-05-2023,RMS,Matrix Scm,Agency Staff,587.14,0,
03-05-2023,RMS,Matrix Scm,Agency Staff,749.15,0,
03-05-2023,RMS,Matrix Scm,Agency Staff,780.4,0,
03-05-2023,RMS,Matrix Scm,Agency Staff,728.35,0,
03-05-2023,RMS,Matrix Scm,Agency Staff,634.71,0,
03-05-2023,Environment and Sustainable Transport,Matrix Scm,Agency Staff,613.09,0,
03-05-2023,Environment and Sustainable Transport,Matrix Scm,Agency Staff,613.09,0,
03-05-2023,Environment and Sustainable Transport,Matrix Scm,Agency Staff,578.28,0,
03-05-2023,Inclusive Economy & Housing,Matrix Scm,Agency Staff,2288.64,0,
03-05-2023,Inclusive Economy & Housing,Matrix Scm,Agency Staff,3.15,0,
03-05-2023,Inclusive Economy & Housing,Matrix Scm,Agency Staff,1151.61,0,
03-05-2023,Inclusive Economy & Housing,Matrix Scm,Agency Staff,1565.28,0,
03-05-2023,Inclusive Economy & Housing,Matrix Scm,Agency Staff,818.55,0,
03-05-2023,Marketing,Matrix Scm,Agency Staff,3646.5,0,
03-05-2023,Marketing,Matrix Scm,Agency Staff,2917.2,0,
03-05-2023,Marketing,Matrix Scm,Agency Staff,4872.45,0,
03-05-2023,Marketing,Matrix Scm,Agency Staff,2385.36,0,
03-05-2023,Adults & Health,Matrix Scm,Agency Staff,1050,0,
03-05-2023,Children and Young People,Performance Coaching International,Staff Development And Training,1103.03,0,COMMERCIAL SUPPLIER
03-05-2023,Children and Young People,Performance Coaching International,Staff Development And Training,1060.65,0,COMMERCIAL SUPPLIER
03-05-2023,Inclusive Economy & Housing,RAW Pictures Ltd,Design And Photographic Costs,1900,0,COMMERCIAL SUPPLIER
03-05-2023,RMS,London Network for Pest Solutions Ltd,Private Contractors Payment - Other,795,0,COMMERCIAL SUPPLIER
03-05-2023,RMS,London Network for Pest Solutions Ltd,Private Contractors Payment - Other,295,0,COMMERCIAL SUPPLIER
03-05-2023,RMS,London Network for Pest Solutions Ltd,Private Contractors Payment - Other,400,0,COMMERCIAL SUPPLIER
03-05-2023,Children and Young People,Personal Information - Redacted,Legal Fees,650,0,LEGAL SERVICES
03-05-2023,Children and Young People,Personal Information - Redacted,Legal Fees,1175,0,LEGAL SERVICES
03-05-2023,Children and Young People,Personal Information - Redacted,Legal Fees,1400,0,LEGAL SERVICES
03-05-2023,Children and Young People,Personal Information - Redacted,Legal Fees,1300,0,LEGAL SERVICES
03-05-2023,Children and Young People,Personal Information - Redacted,Legal Fees,650,0,LEGAL SERVICES
03-05-2023,Children and Young People,Personal Information - Redacted,Legal Fees,650,0,LEGAL SERVICES
03-05-2023,Children and Young People,Personal Information - Redacted,Legal Fees,1450,0,LEGAL SERVICES
03-05-2023,Children and Young People,Newham Partnership Working Ltd,Professional Services - General,852,0,VENDOR
03-05-2023,Inclusive Economy & Housing,Right Choice Properties Ltd,Rents Payable,160.74,0,VENDOR
03-05-2023,Inclusive Economy & Housing,Right Choice Properties Ltd,Rents Payable,1350,0,VENDOR
03-05-2023,Inclusive Economy & Housing,Right Choice Properties Ltd,Rents Payable,1425,0,VENDOR
03-05-2023,Inclusive Economy & Housing,Right Choice Properties Ltd,Rents Payable,1350,0,VENDOR
03-05-2023,Inclusive Economy & Housing,Right Choice Properties Ltd,Rents Payable,1607.4,0,VENDOR
03-05-2023,Inclusive Economy & Housing,Right Choice Properties Ltd,Rents Payable,1800,0,VENDOR
03-05-2023,Inclusive Economy & Housing,Right Choice Properties Ltd,Rents Payable,1425,0,VENDOR
03-05-2023,Inclusive Economy & Housing,Right Choice Properties Ltd,Rents Payable,1350,0,VENDOR
03-05-2023,Inclusive Economy & Housing,Right Choice Properties Ltd,Rents Payable,1607.4,0,VENDOR
03-05-2023,Inclusive Economy & Housing,Right Choice Properties Ltd,Rents Payable,1650,0,VENDOR
03-05-2023,Inclusive Economy & Housing,Right Choice Properties Ltd,Rents Payable,1350,0,VENDOR
03-05-2023,Inclusive Economy & Housing,Right Choice Properties Ltd,Rents Payable,1080,0,VENDOR
03-05-2023,Inclusive Economy & Housing,Right Choice Properties Ltd,Rents Payable,1350,0,VENDOR
03-05-2023,Inclusive Economy & Housing,Right Choice Properties Ltd,Rents Payable,1800,0,VENDOR
03-05-2023,Inclusive Economy & Housing,Right Choice Properties Ltd,Rents Payable,194,0,VENDOR
03-05-2023,Inclusive Economy & Housing,Right Choice Properties Ltd,Rents Payable,1425,0,VENDOR
03-05-2023,Inclusive Economy & Housing,Right Choice Properties Ltd,Rents Payable,1080,0,VENDOR
03-05-2023,Inclusive Economy & Housing,Right Choice Properties Ltd,Rents Payable,1650,0,VENDOR
03-05-2023,Inclusive Economy & Housing,Right Choice Properties Ltd,Rents Payable,1607.4,0,VENDOR
03-05-2023,Inclusive Economy & Housing,Right Choice Properties Ltd,Rents Payable,1371.6,0,VENDOR
03-05-2023,Inclusive Economy & Housing,Right Choice Properties Ltd,Rents Payable,1371.6,0,VENDOR
03-05-2023,Inclusive Economy & Housing,Right Choice Properties Ltd,Rents Payable,1080,0,VENDOR
03-05-2023,Inclusive Economy & Housing,Right Choice Properties Ltd,Rents Payable,1350,0,VENDOR
03-05-2023,Inclusive Economy & Housing,Right Choice Properties Ltd,Rents Payable,1371.6,0,VENDOR
03-05-2023,Inclusive Economy & Housing,Right Choice Properties Ltd,Rents Payable,1425,0,VENDOR
03-05-2023,Inclusive Economy & Housing,Right Choice Properties Ltd,Rents Payable,1080,0,VENDOR
03-05-2023,Inclusive Economy & Housing,Right Choice Properties Ltd,Rents Payable,1425,0,VENDOR
03-05-2023,Inclusive Economy & Housing,Right Choice Properties Ltd,Rents Payable,1650,0,VENDOR
03-05-2023,Inclusive Economy & Housing,Right Choice Properties Ltd,Rents Payable,1425,0,VENDOR
03-05-2023,Inclusive Economy & Housing,Right Choice Properties Ltd,Rents Payable,1425,0,VENDOR
03-05-2023,Inclusive Economy & Housing,Right Choice Properties Ltd,Rents Payable,1371.6,0,VENDOR
03-05-2023,Inclusive Economy & Housing,Right Choice Properties Ltd,Rents Payable,1425,0,VENDOR
03-05-2023,Inclusive Economy & Housing,Right Choice Properties Ltd,Rents Payable,1425,0,VENDOR
03-05-2023,Inclusive Economy & Housing,Right Choice Properties Ltd,Rents Payable,1800,0,VENDOR
03-05-2023,Inclusive Economy & Housing,Right Choice Properties Ltd,Rents Payable,1425,0,VENDOR
03-05-2023,Inclusive Economy & Housing,Right Choice Properties Ltd,Rents Payable,1650,0,VENDOR
03-05-2023,Inclusive Economy & Housing,Right Choice Properties Ltd,Rents Payable,1800,0,VENDOR
03-05-2023,Inclusive Economy & Housing,Right Choice Properties Ltd,Rents Payable,1800,0,VENDOR
03-05-2023,Inclusive Economy & Housing,Right Choice Properties Ltd,Rents Payable,1371.6,0,VENDOR
03-05-2023,Inclusive Economy & Housing,Right Choice Properties Ltd,Rents Payable,1875,0,VENDOR
03-05-2023,Inclusive Economy & Housing,Right Choice Properties Ltd,Rents Payable,957,0,VENDOR
03-05-2023,Inclusive Economy & Housing,Right Choice Properties Ltd,Rents Payable,1768.2,0,VENDOR
03-05-2023,Inclusive Economy & Housing,Elan Management Solutions T/A Joy Foundation,Rents Payable,1080,0,VENDOR
03-05-2023,Inclusive Economy & Housing,Elan Management Solutions T/A Joy Foundation,Rents Payable,1080,0,VENDOR
03-05-2023,Inclusive Economy & Housing,Elan Management Solutions T/A Joy Foundation,Rents Payable,1080,0,VENDOR
03-05-2023,Inclusive Economy & Housing,Elan Management Solutions T/A Joy Foundation,Rents Payable,1080,0,VENDOR
03-05-2023,Inclusive Economy & Housing,Elan Management Solutions T/A Joy Foundation,Rents Payable,1080,0,VENDOR
03-05-2023,Inclusive Economy & Housing,Elan Management Solutions T/A Joy Foundation,Rents Payable,1080,0,VENDOR
03-05-2023,Inclusive Economy & Housing,Elan Management Solutions T/A Joy Foundation,Rents Payable,1080,0,VENDOR
03-05-2023,Inclusive Economy & Housing,Elan Management Solutions T/A Joy Foundation,Rents Payable,1080,0,VENDOR
03-05-2023,Inclusive Economy & Housing,Elan Management Solutions T/A Joy Foundation,Rents Payable,1080,0,VENDOR
03-05-2023,Inclusive Economy & Housing,Elan Management Solutions T/A Joy Foundation,Rents Payable,1080,0,VENDOR
03-05-2023,Inclusive Economy & Housing,Elan Management Solutions T/A Joy Foundation,Rents Payable,1080,0,VENDOR
03-05-2023,Inclusive Economy & Housing,Elan Management Solutions T/A Joy Foundation,Rents Payable,1080,0,VENDOR
03-05-2023,Inclusive Economy & Housing,Elan Management Solutions T/A Joy Foundation,Rents Payable,1080,0,VENDOR
03-05-2023,Inclusive Economy & Housing,Elan Management Solutions T/A Joy Foundation,Rents Payable,1080,0,VENDOR
03-05-2023,Inclusive Economy & Housing,Elan Management Solutions T/A Joy Foundation,Rents Payable,1080,0,VENDOR
03-05-2023,Inclusive Economy & Housing,Elan Management Solutions T/A Joy Foundation,Rents Payable,1080,0,VENDOR
03-05-2023,Inclusive Economy & Housing,Elan Management Solutions T/A Joy Foundation,Rents Payable,1080,0,VENDOR
03-05-2023,Inclusive Economy & Housing,Elan Management Solutions T/A Joy Foundation,Rents Payable,1080,0,VENDOR
03-05-2023,Inclusive Economy & Housing,Elan Management Solutions T/A Joy Foundation,Rents Payable,1650,0,VENDOR
03-05-2023,Inclusive Economy & Housing,Elan Management Solutions T/A Joy Foundation,Rents Payable,1350,0,VENDOR
03-05-2023,Inclusive Economy & Housing,Elan Management Solutions T/A Joy Foundation,Rents Payable,1350,0,VENDOR
03-05-2023,Inclusive Economy & Housing,Elan Management Solutions T/A Joy Foundation,Rents Payable,1080,0,VENDOR
03-05-2023,Inclusive Economy & Housing,Elan Management Solutions T/A Joy Foundation,Rents Payable,1080,0,VENDOR
03-05-2023,Inclusive Economy & Housing,Elan Management Solutions T/A Joy Foundation,Rents Payable,1350,0,VENDOR
03-05-2023,Inclusive Economy & Housing,Elan Management Solutions T/A Joy Foundation,Rents Payable,1080,0,VENDOR
03-05-2023,Inclusive Economy & Housing,Elan Management Solutions T/A Joy Foundation,Rents Payable,1080,0,VENDOR
03-05-2023,Inclusive Economy & Housing,Elan Management Solutions T/A Joy Foundation,Rents Payable,1080,0,VENDOR
03-05-2023,Inclusive Economy & Housing,Elan Management Solutions T/A Joy Foundation,Rents Payable,1650,0,VENDOR
03-05-2023,Inclusive Economy & Housing,Elan Management Solutions T/A Joy Foundation,Rents Payable,1650,0,VENDOR
03-05-2023,Inclusive Economy & Housing,Elan Management Solutions T/A Joy Foundation,Rents Payable,1650,0,VENDOR
03-05-2023,Inclusive Economy & Housing,Elan Management Solutions T/A Joy Foundation,Rents Payable,1080,0,VENDOR
03-05-2023,Inclusive Economy & Housing,Elan Management Solutions T/A Joy Foundation,Rents Payable,1350,0,VENDOR
03-05-2023,Inclusive Economy & Housing,Elan Management Solutions T/A Joy Foundation,Rents Payable,1350,0,VENDOR
03-05-2023,Inclusive Economy & Housing,Elan Management Solutions T/A Joy Foundation,Rents Payable,840,0,VENDOR
03-05-2023,Inclusive Economy & Housing,Elan Management Solutions T/A Joy Foundation,Rents Payable,1350,0,VENDOR
03-05-2023,Inclusive Economy & Housing,Elan Management Solutions T/A Joy Foundation,Rents Payable,1350,0,VENDOR
03-05-2023,Inclusive Economy & Housing,Elan Management Solutions T/A Joy Foundation,Rents Payable,1650,0,VENDOR
03-05-2023,Inclusive Economy & Housing,Elan Management Solutions T/A Joy Foundation,Rents Payable,1080,0,VENDOR
03-05-2023,Inclusive Economy & Housing,Elan Management Solutions T/A Joy Foundation,Rents Payable,1650,0,VENDOR
03-05-2023,Inclusive Economy & Housing,Elan Management Solutions T/A Joy Foundation,Rents Payable,1650,0,VENDOR
03-05-2023,Inclusive Economy & Housing,Capital Letting & Estate Agents,Rents Payable,1800,0,VENDOR
03-05-2023,Inclusive Economy & Housing,Phase Property Services Ltd,Rents Payable,1425,0,VENDOR
03-05-2023,Inclusive Economy & Housing,Right Choice Properties Ltd,Rents Payable,1800,0,VENDOR
03-05-2023,Inclusive Economy & Housing,Right Choice Properties Ltd,Rents Payable,1800,0,VENDOR
03-05-2023,Inclusive Economy & Housing,Right Choice Properties Ltd,Rents Payable,1350,0,VENDOR
03-05-2023,Inclusive Economy & Housing,Right Choice Properties Ltd,Rents Payable,1350,0,VENDOR
03-05-2023,Inclusive Economy & Housing,Right Choice Properties Ltd,Rents Payable,1350,0,VENDOR
03-05-2023,Inclusive Economy & Housing,Right Choice Properties Ltd,Rents Payable,1425,0,VENDOR
03-05-2023,Inclusive Economy & Housing,Right Choice Properties Ltd,Rents Payable,1425,0,VENDOR
03-05-2023,Inclusive Economy & Housing,Right Choice Properties Ltd,Rents Payable,1350,0,VENDOR
03-05-2023,Inclusive Economy & Housing,Right Choice Properties Ltd,Rents Payable,1500,0,VENDOR
03-05-2023,Inclusive Economy & Housing,Right Choice Properties Ltd,Rents Payable,1800,0,VENDOR
03-05-2023,Inclusive Economy & Housing,Right Choice Properties Ltd,Rents Payable,1350,0,VENDOR
03-05-2023,Inclusive Economy & Housing,Right Choice Properties Ltd,Rents Payable,1890,0,VENDOR
03-05-2023,Inclusive Economy & Housing,Right Choice Properties Ltd,Rents Payable,1350,0,VENDOR
03-05-2023,Inclusive Economy & Housing,Right Choice Properties Ltd,Rents Payable,1607.4,0,VENDOR
03-05-2023,Inclusive Economy & Housing,Right Choice Properties Ltd,Rents Payable,1800,0,VENDOR
03-05-2023,Inclusive Economy & Housing,Right Choice Properties Ltd,Rents Payable,1500,0,VENDOR
03-05-2023,Inclusive Economy & Housing,Right Choice Properties Ltd,Rents Payable,1650,0,VENDOR
03-05-2023,Inclusive Economy & Housing,Right Choice Properties Ltd,Rents Payable,1607.4,0,VENDOR
03-05-2023,Inclusive Economy & Housing,Right Choice Properties Ltd,Rents Payable,1710,0,VENDOR
03-05-2023,Inclusive Economy & Housing,Right Choice Properties Ltd,Rents Payable,1425,0,VENDOR
03-05-2023,Inclusive Economy & Housing,Right Choice Properties Ltd,Rents Payable,1714.5,0,VENDOR
03-05-2023,Inclusive Economy & Housing,Right Choice Properties Ltd,Rents Payable,1440,0,VENDOR
03-05-2023,Inclusive Economy & Housing,Zfa Limited,Rents Payable,990,0,VENDOR
03-05-2023,Inclusive Economy & Housing,Zfa Limited,Rents Payable,1890,0,VENDOR
03-05-2023,Inclusive Economy & Housing,Zfa Limited,Rents Payable,1230,0,VENDOR
03-05-2023,Inclusive Economy & Housing,Zfa Limited,Rents Payable,1500,0,VENDOR
03-05-2023,Inclusive Economy & Housing,Zfa Limited,Rents Payable,1425,0,VENDOR
03-05-2023,Inclusive Economy & Housing,Zfa Limited,Rents Payable,1800,0,VENDOR
03-05-2023,Inclusive Economy & Housing,Zfa Limited,Rents Payable,1800,0,VENDOR
03-05-2023,Inclusive Economy & Housing,Zfa Limited,Rents Payable,1020,0,VENDOR
03-05-2023,Inclusive Economy & Housing,Zfa Limited,Rents Payable,2070,0,VENDOR
03-05-2023,Inclusive Economy & Housing,Zfa Limited,Rents Payable,1140,0,VENDOR
03-05-2023,Inclusive Economy & Housing,Zfa Limited,Rents Payable,1530,0,VENDOR
03-05-2023,Inclusive Economy & Housing,Zfa Limited,Rents Payable,1080,0,VENDOR
03-05-2023,Inclusive Economy & Housing,Zfa Limited,Rents Payable,1140,0,VENDOR
03-05-2023,Inclusive Economy & Housing,Zfa Limited,Rents Payable,1650,0,VENDOR
03-05-2023,Inclusive Economy & Housing,Zfa Limited,Rents Payable,1800,0,VENDOR
03-05-2023,Inclusive Economy & Housing,Zfa Limited,Rents Payable,1425,0,VENDOR
03-05-2023,Inclusive Economy & Housing,Zfa Limited,Rents Payable,1371.6,0,VENDOR
03-05-2023,Inclusive Economy & Housing,Zfa Limited,Rents Payable,1371.6,0,VENDOR
03-05-2023,Inclusive Economy & Housing,Zfa Limited,Rents Payable,1650,0,VENDOR
03-05-2023,Inclusive Economy & Housing,Zfa Limited,Rents Payable,1800,0,VENDOR
03-05-2023,Inclusive Economy & Housing,Zfa Limited,Rents Payable,1410,0,VENDOR
03-05-2023,Inclusive Economy & Housing,Zfa Limited,Rents Payable,1714.5,0,VENDOR
03-05-2023,Inclusive Economy & Housing,Reka Property Management,Rents Payable,1425,0,VENDOR
03-05-2023,Inclusive Economy & Housing,Newhaven 16 Plus Ltd,Rents Payable,1371.6,0,VENDOR
03-05-2023,Inclusive Economy & Housing,Newhaven 16 Plus Ltd,Rents Payable,1371.6,0,VENDOR
03-05-2023,Inclusive Economy & Housing,Newhaven 16 Plus Ltd,Rents Payable,1842.9,0,VENDOR
03-05-2023,Inclusive Economy & Housing,Newhaven 16 Plus Ltd,Rents Payable,1264.2,0,VENDOR
03-05-2023,Inclusive Economy & Housing,Homefinders,Rents Payable,1380,0,VENDOR
03-05-2023,Inclusive Economy & Housing,Homefinders,Rents Payable,1500,0,VENDOR
03-05-2023,Inclusive Economy & Housing,Homefinders,Rents Payable,1605,0,VENDOR
03-05-2023,Inclusive Economy & Housing,Homefinders,Rents Payable,1350,0,VENDOR
03-05-2023,Inclusive Economy & Housing,Homefinders,Rents Payable,1425,0,VENDOR
03-05-2023,Inclusive Economy & Housing,Homefinders,Rents Payable,1650,0,VENDOR
03-05-2023,Inclusive Economy & Housing,Homefinders,Rents Payable,1575,0,VENDOR
03-05-2023,Inclusive Economy & Housing,Homefinders,Rents Payable,1605,0,VENDOR
03-05-2023,Inclusive Economy & Housing,Homefinders,Rents Payable,1470,0,VENDOR
03-05-2023,Inclusive Economy & Housing,Homefinders,Rents Payable,1950,0,VENDOR
03-05-2023,Inclusive Economy & Housing,Homefinders,Rents Payable,1080,0,VENDOR
03-05-2023,Inclusive Economy & Housing,Homefinders,Rents Payable,1350,0,VENDOR
03-05-2023,Inclusive Economy & Housing,Homefinders,Rents Payable,1650,0,VENDOR
03-05-2023,Inclusive Economy & Housing,Homefinders,Rents Payable,1650,0,VENDOR
03-05-2023,Inclusive Economy & Housing,Homefinders,Rents Payable,1650,0,VENDOR
03-05-2023,Inclusive Economy & Housing,Homefinders,Rents Payable,1140,0,VENDOR
03-05-2023,Inclusive Economy & Housing,Homefinders,Rents Payable,250,0,VENDOR
03-05-2023,Inclusive Economy & Housing,Homefinders,Rents Payable,588,0,VENDOR
03-05-2023,Inclusive Economy & Housing,Homefinders,Rents Payable,36,0,VENDOR
03-05-2023,Inclusive Economy & Housing,Elan Management Solutions T/A Joy Foundation,Rents Payable,1080,0,VENDOR
03-05-2023,Inclusive Economy & Housing,Elan Management Solutions T/A Joy Foundation,Rents Payable,1350,0,VENDOR
03-05-2023,Inclusive Economy & Housing,Elan Management Solutions T/A Joy Foundation,Rents Payable,1350,0,VENDOR
03-05-2023,Inclusive Economy & Housing,Elan Management Solutions T/A Joy Foundation,Rents Payable,1650,0,VENDOR
03-05-2023,Inclusive Economy & Housing,Elan Management Solutions T/A Joy Foundation,Rents Payable,1650,0,VENDOR
03-05-2023,Inclusive Economy & Housing,Elan Management Solutions T/A Joy Foundation,Rents Payable,960,0,VENDOR
03-05-2023,Inclusive Economy & Housing,Elan Management Solutions T/A Joy Foundation,Rents Payable,1650,0,VENDOR
03-05-2023,Inclusive Economy & Housing,Elan Management Solutions T/A Joy Foundation,Rents Payable,840,0,VENDOR
03-05-2023,Inclusive Economy & Housing,Elan Management Solutions T/A Joy Foundation,Rents Payable,1650,0,VENDOR
03-05-2023,Inclusive Economy & Housing,Elan Management Solutions T/A Joy Foundation,Rents Payable,1650,0,VENDOR
03-05-2023,Inclusive Economy & Housing,Elan Management Solutions T/A Joy Foundation,Rents Payable,1650,0,VENDOR
03-05-2023,Inclusive Economy & Housing,Elan Management Solutions T/A Joy Foundation,Rents Payable,1650,0,VENDOR
03-05-2023,Inclusive Economy & Housing,Elan Management Solutions T/A Joy Foundation,Rents Payable,1650,0,VENDOR
03-05-2023,Inclusive Economy & Housing,Elan Management Solutions T/A Joy Foundation,Rents Payable,1080,0,VENDOR
03-05-2023,Inclusive Economy & Housing,Elan Management Solutions T/A Joy Foundation,Rents Payable,1080,0,VENDOR
03-05-2023,Inclusive Economy & Housing,Elan Management Solutions T/A Joy Foundation,Rents Payable,1350,0,VENDOR
03-05-2023,Inclusive Economy & Housing,Elan Management Solutions T/A Joy Foundation,Rents Payable,1350,0,VENDOR
03-05-2023,Inclusive Economy & Housing,Elan Management Solutions T/A Joy Foundation,Rents Payable,1350,0,VENDOR
03-05-2023,Inclusive Economy & Housing,Zfa Limited,Rents Payable,1350,0,VENDOR
03-05-2023,Inclusive Economy & Housing,Zfa Limited,Rents Payable,1500,0,VENDOR
03-05-2023,Inclusive Economy & Housing,Zfa Limited,Rents Payable,1650,0,VENDOR
03-05-2023,Inclusive Economy & Housing,Zfa Limited,Rents Payable,1350,0,VENDOR
03-05-2023,Inclusive Economy & Housing,Zfa Limited,Rents Payable,1500,0,VENDOR
03-05-2023,Inclusive Economy & Housing,Zfa Limited,Rents Payable,1140,0,VENDOR
03-05-2023,Inclusive Economy & Housing,Zfa Limited,Rents Payable,1500,0,VENDOR
03-05-2023,Inclusive Economy & Housing,Zfa Limited,Rents Payable,1650,0,VENDOR
03-05-2023,Inclusive Economy & Housing,Zfa Limited,Rents Payable,1350,0,VENDOR
03-05-2023,Inclusive Economy & Housing,Zfa Limited,Rents Payable,1800,0,VENDOR
03-05-2023,Inclusive Economy & Housing,Zfa Limited,Rents Payable,1800,0,VENDOR
03-05-2023,Inclusive Economy & Housing,Zfa Limited,Rents Payable,1800,0,VENDOR
03-05-2023,Inclusive Economy & Housing,Zfa Limited,Rents Payable,1500,0,VENDOR
03-05-2023,Inclusive Economy & Housing,Zfa Limited,Rents Payable,1800,0,VENDOR
03-05-2023,Inclusive Economy & Housing,Zfa Limited,Rents Payable,1650,0,VENDOR
03-05-2023,Inclusive Economy & Housing,Zfa Limited,Rents Payable,1800,0,VENDOR
03-05-2023,Inclusive Economy & Housing,Zfa Limited,Rents Payable,1650,0,VENDOR
03-05-2023,Inclusive Economy & Housing,Zfa Limited,Rents Payable,1950,0,VENDOR
03-05-2023,Inclusive Economy & Housing,Zfa Limited,Rents Payable,1200,0,VENDOR
03-05-2023,Inclusive Economy & Housing,Zfa Limited,Rents Payable,1800,0,VENDOR
03-05-2023,Inclusive Economy & Housing,Zfa Limited,Rents Payable,1200,0,VENDOR
03-05-2023,Inclusive Economy & Housing,Zfa Limited,Rents Payable,2850,0,VENDOR
03-05-2023,Inclusive Economy & Housing,Zfa Limited,Rents Payable,1800,0,VENDOR
03-05-2023,Inclusive Economy & Housing,Zfa Limited,Rents Payable,2700,0,VENDOR
03-05-2023,Inclusive Economy & Housing,Zfa Limited,Rents Payable,1200,0,VENDOR
03-05-2023,Inclusive Economy & Housing,Zfa Limited,Rents Payable,2400,0,VENDOR
03-05-2023,Inclusive Economy & Housing,Zfa Limited,Rents Payable,1350,0,VENDOR
03-05-2023,Inclusive Economy & Housing,Zfa Limited,Rents Payable,2400,0,VENDOR
03-05-2023,Inclusive Economy & Housing,Zfa Limited,Rents Payable,2250,0,VENDOR
03-05-2023,Inclusive Economy & Housing,Zfa Limited,Rents Payable,1800,0,VENDOR
03-05-2023,Inclusive Economy & Housing,Zfa Limited,Rents Payable,2550,0,VENDOR
03-05-2023,Inclusive Economy & Housing,Zfa Limited,Rents Payable,1350,0,VENDOR
03-05-2023,Inclusive Economy & Housing,Zfa Limited,Rents Payable,2550,0,VENDOR
03-05-2023,Inclusive Economy & Housing,Zfa Limited,Rents Payable,1200,0,VENDOR
03-05-2023,Inclusive Economy & Housing,Zfa Limited,Rents Payable,2240,0,VENDOR
03-05-2023,Inclusive Economy & Housing,Zfa Limited,Rents Payable,1170,0,VENDOR
03-05-2023,Inclusive Economy & Housing,Zfa Limited,Rents Payable,-65,0,VENDOR
03-05-2023,Inclusive Economy & Housing,Zfa Limited,Rents Payable,-1950,0,VENDOR
03-05-2023,Inclusive Economy & Housing,Zfa Limited,Rents Payable,-2015,0,VENDOR
03-05-2023,Inclusive Economy & Housing,Zfa Limited,Rents Payable,-2015,0,VENDOR
03-05-2023,Inclusive Economy & Housing,Zfa Limited,Rents Payable,-1820,0,VENDOR
03-05-2023,Inclusive Economy & Housing,Zfa Limited,Rents Payable,-2015,0,VENDOR
03-05-2023,Inclusive Economy & Housing,Zfa Limited,Rents Payable,-225,0,VENDOR
03-05-2023,Inclusive Economy & Housing,Zfa Limited,Rents Payable,-700,0,VENDOR
03-05-2023,Inclusive Economy & Housing,Zfa Limited,Rents Payable,65,0,VENDOR
03-05-2023,Inclusive Economy & Housing,Zfa Limited,Rents Payable,1950,0,VENDOR
03-05-2023,Inclusive Economy & Housing,Zfa Limited,Rents Payable,2015,0,VENDOR
03-05-2023,Inclusive Economy & Housing,Zfa Limited,Rents Payable,2015,0,VENDOR
03-05-2023,Inclusive Economy & Housing,Zfa Limited,Rents Payable,1820,0,VENDOR
03-05-2023,Inclusive Economy & Housing,Zfa Limited,Rents Payable,1560,0,VENDOR
03-05-2023,Inclusive Economy & Housing,Zfa Limited,Rents Payable,1714.5,0,VENDOR
03-05-2023,Inclusive Economy & Housing,Zfa Limited,Rents Payable,855,0,VENDOR
03-05-2023,Inclusive Economy & Housing,Zfa Limited,Rents Payable,1560,0,VENDOR
03-05-2023,Inclusive Economy & Housing,Zfa Limited,Rents Payable,1140,0,VENDOR
03-05-2023,Inclusive Economy & Housing,Zfa Limited,Rents Payable,1800,0,VENDOR
03-05-2023,Inclusive Economy & Housing,Zfa Limited,Rents Payable,855,0,VENDOR
03-05-2023,Inclusive Economy & Housing,Zfa Limited,Rents Payable,840,0,VENDOR
03-05-2023,Inclusive Economy & Housing,Zfa Limited,Rents Payable,1425,0,VENDOR
03-05-2023,Inclusive Economy & Housing,Zfa Limited,Rents Payable,840,0,VENDOR
03-05-2023,Inclusive Economy & Housing,Zfa Limited,Rents Payable,1140,0,VENDOR
03-05-2023,Inclusive Economy & Housing,Zfa Limited,Rents Payable,1140,0,VENDOR
03-05-2023,Inclusive Economy & Housing,Zfa Limited,Rents Payable,855,0,VENDOR
03-05-2023,Inclusive Economy & Housing,Zfa Limited,Rents Payable,1800,0,VENDOR
03-05-2023,Inclusive Economy & Housing,Zfa Limited,Rents Payable,1800,0,VENDOR
03-05-2023,Inclusive Economy & Housing,Zfa Limited,Rents Payable,1020,0,VENDOR
03-05-2023,Inclusive Economy & Housing,Zfa Limited,Rents Payable,1607.4,0,VENDOR
03-05-2023,Inclusive Economy & Housing,Zfa Limited,Rents Payable,855,0,VENDOR
03-05-2023,Inclusive Economy & Housing,Zfa Limited,Rents Payable,855,0,VENDOR
03-05-2023,Inclusive Economy & Housing,Zfa Limited,Rents Payable,855,0,VENDOR
03-05-2023,Inclusive Economy & Housing,Zfa Limited,Rents Payable,840,0,VENDOR
03-05-2023,Inclusive Economy & Housing,Zfa Limited,Rents Payable,1020,0,VENDOR
03-05-2023,Inclusive Economy & Housing,Zfa Limited,Rents Payable,1500,0,VENDOR
03-05-2023,Inclusive Economy & Housing,Zfa Limited,Rents Payable,1050,0,VENDOR
03-05-2023,Inclusive Economy & Housing,Zfa Limited,Rents Payable,1200,0,VENDOR
03-05-2023,Inclusive Economy & Housing,Zfa Limited,Rents Payable,1020,0,VENDOR
03-05-2023,Inclusive Economy & Housing,Zfa Limited,Rents Payable,750,0,VENDOR
03-05-2023,Inclusive Economy & Housing,Zfa Limited,Rents Payable,1500,0,VENDOR
03-05-2023,Inclusive Economy & Housing,Zfa Limited,Rents Payable,960,0,VENDOR
03-05-2023,Inclusive Economy & Housing,Zfa Limited,Rents Payable,1950,0,VENDOR
03-05-2023,Inclusive Economy & Housing,Zfa Limited,Rents Payable,1500,0,VENDOR
03-05-2023,Inclusive Economy & Housing,Zfa Limited,Rents Payable,1230,0,VENDOR
03-05-2023,Inclusive Economy & Housing,Zfa Limited,Rents Payable,1500,0,VENDOR
03-05-2023,Inclusive Economy & Housing,Zfa Limited,Rents Payable,1230,0,VENDOR
03-05-2023,Inclusive Economy & Housing,Zfa Limited,Rents Payable,1200,0,VENDOR
03-05-2023,Inclusive Economy & Housing,Zfa Limited,Rents Payable,1425,0,VENDOR
03-05-2023,Inclusive Economy & Housing,Zfa Limited,Rents Payable,1350,0,VENDOR
03-05-2023,Inclusive Economy & Housing,Zfa Limited,Rents Payable,1371.6,0,VENDOR
03-05-2023,Inclusive Economy & Housing,Zfa Limited,Rents Payable,1290,0,VENDOR
03-05-2023,Inclusive Economy & Housing,Zfa Limited,Rents Payable,1650,0,VENDOR
03-05-2023,Inclusive Economy & Housing,Zfa Limited,Rents Payable,1020,0,VENDOR
03-05-2023,Inclusive Economy & Housing,Zfa Limited,Rents Payable,1371.6,0,VENDOR
03-05-2023,Inclusive Economy & Housing,Zfa Limited,Rents Payable,1650,0,VENDOR
03-05-2023,Inclusive Economy & Housing,Zfa Limited,Rents Payable,1740,0,VENDOR
03-05-2023,Inclusive Economy & Housing,Zfa Limited,Rents Payable,1607.4,0,VENDOR
03-05-2023,Inclusive Economy & Housing,Zfa Limited,Rents Payable,840,0,VENDOR
03-05-2023,Inclusive Economy & Housing,Zfa Limited,Rents Payable,1230,0,VENDOR
03-05-2023,Inclusive Economy & Housing,Zfa Limited,Rents Payable,1050,0,VENDOR
03-05-2023,Inclusive Economy & Housing,Zfa Limited,Rents Payable,1350,0,VENDOR
03-05-2023,Inclusive Economy & Housing,Zfa Limited,Rents Payable,495,0,VENDOR
03-05-2023,Inclusive Economy & Housing,Zfa Limited,Rents Payable,1500,0,VENDOR
03-05-2023,Inclusive Economy & Housing,Zfa Limited,Rents Payable,1200,0,VENDOR
03-05-2023,Inclusive Economy & Housing,Zfa Limited,Rents Payable,1200,0,VENDOR
03-05-2023,Inclusive Economy & Housing,Zfa Limited,Rents Payable,1950,0,VENDOR
03-05-2023,Inclusive Economy & Housing,Zfa Limited,Rents Payable,1650,0,VENDOR
03-05-2023,Inclusive Economy & Housing,Zfa Limited,Rents Payable,1650,0,VENDOR
03-05-2023,Inclusive Economy & Housing,Zfa Limited,Rents Payable,1650,0,VENDOR
03-05-2023,Inclusive Economy & Housing,Zfa Limited,Rents Payable,1500,0,VENDOR
03-05-2023,Inclusive Economy & Housing,Zfa Limited,Rents Payable,855,0,VENDOR
03-05-2023,Inclusive Economy & Housing,Zfa Limited,Rents Payable,1425,0,VENDOR
03-05-2023,Inclusive Economy & Housing,Zfa Limited,Rents Payable,1050,0,VENDOR
03-05-2023,Inclusive Economy & Housing,Zfa Limited,Rents Payable,1371.6,0,VENDOR
03-05-2023,Inclusive Economy & Housing,Zfa Limited,Rents Payable,855,0,VENDOR
03-05-2023,Inclusive Economy & Housing,Zfa Limited,Rents Payable,1607.4,0,VENDOR
03-05-2023,Inclusive Economy & Housing,Zfa Limited,Rents Payable,1200,0,VENDOR
03-05-2023,Inclusive Economy & Housing,Zfa Limited,Rents Payable,750,0,VENDOR
03-05-2023,Inclusive Economy & Housing,Zfa Limited,Rents Payable,1350,0,VENDOR
03-05-2023,Inclusive Economy & Housing,Zfa Limited,Rents Payable,1650,0,VENDOR
03-05-2023,Inclusive Economy & Housing,Zfa Limited,Rents Payable,1425,0,VENDOR
03-05-2023,Inclusive Economy & Housing,Zfa Limited,Rents Payable,1650,0,VENDOR
03-05-2023,Inclusive Economy & Housing,Zfa Limited,Rents Payable,1500,0,VENDOR
03-05-2023,Inclusive Economy & Housing,Zfa Limited,Rents Payable,1350,0,VENDOR
03-05-2023,Inclusive Economy & Housing,Zfa Limited,Rents Payable,1200,0,VENDOR
03-05-2023,Inclusive Economy & Housing,Zfa Limited,Rents Payable,1200,0,VENDOR
03-05-2023,Inclusive Economy & Housing,Zfa Limited,Rents Payable,1140,0,VENDOR
03-05-2023,Inclusive Economy & Housing,Zfa Limited,Rents Payable,1140,0,VENDOR
03-05-2023,Inclusive Economy & Housing,Zfa Limited,Rents Payable,1200,0,VENDOR
03-05-2023,Inclusive Economy & Housing,Zfa Limited,Rents Payable,1200,0,VENDOR
03-05-2023,Inclusive Economy & Housing,Zfa Limited,Rents Payable,1800,0,VENDOR
03-05-2023,Inclusive Economy & Housing,Jacksons Lettings & Sales Ltd,Rents Payable,930,0,VENDOR
03-05-2023,Inclusive Economy & Housing,Jacksons Lettings & Sales Ltd,Rents Payable,930,0,VENDOR
03-05-2023,Inclusive Economy & Housing,Jacksons Lettings & Sales Ltd,Rents Payable,810,0,VENDOR
03-05-2023,Inclusive Economy & Housing,Jacksons Lettings & Sales Ltd,Rents Payable,930,0,VENDOR
03-05-2023,Inclusive Economy & Housing,Jacksons Lettings & Sales Ltd,Rents Payable,1605,0,VENDOR
03-05-2023,Inclusive Economy & Housing,London Online Estates Ltd,Rents Payable,1425,0,VENDOR
03-05-2023,Inclusive Economy & Housing,London Online Estates Ltd,Rents Payable,1800,0,VENDOR
03-05-2023,Inclusive Economy & Housing,London Online Estates Ltd,Rents Payable,1530,0,VENDOR
03-05-2023,Inclusive Economy & Housing,Denhan International Ltd,Rents Payable,1365,0,VENDOR
03-05-2023,Inclusive Economy & Housing,Denhan International Ltd,Rents Payable,1500,0,VENDOR
03-05-2023,Inclusive Economy & Housing,Denhan International Ltd,Rents Payable,2100,0,VENDOR
03-05-2023,Inclusive Economy & Housing,Denhan International Ltd,Rents Payable,1425,0,VENDOR
03-05-2023,Inclusive Economy & Housing,Denhan International Ltd,Rents Payable,1881,0,VENDOR
03-05-2023,Inclusive Economy & Housing,Denhan International Ltd,Rents Payable,1650,0,VENDOR
03-05-2023,Inclusive Economy & Housing,Denhan International Ltd,Rents Payable,1650,0,VENDOR
03-05-2023,Inclusive Economy & Housing,Zfa Limited,Rents Payable,1425,0,VENDOR
03-05-2023,Inclusive Economy & Housing,Zfa Limited,Rents Payable,1500,0,VENDOR
03-05-2023,Inclusive Economy & Housing,Zfa Limited,Rents Payable,1500,0,VENDOR
03-05-2023,Inclusive Economy & Housing,Zfa Limited,Rents Payable,1500,0,VENDOR
03-05-2023,Inclusive Economy & Housing,Zfa Limited,Rents Payable,1500,0,VENDOR
03-05-2023,Inclusive Economy & Housing,Zfa Limited,Rents Payable,1080,0,VENDOR
03-05-2023,Inclusive Economy & Housing,Zfa Limited,Rents Payable,680,0,VENDOR
03-05-2023,Inclusive Economy & Housing,Zfa Limited,Rents Payable,1800,0,VENDOR
03-05-2023,Inclusive Economy & Housing,Zfa Limited,Rents Payable,1650,0,VENDOR
03-05-2023,Inclusive Economy & Housing,Zfa Limited,Rents Payable,1890,0,VENDOR
03-05-2023,Inclusive Economy & Housing,Zfa Limited,Rents Payable,1650,0,VENDOR
03-05-2023,Inclusive Economy & Housing,Zfa Limited,Rents Payable,2100,0,VENDOR
03-05-2023,Inclusive Economy & Housing,Zfa Limited,Rents Payable,2190,0,VENDOR
03-05-2023,Inclusive Economy & Housing,Zfa Limited,Rents Payable,1425,0,VENDOR
03-05-2023,Inclusive Economy & Housing,Zfa Limited,Rents Payable,1800,0,VENDOR
03-05-2023,Inclusive Economy & Housing,Zfa Limited,Rents Payable,1650,0,VENDOR
03-05-2023,Inclusive Economy & Housing,Zfa Limited,Rents Payable,1650,0,VENDOR
03-05-2023,Inclusive Economy & Housing,Zfa Limited,Rents Payable,990,0,VENDOR
03-05-2023,Inclusive Economy & Housing,Zfa Limited,Rents Payable,855,0,VENDOR
03-05-2023,Inclusive Economy & Housing,Zfa Limited,Rents Payable,1140,0,VENDOR
03-05-2023,Inclusive Economy & Housing,Zfa Limited,Rents Payable,1425,0,VENDOR
03-05-2023,Inclusive Economy & Housing,Zfa Limited,Rents Payable,1425,0,VENDOR
03-05-2023,Inclusive Economy & Housing,Zfa Limited,Rents Payable,1800,0,VENDOR
03-05-2023,Inclusive Economy & Housing,Zfa Limited,Rents Payable,1800,0,VENDOR
03-05-2023,Inclusive Economy & Housing,Zfa Limited,Rents Payable,1800,0,VENDOR
03-05-2023,Inclusive Economy & Housing,Zfa Limited,Rents Payable,1530,0,VENDOR
03-05-2023,Inclusive Economy & Housing,Zfa Limited,Rents Payable,1500,0,VENDOR
03-05-2023,Inclusive Economy & Housing,Zfa Limited,Rents Payable,840,0,VENDOR
03-05-2023,Inclusive Economy & Housing,Zfa Limited,Rents Payable,1800,0,VENDOR
03-05-2023,Inclusive Economy & Housing,Zfa Limited,Rents Payable,1800,0,VENDOR
03-05-2023,Inclusive Economy & Housing,Zfa Limited,Rents Payable,1607.4,0,VENDOR
03-05-2023,Inclusive Economy & Housing,Zfa Limited,Rents Payable,1890,0,VENDOR
03-05-2023,Inclusive Economy & Housing,Zfa Limited,Rents Payable,855,0,VENDOR
03-05-2023,Inclusive Economy & Housing,Zfa Limited,Rents Payable,1020,0,VENDOR
03-05-2023,Inclusive Economy & Housing,Zfa Limited,Rents Payable,1020,0,VENDOR
03-05-2023,Inclusive Economy & Housing,Zfa Limited,Rents Payable,1650,0,VENDOR
03-05-2023,Inclusive Economy & Housing,Zfa Limited,Rents Payable,2100,0,VENDOR
03-05-2023,Inclusive Economy & Housing,Zfa Limited,Rents Payable,1800,0,VENDOR
03-05-2023,Inclusive Economy & Housing,Zfa Limited,Rents Payable,1080,0,VENDOR
03-05-2023,Inclusive Economy & Housing,Zfa Limited,Rents Payable,1890,0,VENDOR
03-05-2023,Inclusive Economy & Housing,Zfa Limited,Rents Payable,1650,0,VENDOR
03-05-2023,Inclusive Economy & Housing,Zfa Limited,Rents Payable,1800,0,VENDOR
03-05-2023,Inclusive Economy & Housing,Zfa Limited,Rents Payable,2220,0,VENDOR
03-05-2023,Inclusive Economy & Housing,Zfa Limited,Rents Payable,1200,0,VENDOR
03-05-2023,Inclusive Economy & Housing,Zfa Limited,Rents Payable,1980,0,VENDOR
03-05-2023,Inclusive Economy & Housing,Zfa Limited,Rents Payable,990,0,VENDOR
03-05-2023,Inclusive Economy & Housing,Zfa Limited,Rents Payable,1425,0,VENDOR
03-05-2023,Inclusive Economy & Housing,Zfa Limited,Rents Payable,1290,0,VENDOR
03-05-2023,Inclusive Economy & Housing,Zfa Limited,Rents Payable,1425,0,VENDOR
03-05-2023,Inclusive Economy & Housing,Letting International Ltd,Rents Payable,1650,0,VENDOR
03-05-2023,Inclusive Economy & Housing,Letting International Ltd,Rents Payable,1410,0,VENDOR
03-05-2023,Inclusive Economy & Housing,Letting International Ltd,Rents Payable,840,0,VENDOR
03-05-2023,Inclusive Economy & Housing,Letting International Ltd,Rents Payable,1425,0,VENDOR
03-05-2023,Inclusive Economy & Housing,Letting International Ltd,Rents Payable,1650,0,VENDOR
03-05-2023,Inclusive Economy & Housing,Letting International Ltd,Rents Payable,1800,0,VENDOR
03-05-2023,Inclusive Economy & Housing,Letting International Ltd,Rents Payable,1425,0,VENDOR
03-05-2023,Inclusive Economy & Housing,Letting International Ltd,Rents Payable,1650,0,VENDOR
03-05-2023,Inclusive Economy & Housing,Letting International Ltd,Rents Payable,1425,0,VENDOR
03-05-2023,Inclusive Economy & Housing,Letting International Ltd,Rents Payable,1800,0,VENDOR
03-05-2023,Inclusive Economy & Housing,Letting International Ltd,Rents Payable,1425,0,VENDOR
03-05-2023,Inclusive Economy & Housing,Letting International Ltd,Rents Payable,1605,0,VENDOR
03-05-2023,Inclusive Economy & Housing,Letting International Ltd,Rents Payable,1632,0,VENDOR
03-05-2023,Inclusive Economy & Housing,Letting International Ltd,Rents Payable,1800,0,VENDOR
03-05-2023,Inclusive Economy & Housing,Letting International Ltd,Rents Payable,900,0,VENDOR
03-05-2023,Inclusive Economy & Housing,Letting International Ltd,Rents Payable,1050,0,VENDOR
03-05-2023,Inclusive Economy & Housing,Letting International Ltd,Rents Payable,1425,0,VENDOR
03-05-2023,Inclusive Economy & Housing,Letting International Ltd,Rents Payable,1530,0,VENDOR
03-05-2023,Inclusive Economy & Housing,Letting International Ltd,Rents Payable,840,0,VENDOR
03-05-2023,Inclusive Economy & Housing,Letting International Ltd,Rents Payable,1650,0,VENDOR
03-05-2023,Inclusive Economy & Housing,Letting International Ltd,Rents Payable,1800,0,VENDOR
03-05-2023,Inclusive Economy & Housing,Letting International Ltd,Rents Payable,1350,0,VENDOR
03-05-2023,Inclusive Economy & Housing,Letting International Ltd,Rents Payable,1425,0,VENDOR
03-05-2023,Inclusive Economy & Housing,Letting International Ltd,Rents Payable,1800,0,VENDOR
03-05-2023,Inclusive Economy & Housing,Letting International Ltd,Rents Payable,1650,0,VENDOR
03-05-2023,Inclusive Economy & Housing,Letting International Ltd,Rents Payable,1635,0,VENDOR
03-05-2023,Inclusive Economy & Housing,Letting International Ltd,Rents Payable,1200,0,VENDOR
03-05-2023,Inclusive Economy & Housing,Letting International Ltd,Rents Payable,1425,0,VENDOR
03-05-2023,Inclusive Economy & Housing,Letting International Ltd,Rents Payable,1371.6,0,VENDOR
03-05-2023,Inclusive Economy & Housing,Letting International Ltd,Rents Payable,840,0,VENDOR
03-05-2023,Inclusive Economy & Housing,Letting International Ltd,Rents Payable,1607.4,0,VENDOR
03-05-2023,Inclusive Economy & Housing,Letting International Ltd,Rents Payable,1430,0,VENDOR
03-05-2023,Inclusive Economy & Housing,Letting International Ltd,Rents Payable,1440,0,VENDOR
03-05-2023,Inclusive Economy & Housing,Letting International Ltd,Rents Payable,810,0,VENDOR
03-05-2023,Inclusive Economy & Housing,Letting International Ltd,Rents Payable,1607.4,0,VENDOR
03-05-2023,Inclusive Economy & Housing,Letting International Ltd,Rents Payable,900,0,VENDOR
03-05-2023,Inclusive Economy & Housing,Letting International Ltd,Rents Payable,1080,0,VENDOR
03-05-2023,Inclusive Economy & Housing,Letting International Ltd,Rents Payable,1607.4,0,VENDOR
03-05-2023,Inclusive Economy & Housing,Letting International Ltd,Rents Payable,1371.6,0,VENDOR
03-05-2023,Inclusive Economy & Housing,Letting International Ltd,Rents Payable,1410,0,VENDOR
03-05-2023,Inclusive Economy & Housing,Letting International Ltd,Rents Payable,1410,0,VENDOR
03-05-2023,Inclusive Economy & Housing,Letting International Ltd,Rents Payable,1425,0,VENDOR
03-05-2023,Inclusive Economy & Housing,Letting International Ltd,Rents Payable,1260,0,VENDOR
03-05-2023,Inclusive Economy & Housing,Letting International Ltd,Rents Payable,1371.6,0,VENDOR
03-05-2023,Inclusive Economy & Housing,Letting International Ltd,Rents Payable,1350,0,VENDOR
03-05-2023,Inclusive Economy & Housing,Letting International Ltd,Rents Payable,1080,0,VENDOR
03-05-2023,Inclusive Economy & Housing,Letting International Ltd,Rents Payable,1425,0,VENDOR
03-05-2023,Inclusive Economy & Housing,Letting International Ltd,Rents Payable,1800,0,VENDOR
03-05-2023,Inclusive Economy & Housing,Letting International Ltd,Rents Payable,1800,0,VENDOR
03-05-2023,Inclusive Economy & Housing,Letting International Ltd,Rents Payable,1800,0,VENDOR
03-05-2023,Inclusive Economy & Housing,Letting International Ltd,Rents Payable,1800,0,VENDOR
03-05-2023,Inclusive Economy & Housing,Letting International Ltd,Rents Payable,1650,0,VENDOR
03-05-2023,Inclusive Economy & Housing,Letting International Ltd,Rents Payable,1350,0,VENDOR
03-05-2023,Inclusive Economy & Housing,Letting International Ltd,Rents Payable,810,0,VENDOR
03-05-2023,Inclusive Economy & Housing,Letting International Ltd,Rents Payable,810,0,VENDOR
03-05-2023,Inclusive Economy & Housing,Letting International Ltd,Rents Payable,1500,0,VENDOR
03-05-2023,Inclusive Economy & Housing,Letting International Ltd,Rents Payable,1500,0,VENDOR
03-05-2023,Inclusive Economy & Housing,Letting International Ltd,Rents Payable,1770,0,VENDOR
03-05-2023,Inclusive Economy & Housing,Letting International Ltd,Rents Payable,2070,0,VENDOR
03-05-2023,Inclusive Economy & Housing,Letting International Ltd,Rents Payable,2100,0,VENDOR
03-05-2023,Inclusive Economy & Housing,Letting International Ltd,Rents Payable,2250,0,VENDOR
03-05-2023,Inclusive Economy & Housing,Letting International Ltd,Rents Payable,2100,0,VENDOR
03-05-2023,Inclusive Economy & Housing,Letting International Ltd,Rents Payable,2400,0,VENDOR
03-05-2023,Inclusive Economy & Housing,Letting International Ltd,Rents Payable,2100,0,VENDOR
03-05-2023,Inclusive Economy & Housing,Letting International Ltd,Rents Payable,1368,0,VENDOR
03-05-2023,Inclusive Economy & Housing,Letting International Ltd,Rents Payable,1425,0,VENDOR
03-05-2023,Inclusive Economy & Housing,Letting International Ltd,Rents Payable,1425,0,VENDOR
03-05-2023,Inclusive Economy & Housing,Letting International Ltd,Rents Payable,1410,0,VENDOR
03-05-2023,Inclusive Economy & Housing,Letting International Ltd,Rents Payable,1020,0,VENDOR
03-05-2023,Inclusive Economy & Housing,Letting International Ltd,Rents Payable,1410,0,VENDOR
03-05-2023,Inclusive Economy & Housing,Letting International Ltd,Rents Payable,1350,0,VENDOR
03-05-2023,Inclusive Economy & Housing,Letting International Ltd,Rents Payable,1890,0,VENDOR
03-05-2023,Inclusive Economy & Housing,Letting International Ltd,Rents Payable,1371.6,0,VENDOR
03-05-2023,Inclusive Economy & Housing,Letting International Ltd,Rents Payable,1425,0,VENDOR
03-05-2023,Inclusive Economy & Housing,Letting International Ltd,Rents Payable,1020,0,VENDOR
03-05-2023,Inclusive Economy & Housing,Letting International Ltd,Rents Payable,1425,0,VENDOR
03-05-2023,Inclusive Economy & Housing,Letting International Ltd,Rents Payable,1800,0,VENDOR
03-05-2023,Inclusive Economy & Housing,Letting International Ltd,Rents Payable,810,0,VENDOR
03-05-2023,Inclusive Economy & Housing,Letting International Ltd,Rents Payable,1800,0,VENDOR
03-05-2023,Inclusive Economy & Housing,Letting International Ltd,Rents Payable,1350,0,VENDOR
03-05-2023,Inclusive Economy & Housing,Letting International Ltd,Rents Payable,1371.6,0,VENDOR
03-05-2023,Inclusive Economy & Housing,Letting International Ltd,Rents Payable,1425,0,VENDOR
03-05-2023,Inclusive Economy & Housing,Letting International Ltd,Rents Payable,1800,0,VENDOR
03-05-2023,Inclusive Economy & Housing,Letting International Ltd,Rents Payable,750,0,VENDOR
03-05-2023,Inclusive Economy & Housing,Letting International Ltd,Rents Payable,855,0,VENDOR
03-05-2023,Inclusive Economy & Housing,Letting International Ltd,Rents Payable,1650,0,VENDOR
03-05-2023,Inclusive Economy & Housing,Letting International Ltd,Rents Payable,1371.6,0,VENDOR
03-05-2023,Inclusive Economy & Housing,Letting International Ltd,Rents Payable,840,0,VENDOR
03-05-2023,Inclusive Economy & Housing,Letting International Ltd,Rents Payable,840,0,VENDOR
03-05-2023,Inclusive Economy & Housing,Letting International Ltd,Rents Payable,1650,0,VENDOR
03-05-2023,Inclusive Economy & Housing,Letting International Ltd,Rents Payable,1410,0,VENDOR
03-05-2023,Inclusive Economy & Housing,Letting International Ltd,Rents Payable,1350,0,VENDOR
03-05-2023,Inclusive Economy & Housing,Letting International Ltd,Rents Payable,1800,0,VENDOR
03-05-2023,Inclusive Economy & Housing,Letting International Ltd,Rents Payable,1371.6,0,VENDOR
03-05-2023,Inclusive Economy & Housing,Letting International Ltd,Rents Payable,1425,0,VENDOR
03-05-2023,Inclusive Economy & Housing,Letting International Ltd,Rents Payable,1800,0,VENDOR
03-05-2023,Inclusive Economy & Housing,Letting International Ltd,Rents Payable,1080,0,VENDOR
03-05-2023,Inclusive Economy & Housing,Letting International Ltd,Rents Payable,1080,0,VENDOR
03-05-2023,Inclusive Economy & Housing,Letting International Ltd,Rents Payable,1350,0,VENDOR
03-05-2023,Inclusive Economy & Housing,Letting International Ltd,Rents Payable,1350,0,VENDOR
03-05-2023,Inclusive Economy & Housing,Letting International Ltd,Rents Payable,1350,0,VENDOR
03-05-2023,Inclusive Economy & Housing,Letting International Ltd,Rents Payable,1185,0,VENDOR
03-05-2023,Inclusive Economy & Housing,Letting International Ltd,Rents Payable,1800,0,VENDOR
03-05-2023,Inclusive Economy & Housing,Letting International Ltd,Rents Payable,1920,0,VENDOR
03-05-2023,Inclusive Economy & Housing,Letting International Ltd,Rents Payable,1455,0,VENDOR
03-05-2023,Inclusive Economy & Housing,Letting International Ltd,Rents Payable,1800,0,VENDOR
03-05-2023,Inclusive Economy & Housing,Letting International Ltd,Rents Payable,1500,0,VENDOR
03-05-2023,Inclusive Economy & Housing,Letting International Ltd,Rents Payable,1200,0,VENDOR
03-05-2023,Inclusive Economy & Housing,Letting International Ltd,Rents Payable,1425,0,VENDOR
03-05-2023,Inclusive Economy & Housing,Letting International Ltd,Rents Payable,1800,0,VENDOR
03-05-2023,Inclusive Economy & Housing,Letting International Ltd,Rents Payable,1650,0,VENDOR
03-05-2023,Inclusive Economy & Housing,Letting International Ltd,Rents Payable,1080,0,VENDOR
03-05-2023,Inclusive Economy & Housing,Letting International Ltd,Rents Payable,1080,0,VENDOR
03-05-2023,Inclusive Economy & Housing,Letting International Ltd,Rents Payable,1800,0,VENDOR
03-05-2023,Inclusive Economy & Housing,Letting International Ltd,Rents Payable,1800,0,VENDOR
03-05-2023,Inclusive Economy & Housing,Letting International Ltd,Rents Payable,1080,0,VENDOR
03-05-2023,Inclusive Economy & Housing,Letting International Ltd,Rents Payable,1800,0,VENDOR
03-05-2023,Inclusive Economy & Housing,Letting International Ltd,Rents Payable,1800,0,VENDOR
03-05-2023,Inclusive Economy & Housing,Letting International Ltd,Rents Payable,1425,0,VENDOR
03-05-2023,Inclusive Economy & Housing,Letting International Ltd,Rents Payable,1650,0,VENDOR
03-05-2023,Inclusive Economy & Housing,Letting International Ltd,Rents Payable,1080,0,VENDOR
03-05-2023,Inclusive Economy & Housing,Letting International Ltd,Rents Payable,1080,0,VENDOR
03-05-2023,Inclusive Economy & Housing,Letting International Ltd,Rents Payable,1080,0,VENDOR
03-05-2023,Inclusive Economy & Housing,Letting International Ltd,Rents Payable,1425,0,VENDOR
03-05-2023,Inclusive Economy & Housing,Letting International Ltd,Rents Payable,1080,0,VENDOR
03-05-2023,Inclusive Economy & Housing,Letting International Ltd,Rents Payable,1425,0,VENDOR
03-05-2023,Inclusive Economy & Housing,Letting International Ltd,Rents Payable,1080,0,VENDOR
03-05-2023,Inclusive Economy & Housing,Letting International Ltd,Rents Payable,1425,0,VENDOR
03-05-2023,Inclusive Economy & Housing,Letting International Ltd,Rents Payable,2310,0,VENDOR
03-05-2023,Inclusive Economy & Housing,Letting International Ltd,Rents Payable,2250,0,VENDOR
03-05-2023,Inclusive Economy & Housing,Letting International Ltd,Rents Payable,1770,0,VENDOR
03-05-2023,Inclusive Economy & Housing,Letting International Ltd,Rents Payable,2100,0,VENDOR
03-05-2023,Inclusive Economy & Housing,Letting International Ltd,Rents Payable,2100,0,VENDOR
03-05-2023,Inclusive Economy & Housing,Letting International Ltd,Rents Payable,1080,0,VENDOR
03-05-2023,Inclusive Economy & Housing,Letting International Ltd,Rents Payable,2160,0,VENDOR
03-05-2023,Inclusive Economy & Housing,Letting International Ltd,Rents Payable,1728,0,VENDOR
03-05-2023,Inclusive Economy & Housing,Letting International Ltd,Rents Payable,2160,0,VENDOR
03-05-2023,Inclusive Economy & Housing,Letting International Ltd,Rents Payable,1488,0,VENDOR
03-05-2023,Inclusive Economy & Housing,Letting International Ltd,Rents Payable,1860,0,VENDOR
03-05-2023,Inclusive Economy & Housing,Letting International Ltd,Rents Payable,1680,0,VENDOR
03-05-2023,Inclusive Economy & Housing,Letting International Ltd,Rents Payable,2100,0,VENDOR
03-05-2023,Inclusive Economy & Housing,Letting International Ltd,Rents Payable,390,0,VENDOR
03-05-2023,Inclusive Economy & Housing,Letting International Ltd,Rents Payable,3900,0,VENDOR
03-05-2023,Inclusive Economy & Housing,Letting International Ltd,Rents Payable,2240,0,VENDOR
03-05-2023,Inclusive Economy & Housing,Letting International Ltd,Rents Payable,2125,0,VENDOR
03-05-2023,Inclusive Economy & Housing,Letting International Ltd,Rents Payable,1197,0,VENDOR
03-05-2023,Inclusive Economy & Housing,Letting International Ltd,Rents Payable,975,0,VENDOR
03-05-2023,Inclusive Economy & Housing,Letting International Ltd,Rents Payable,-1080,0,VENDOR
03-05-2023,Inclusive Economy & Housing,Letting International Ltd,Rents Payable,910,0,VENDOR
03-05-2023,Inclusive Economy & Housing,Letting International Ltd,Rents Payable,124,0,VENDOR
03-05-2023,Inclusive Economy & Housing,Letting International Ltd,Rents Payable,1922,0,VENDOR
03-05-2023,Inclusive Economy & Housing,Letting International Ltd,Rents Payable,1860,0,VENDOR
03-05-2023,Inclusive Economy & Housing,Letting International Ltd,Rents Payable,1500,0,VENDOR
03-05-2023,Inclusive Economy & Housing,Letting International Ltd,Rents Payable,1080,0,VENDOR
03-05-2023,Inclusive Economy & Housing,Letting International Ltd,Rents Payable,1890,0,VENDOR
03-05-2023,Inclusive Economy & Housing,Letting International Ltd,Rents Payable,750,0,VENDOR
03-05-2023,Inclusive Economy & Housing,Letting International Ltd,Rents Payable,1650,0,VENDOR
03-05-2023,Inclusive Economy & Housing,Letting International Ltd,Rents Payable,1800,0,VENDOR
03-05-2023,Inclusive Economy & Housing,Letting International Ltd,Rents Payable,1425,0,VENDOR
03-05-2023,Inclusive Economy & Housing,Letting International Ltd,Rents Payable,1455,0,VENDOR
03-05-2023,Inclusive Economy & Housing,Letting International Ltd,Rents Payable,1650,0,VENDOR
03-05-2023,Inclusive Economy & Housing,Letting International Ltd,Rents Payable,1350,0,VENDOR
03-05-2023,Inclusive Economy & Housing,Letting International Ltd,Rents Payable,1800,0,VENDOR
03-05-2023,Inclusive Economy & Housing,Letting International Ltd,Rents Payable,1500,0,VENDOR
03-05-2023,Inclusive Economy & Housing,Letting International Ltd,Rents Payable,1425,0,VENDOR
03-05-2023,Inclusive Economy & Housing,Letting International Ltd,Rents Payable,1650,0,VENDOR
03-05-2023,Inclusive Economy & Housing,Letting International Ltd,Rents Payable,1650,0,VENDOR
03-05-2023,Inclusive Economy & Housing,Letting International Ltd,Rents Payable,1455,0,VENDOR
03-05-2023,Inclusive Economy & Housing,Letting International Ltd,Rents Payable,1455,0,VENDOR
03-05-2023,Inclusive Economy & Housing,Letting International Ltd,Rents Payable,1800,0,VENDOR
03-05-2023,Inclusive Economy & Housing,Letting International Ltd,Rents Payable,1650,0,VENDOR
03-05-2023,Inclusive Economy & Housing,Letting International Ltd,Rents Payable,1500,0,VENDOR
03-05-2023,Inclusive Economy & Housing,Letting International Ltd,Rents Payable,1080,0,VENDOR
03-05-2023,Inclusive Economy & Housing,Letting International Ltd,Rents Payable,1800,0,VENDOR
03-05-2023,Inclusive Economy & Housing,Letting International Ltd,Rents Payable,1800,0,VENDOR
03-05-2023,Inclusive Economy & Housing,Letting International Ltd,Rents Payable,1080,0,VENDOR
03-05-2023,Inclusive Economy & Housing,Letting International Ltd,Rents Payable,1080,0,VENDOR
03-05-2023,Inclusive Economy & Housing,Letting International Ltd,Rents Payable,1425,0,VENDOR
03-05-2023,Inclusive Economy & Housing,Letting International Ltd,Rents Payable,1650,0,VENDOR
03-05-2023,Inclusive Economy & Housing,Letting International Ltd,Rents Payable,1425,0,VENDOR
03-05-2023,Inclusive Economy & Housing,Letting International Ltd,Rents Payable,1080,0,VENDOR
03-05-2023,Inclusive Economy & Housing,Letting International Ltd,Rents Payable,1425,0,VENDOR
03-05-2023,Inclusive Economy & Housing,Letting International Ltd,Rents Payable,1800,0,VENDOR
03-05-2023,Inclusive Economy & Housing,Letting International Ltd,Rents Payable,1425,0,VENDOR
03-05-2023,Inclusive Economy & Housing,Letting International Ltd,Rents Payable,1425,0,VENDOR
03-05-2023,Inclusive Economy & Housing,Letting International Ltd,Rents Payable,1350,0,VENDOR
03-05-2023,Inclusive Economy & Housing,Letting International Ltd,Rents Payable,1800,0,VENDOR
03-05-2023,Inclusive Economy & Housing,Letting International Ltd,Rents Payable,1635,0,VENDOR
03-05-2023,Inclusive Economy & Housing,Letting International Ltd,Rents Payable,1425,0,VENDOR
03-05-2023,Inclusive Economy & Housing,Letting International Ltd,Rents Payable,1410,0,VENDOR
03-05-2023,Inclusive Economy & Housing,Letting International Ltd,Rents Payable,1800,0,VENDOR
03-05-2023,Inclusive Economy & Housing,Letting International Ltd,Rents Payable,1425,0,VENDOR
03-05-2023,Inclusive Economy & Housing,Yunus Manjra T/A Lets Locate,Rents Payable,1440,0,VENDOR
03-05-2023,Inclusive Economy & Housing,Monopoly Group,Rents Payable,1714.5,0,VENDOR
03-05-2023,Inclusive Economy & Housing,Monopoly Group,Rents Payable,1500,0,VENDOR
03-05-2023,Inclusive Economy & Housing,Property Hq Ltd,Rents Payable,1800,0,VENDOR
03-05-2023,Inclusive Economy & Housing,Property Hq Ltd,Rents Payable,810,0,VENDOR
03-05-2023,Inclusive Economy & Housing,Property Hq Ltd,Rents Payable,1260,0,VENDOR
03-05-2023,Inclusive Economy & Housing,Property Hq Ltd,Rents Payable,990,0,VENDOR
03-05-2023,Inclusive Economy & Housing,Property Hq Ltd,Rents Payable,990,0,VENDOR
03-05-2023,Inclusive Economy & Housing,Property Hq Ltd,Rents Payable,1650,0,VENDOR
03-05-2023,Inclusive Economy & Housing,Property Hq Ltd,Rents Payable,1080,0,VENDOR
03-05-2023,Inclusive Economy & Housing,Property Hq Ltd,Rents Payable,1607.4,0,VENDOR
03-05-2023,Inclusive Economy & Housing,Property Hq Ltd,Rents Payable,990,0,VENDOR
03-05-2023,Inclusive Economy & Housing,Property Hq Ltd,Rents Payable,990,0,VENDOR
03-05-2023,Inclusive Economy & Housing,Property Hq Ltd,Rents Payable,1080,0,VENDOR
03-05-2023,Inclusive Economy & Housing,Property Hq Ltd,Rents Payable,1650,0,VENDOR
03-05-2023,Inclusive Economy & Housing,Property Hq Ltd,Rents Payable,1425,0,VENDOR
03-05-2023,Inclusive Economy & Housing,Property Hq Ltd,Rents Payable,1350,0,VENDOR
03-05-2023,Inclusive Economy & Housing,Property Hq Ltd,Rents Payable,1425,0,VENDOR
03-05-2023,Inclusive Economy & Housing,Property Hq Ltd,Rents Payable,1425,0,VENDOR
03-05-2023,Inclusive Economy & Housing,Property Hq Ltd,Rents Payable,1140,0,VENDOR
03-05-2023,Inclusive Economy & Housing,Property Hq Ltd,Rents Payable,1350,0,VENDOR
03-05-2023,Inclusive Economy & Housing,Property Hq Ltd,Rents Payable,1650,0,VENDOR
03-05-2023,Inclusive Economy & Housing,Property Hq Ltd,Rents Payable,1260,0,VENDOR
03-05-2023,Inclusive Economy & Housing,Property Hq Ltd,Rents Payable,1440,0,VENDOR
03-05-2023,Inclusive Economy & Housing,Property Hq Ltd,Rents Payable,1425,0,VENDOR
03-05-2023,Inclusive Economy & Housing,Property Hq Ltd,Rents Payable,810,0,VENDOR
03-05-2023,Inclusive Economy & Housing,Property Hq Ltd,Rents Payable,1425,0,VENDOR
03-05-2023,Inclusive Economy & Housing,Property Hq Ltd,Rents Payable,1425,0,VENDOR
03-05-2023,Inclusive Economy & Housing,Property Hq Ltd,Rents Payable,1080,0,VENDOR
03-05-2023,Inclusive Economy & Housing,Pams People.,Rents Payable,1800,0,VENDOR
03-05-2023,Inclusive Economy & Housing,House To Home Lettings,Rents Payable,1080,0,VENDOR
03-05-2023,Inclusive Economy & Housing,House To Home Lettings,Rents Payable,1140,0,VENDOR
03-05-2023,Inclusive Economy & Housing,Bromwell Uk Ltd,Rents Payable,1425,0,VENDOR
03-05-2023,Inclusive Economy & Housing,Bromwell Uk Ltd,Rents Payable,1200,0,VENDOR
03-05-2023,Inclusive Economy & Housing,Bromwell Uk Ltd,Rents Payable,1200,0,VENDOR
03-05-2023,Inclusive Economy & Housing,Stef & Philips Ltd,Rents Payable,840,0,VENDOR
03-05-2023,Inclusive Economy & Housing,Stef & Philips Ltd,Rents Payable,930,0,VENDOR
03-05-2023,Inclusive Economy & Housing,Stef & Philips Ltd,Rents Payable,1080,0,VENDOR
03-05-2023,Inclusive Economy & Housing,Stef & Philips Ltd,Rents Payable,1080,0,VENDOR
03-05-2023,Inclusive Economy & Housing,Stef & Philips Ltd,Rents Payable,1200,0,VENDOR
03-05-2023,Inclusive Economy & Housing,Stef & Philips Ltd,Rents Payable,1080,0,VENDOR
03-05-2023,Inclusive Economy & Housing,Stef & Philips Ltd,Rents Payable,1080,0,VENDOR
03-05-2023,Inclusive Economy & Housing,Stef & Philips Ltd,Rents Payable,1200,0,VENDOR
03-05-2023,Inclusive Economy & Housing,Stef & Philips Ltd,Rents Payable,1080,0,VENDOR
03-05-2023,Inclusive Economy & Housing,Stef & Philips Ltd,Rents Payable,1080,0,VENDOR
03-05-2023,Inclusive Economy & Housing,Stef & Philips Ltd,Rents Payable,1080,0,VENDOR
03-05-2023,Inclusive Economy & Housing,Stef & Philips Ltd,Rents Payable,1080,0,VENDOR
03-05-2023,Inclusive Economy & Housing,Stef & Philips Ltd,Rents Payable,900,0,VENDOR
03-05-2023,Inclusive Economy & Housing,Stef & Philips Ltd,Rents Payable,1080,0,VENDOR
03-05-2023,Inclusive Economy & Housing,Stef & Philips Ltd,Rents Payable,270,0,VENDOR
03-05-2023,Inclusive Economy & Housing,Anisten Homes,Rents Payable,1800,0,VENDOR
03-05-2023,Inclusive Economy & Housing,Alpha Welfare Solutions Ltd,Rents Payable,1500,0,VENDOR
03-05-2023,Inclusive Economy & Housing,Trythisco Ltd,Rents Payable,1200,0,VENDOR
03-05-2023,Inclusive Economy & Housing,Trythisco Ltd,Rents Payable,1425,0,VENDOR
03-05-2023,Inclusive Economy & Housing,Trythisco Ltd,Rents Payable,1425,0,VENDOR
03-05-2023,Inclusive Economy & Housing,Letting International Ltd,Rents Payable,1530,0,VENDOR
03-05-2023,Inclusive Economy & Housing,Letting International Ltd,Rents Payable,1860,0,VENDOR
03-05-2023,Inclusive Economy & Housing,Letting International Ltd,Rents Payable,2850,0,VENDOR
03-05-2023,Inclusive Economy & Housing,Letting International Ltd,Rents Payable,2100,0,VENDOR
03-05-2023,Inclusive Economy & Housing,Letting International Ltd,Rents Payable,2100,0,VENDOR
03-05-2023,Inclusive Economy & Housing,Letting International Ltd,Rents Payable,1860,0,VENDOR
03-05-2023,Inclusive Economy & Housing,Letting International Ltd,Rents Payable,2100,0,VENDOR
03-05-2023,Inclusive Economy & Housing,Letting International Ltd,Rents Payable,2160,0,VENDOR
03-05-2023,Inclusive Economy & Housing,Letting International Ltd,Rents Payable,1770,0,VENDOR
03-05-2023,Inclusive Economy & Housing,Ilford Grand Hotel ltd,Rents Payable,3450,0,COMMERCIAL SUPPLIER
03-05-2023,Inclusive Economy & Housing,Ilford Grand Hotel ltd,Rents Payable,2185,0,COMMERCIAL SUPPLIER
03-05-2023,Inclusive Economy & Housing,Ilford Grand Hotel ltd,Rents Payable,3450,0,COMMERCIAL SUPPLIER
03-05-2023,Inclusive Economy & Housing,Ilford Grand Hotel ltd,Rents Payable,575,0,COMMERCIAL SUPPLIER
03-05-2023,Inclusive Economy & Housing,Ilford Grand Hotel ltd,Rents Payable,3450,0,COMMERCIAL SUPPLIER
03-05-2023,Inclusive Economy & Housing,Ilford Grand Hotel ltd,Rents Payable,2500,0,COMMERCIAL SUPPLIER
03-05-2023,Inclusive Economy & Housing,Ilford Grand Hotel ltd,Rents Payable,3125,0,COMMERCIAL SUPPLIER
03-05-2023,Inclusive Economy & Housing,Ilford Grand Hotel ltd,Rents Payable,3105,0,COMMERCIAL SUPPLIER
03-05-2023,Inclusive Economy & Housing,Ilford Grand Hotel ltd,Rents Payable,3335,0,COMMERCIAL SUPPLIER
03-05-2023,Inclusive Economy & Housing,Ilford Grand Hotel ltd,Rents Payable,625,0,COMMERCIAL SUPPLIER
03-05-2023,Inclusive Economy & Housing,Ilford Grand Hotel ltd,Rents Payable,3750,0,COMMERCIAL SUPPLIER
03-05-2023,Inclusive Economy & Housing,Ilford Grand Hotel ltd,Rents Payable,575,0,COMMERCIAL SUPPLIER
03-05-2023,Inclusive Economy & Housing,Ilford Grand Hotel ltd,Rents Payable,3450,0,COMMERCIAL SUPPLIER
03-05-2023,Inclusive Economy & Housing,Ilford Grand Hotel ltd,Rents Payable,125,0,COMMERCIAL SUPPLIER
03-05-2023,Inclusive Economy & Housing,Yunus Manjra T/A Lets Locate,Rents Payable,1440,0,VENDOR
03-05-2023,Inclusive Economy & Housing,Yunus Manjra T/A Lets Locate,Rents Payable,1371.6,0,VENDOR
03-05-2023,Inclusive Economy & Housing,Yunus Manjra T/A Lets Locate,Rents Payable,1607.4,0,VENDOR
03-05-2023,Inclusive Economy & Housing,Yunus Manjra T/A Lets Locate,Rents Payable,1650,0,VENDOR
03-05-2023,Inclusive Economy & Housing,Yunus Manjra T/A Lets Locate,Rents Payable,1650,0,VENDOR
03-05-2023,Inclusive Economy & Housing,Yunus Manjra T/A Lets Locate,Rents Payable,1371.6,0,VENDOR
03-05-2023,Inclusive Economy & Housing,Yunus Manjra T/A Lets Locate,Rents Payable,1425,0,VENDOR
